Workbook

Sheet TOT-0516
B2: ANEXO VI al Memorándum D.T.E.E. N° 243/2017
B7: PRESTADOR DE LA FUNCIÓN TÉCNICA DE TRANSPORTE DE ENERGÍA ELÉCTRICA
B9: TRANSBA S.A.
B11: TOTAL DE PENALIZACIONES A APLICAR
B13: 1 | C13: FALSE
B14: Desde el 01 al 31 de mayo de 2016
B16: Sanciones duplicadas por tasa de falla > 4 Sal. x año/100km.
C18: 1.- | D18: LÍNEAS | I18: ='LI-05 (5)'!AC42 -> 41758.44
C20: 2.- | D20: CONEXIÓN
D22: 2.1.- | E22: Transformación | I22: ='T-05 (4)'!AC43 -> 15071.85
D24: 2.2.- | E24: Salidas | I24: ='SA-05 (3)'!V43 -> 13244.2
C26: 3.- | D26: Equipamiento propio Res. 01_03 | I26: ='RE-05 (1)'!AD43 -> 16.27
F28: TOTAL | G28: =ROUND(SUM(I18:I26),2) -> 70090.76
C30: Valores remuneratorios según Acuerdo SEE-ENRE-TRANSBA - 2016-2017

Sheet LI-05 (1)
B2: ='TOT-0516'!B2 -> ANEXO VI al Memorándum D.T.E.E. N° 243/2017
F8: SISTEMA DE TRANSPORTE DE ENERGÍA ELÉCTRICA POR DISTRIBUCIÓN TRONCAL - TRANSBA S.A.
F10: 1.- LÍNEAS
B12: =+'TOT-0516'!B14 -> Desde el 01 al 31 de mayo de 2016
F14: $/100 km-h : LÍNEAS 220 kV | G14: 392.94 | L14: FACTOR DE PENALIZACIÓN (CLASE A) K= | M14: =150*'TOT-0516'!B13 -> 150 | N14: =IF(M14=150," ",IF(M14=300,"Coeficiente duplicado por tasa de falla >4 Sal. x año/100 km.","REVISAR COEFICIENTE")) -> 
F15: $/100 km-h : LÍNEAS 132 kV | G15: 375.48 | L15: FACTOR DE PENALIZACIÓN (CLASE B) K= | M15: =50*'TOT-0516'!B13 -> 50 | N15: =IF(M15=50," ",IF(M15=100,"Coeficiente duplicado por tasa de falla >4 Sal. x año/100 km.","REVISAR COEFICIENTE")) -> 
F16: $/100 km-h : LÍNEAS 66 kV | G16: 375.48 | L16: FACTOR DE PENALIZACIÓN (CLASE C) K= | M16: =10*'TOT-0516'!B13 -> 10 | N16: =IF(M16=10," ",IF(M16=20,"Coeficiente duplicado por tasa de falla >4 Sal. x año/100 km.","REVISAR COEFICIENTE")) -> 
C17: 3 | D17: 4 | E17: 5 | F17: 6 | G17: 7 | H17: 8 | I17: 9 | J17: 10 | K17: 11 | L17: 12 | M17: 13 | N17: 14 | O17: 15 | P17: 16 | Q17: 17 | R17: 18 | S17: 19 | T17: 20 | U17: 21 | V17: 22 | W17: 23 | X17: 24 | Y17: 25 | Z17: 26 | AA17: 27 | AB17: 28 | AC17: 29
C18: N° | D18: INDISP | E18: ID EQUIPO | F18: LÍNEAS | G18: U [kV] | H18: Long. [km] | I18: CLASE | J18: $/h | K18: Salida | L18: Entrada | M18: Hs. Indisp | N18: Minutos Indisp. | O18: Tipo Sal.(²) | P18: C.R. % | Q18: K (CLASE) | R18: PENALIZ. PROGRAM. | S18: REDUCC. PROGRAM. | T18: PENALIZACIÓN FORZADA Por Salida 1ras. 3 hs. hs. Restantes | W18: REDUCC. FORZADA Por Salida 1ras. 3 hs. hs. Restantes | Z18: RESTANTE FORZADA | AA18: REDUCC. RESTANTE | AB18: Informó en Térm. | AC18: TOTAL PENALIZAC.
C21: 1 | D21: 302046 | E21: 1434 | F21: 9 DE JULIO - BRAGADO | G21: 66 | H21: 60.93999863 | I21: C | J21: =IF(G21=220,$G$14,IF(G21=132,$G$15,$G$16))*IF(H21>25,H21,25)/100 -> 228.8175068 | K21: 2016-05-01T08:09:00 | L21: 2016-05-01T17:22:00 | M21: =IF(F21="","",(L21-K21)*24) -> 9.216666667 | N21: =IF(F21="","",ROUND((L21-K21)*24*60,0)) -> 553 | O21: P | P21: 0,000 | Q21: =IF(I21="A",$M$14,IF(I21="B",$M$15,$M$16)) -> 10 | R21: =IF(O21="P",ROUND(N21/60,2)*J21*Q21*0.01,"--") -> 210.9697413 | S21: =IF(O21="RP",ROUND(N21/60,2)*J21*Q21*0.01*P21/100,"--") -> -- | T21: =IF(O21="F",J21*Q21,"--") -> -- | U21: =IF(AND(N21>10,O21="F"),J21*Q21*IF(N21>180,3,ROUND((N21)/60,2)),"--") -> -- | V21: =IF(AND(O21="F",N21>180),(ROUND(N21/60,2)-3)*J21*Q21*0.1,"--") -> -- | W21: =IF(O21="R",J21*Q21*P21/100,"--") -> -- | X21: =IF(AND(N21>10,O21="R"),Q21*J21*P21/100*IF(N21>180,3,ROUND((N21)/60,2)),"--") -> -- | Y21: =IF(AND(O21="R",N21>180),(ROUND(N21/60,2)-3)*J21*Q21*0.1*P21/100,"--") -> -- | Z21: =IF(O21="RF",ROUND(N21/60,2)*J21*Q21*0.1,"--") -> -- | AA21: =IF(O21="RR",ROUND(N21/60,2)*J21*Q21*0.1*P21/100,"--") -> -- | AB21: SI | AC21: =IF(F21="","",SUM(R21:AA21)*IF(AB21="SI",1,2)) -> 210.9697413
C22: 2 | D22: 302337 | E22: 2741 | F22: RAMALLO - URBANA SAN NICOLAS | G22: 132 | H22: 12.85999966 | I22: C | J22: 93.87 | K22: 2016-05-02T09:03:00 | L22: 2016-05-02T15:11:00 | M22: 6.133333333 | N22: 368 | O22: P | P22: 0,000 | Q22: 10 | R22: 57.54231 | S22: -- | T22: -- | U22: -- | V22: -- | W22: -- | X22: -- | Y22: -- | Z22: -- | AA22: -- | AB22: SI | AC22: 57.54231
C23: 3 | D23: 302338 | E23: 4935 | F23: LAS PALMAS - SAN PEDRO | G23: 132 | H23: 67.30000305 | I23: C | J23: 252.6980515 | K23: 2016-05-02T09:19:00 | L23: 2016-05-02T15:23:00 | M23: 6.066666667 | N23: 364 | O23: P | P23: 0,000 | Q23: 10 | R23: 153.3877172 | S23: -- | T23: -- | U23: -- | V23: -- | W23: -- | X23: -- | Y23: -- | Z23: -- | AA23: -- | AB23: SI | AC23: 153.3877172
C24: 4 | D24: 302339 | E24: 1444 | F24: GRAL. MADARIAGA - LAS ARMAS | G24: 132 | H24: 64.40000153 | I24: C | J24: 241.8091257 | K24: 2016-05-03T08:49:00 | L24: 2016-05-03T16:05:00 | M24: 7.266666667 | N24: 436 | O24: P | P24: 0,000 | Q24: 10 | R24: 175.7952344 | S24: -- | T24: -- | U24: -- | V24: -- | W24: -- | X24: -- | Y24: -- | Z24: -- | AA24: -- | AB24: SI | AC24: 175.7952344
C25: 5 | D25: 302341 | E25: 2741 | F25: RAMALLO - URBANA SAN NICOLAS | G25: 132 | H25: 12.85999966 | I25: C | J25: 93.87 | K25: 2016-05-03T08:54:00 | L25: 2016-05-03T14:34:00 | M25: 5.666666667 | N25: 340 | O25: P | P25: 0,000 | Q25: 10 | R25: 53.22429 | S25: -- | T25: -- | U25: -- | V25: -- | W25: -- | X25: -- | Y25: -- | Z25: -- | AA25: -- | AB25: SI | AC25: 53.22429
C26: 6 | D26: 302342 | E26: 4935 | F26: LAS PALMAS - SAN PEDRO | G26: 132 | H26: 67.30000305 | I26: C | J26: 252.6980515 | K26: 2016-05-03T09:21:00 | L26: 2016-05-03T15:44:00 | M26: 6.383333333 | N26: 383 | O26: P | P26: 0,000 | Q26: 10 | R26: 161.2213568 | S26: -- | T26: -- | U26: -- | V26: -- | W26: -- | X26: -- | Y26: -- | Z26: -- | AA26: -- | AB26: SI | AC26: 161.2213568
C27: 7 | D27: 302344 | E27: 4074 | F27: INDIO RICO - PRINGLES | G27: 132 | H27: 44.40000153 | I27: C | J27: 166.7131257 | K27: 2016-05-03T09:50:00 | L27: 2016-05-03T18:03:00 | M27: 8.216666667 | N27: 493 | O27: P | P27: 0,000 | Q27: 10 | R27: 137.0381893 | S27: -- | T27: -- | U27: -- | V27: -- | W27: -- | X27: -- | Y27: -- | Z27: -- | AA27: -- | AB27: SI | AC27: 137.0381893
C28: 8 | D28: 302348 | E28: 4935 | F28: LAS PALMAS - SAN PEDRO | G28: 132 | H28: 67.30000305 | I28: C | J28: 252.6980515 | K28: 2016-05-04T08:42:00 | L28: 2016-05-04T15:42:00 | M28: 7 | N28: 420 | O28: P | P28: 0,000 | Q28: 10 | R28: 176.888636 | S28: -- | T28: -- | U28: -- | V28: -- | W28: -- | X28: -- | Y28: -- | Z28: -- | AA28: -- | AB28: SI | AC28: 176.888636
C29: 9 | D29: 302349 | E29: 1444 | F29: GRAL. MADARIAGA - LAS ARMAS | G29: 132 | H29: 64.40000153 | I29: C | J29: 241.8091257 | K29: 2016-05-04T08:53:00 | L29: 2016-05-04T15:58:00 | M29: 7.083333333 | N29: 425 | O29: P | P29: 0,000 | Q29: 10 | R29: 171.200861 | S29: -- | T29: -- | U29: -- | V29: -- | W29: -- | X29: -- | Y29: -- | Z29: -- | AA29: -- | AB29: SI | AC29: 171.200861
C30: 10 | D30: 302351 | E30: 4074 | F30: INDIO RICO - PRINGLES | G30: 132 | H30: 44.40000153 | I30: C | J30: 166.7131257 | K30: 2016-05-04T09:28:00 | L30: 2016-05-04T17:31:00 | M30: 8.05 | N30: 483 | O30: P | P30: 0,000 | Q30: 10 | R30: 134.2040662 | S30: -- | T30: -- | U30: -- | V30: -- | W30: -- | X30: -- | Y30: -- | Z30: -- | AA30: -- | AB30: SI | AC30: 134.2040662
C31: 11 | D31: 302353 | E31: 1444 | F31: GRAL. MADARIAGA - LAS ARMAS | G31: 132 | H31: 64.40000153 | I31: C | J31: 241.8091257 | K31: 2016-05-05T08:24:00 | L31: 2016-05-05T15:40:00 | M31: 7.266666667 | N31: 436 | O31: P | P31: 0,000 | Q31: 10 | R31: 175.7952344 | S31: -- | T31: -- | U31: -- | V31: -- | W31: -- | X31: -- | Y31: -- | Z31: -- | AA31: -- | AB31: SI | AC31: 175.7952344
C32: 12 | D32: 302354 | E32: 1416 | F32: LINCOLN - BRAGADO | G32: 132 | H32: 109.4000015 | I32: C | J32: 410.7751257 | K32: 2016-05-05T08:44:00 | L32: 2016-05-05T15:19:00 | M32: 6.583333333 | N32: 395 | O32: P | P32: 0,000 | Q32: 10 | R32: 270.2900327 | S32: -- | T32: -- | U32: -- | V32: -- | W32: -- | X32: -- | Y32: -- | Z32: -- | AA32: -- | AB32: SI | AC32: 270.2900327
C33: 13 | D33: 302355 | E33: 1436 | F33: TRENQUE LAUQUEN - PEHUAJO | G33: 66 | H33: 80.09999847 | I33: B | J33: 300.7594743 | K33: 2016-05-05T09:18:00 | L33: 2016-05-05T15:10:00 | M33: 5.866666667 | N33: 352 | O33: P | P33: 0,000 | Q33: 50 | R33: 882.729057 | S33: -- | T33: -- | U33: -- | V33: -- | W33: -- | X33: -- | Y33: -- | Z33: -- | AA33: -- | AB33: SI | AC33: 882.729057
C34: 14 | D34: 302358 | E34: 4074 | F34: INDIO RICO - PRINGLES | G34: 132 | H34: 44.40000153 | I34: C | J34: 166.7131257 | K34: 2016-05-05T09:41:00 | L34: 2016-05-05T17:26:00 | M34: 7.75 | N34: 465 | O34: P | P34: 0,000 | Q34: 10 | R34: 129.2026724 | S34: -- | T34: -- | U34: -- | V34: -- | W34: -- | X34: -- | Y34: -- | Z34: -- | AA34: -- | AB34: SI | AC34: 129.2026724
C35: 15 | D35: 302362 | E35: 1444 | F35: GRAL. MADARIAGA - LAS ARMAS | G35: 132 | H35: 64.40000153 | I35: C | J35: 241.8091257 | K35: 2016-05-06T08:19:00 | L35: 2016-05-06T15:54:00 | M35: 7.583333333 | N35: 455 | O35: P | P35: 0,000 | Q35: 10 | R35: 183.2913173 | S35: -- | T35: -- | U35: -- | V35: -- | W35: -- | X35: -- | Y35: -- | Z35: -- | AA35: -- | AB35: SI | AC35: 183.2913173
C36: 16 | D36: 302363 | E36: 1416 | F36: LINCOLN - BRAGADO | G36: 132 | H36: 109.4000015 | I36: C | J36: 410.7751257 | K36: 2016-05-06T08:57:00 | L36: 2016-05-06T14:29:00 | M36: 5.533333333 | N36: 332 | O36: P | P36: 0,000 | Q36: 10 | R36: 227.1586445 | S36: -- | T36: -- | U36: -- | V36: -- | W36: -- | X36: -- | Y36: -- | Z36: -- | AA36: -- | AB36: SI | AC36: 227.1586445
C37: 17 | D37: 302365 | E37: 4074 | F37: INDIO RICO - PRINGLES | G37: 132 | H37: 44.40000153 | I37: C | J37: 166.7131257 | K37: 2016-05-06T10:20:00 | L37: 2016-05-06T17:08:00 | M37: 6.8 | N37: 408 | O37: P | P37: 0,000 | Q37: 10 | R37: 113.3649255 | S37: -- | T37: -- | U37: -- | V37: -- | W37: -- | X37: -- | Y37: -- | Z37: -- | AA37: -- | AB37: SI | AC37: 113.3649255
C38: 18 | D38: 302366 | E38: 1516 | F38: GONZALEZ CHAVEZ - NECOCHEA | G38: 132 | H38: 138.8600006 | I38: A | J38: 521.3915303 | K38: 2016-05-07T07:54:00 | L38: 2016-05-07T17:49:00 | M38: 9.916666667 | N38: 595 | O38: P | P38: 0,000 | Q38: 150 | R38: 7758.305971 | S38: -- | T38: -- | U38: -- | V38: -- | W38: -- | X38: -- | Y38: -- | Z38: -- | AA38: -- | AB38: SI | AC38: 7758.305971
C39: 19 | D39: 302369 | E39: 1410 | F39: MERCEDES B.A. - LUJAN | G39: 132 | H39: 41.29999924 | I39: B | J39: 155.0732371 | K39: 2016-05-08T06:55:00 | L39: 2016-05-08T18:06:00 | M39: 11.18333333 | N39: 671 | O39: P | P39: 0,000 | Q39: 50 | R39: 866.8593956 | S39: -- | T39: -- | U39: -- | V39: -- | W39: -- | X39: -- | Y39: -- | Z39: -- | AA39: -- | AB39: SI | AC39: 866.8593956
J40: 93.87 | P40: =IF(F40="","","--") ->  | Q40: 10 | R40: =IF(O40="P",ROUND(N40/60,2)*J40*Q40*0.01,"--") -> -- | S40: -- | T40: -- | U40: -- | V40: -- | W40: -- | X40: -- | Y40: -- | Z40: -- | AA40: -- | AB40: =IF(F40="","","SI") -> 
C42: (²) | D42: P - PROGRAMADA | R42: =SUM(R19:R41) -> 12038.46965 | S42: 0 | T42: 0 | U42: 0 | V42: 0 | W42: 0 | X42: 0 | Y42: 0 | Z42: 0 | AA42: 0 | AC42: =ROUND(SUM(AC19:AC41),2) -> 12038.47

Sheet LI-05 (2)
B2: ='TOT-0516'!B2 -> ANEXO VI al Memorándum D.T.E.E. N° 243/2017
F8: SISTEMA DE TRANSPORTE DE ENERGÍA ELÉCTRICA POR DISTRIBUCIÓN TRONCAL - TRANSBA S.A.
F10: 1.- LÍNEAS
B12: =+'TOT-0516'!B14 -> Desde el 01 al 31 de mayo de 2016
F14: $/100 km-h : LÍNEAS 220 kV | G14: 392.94 | L14: FACTOR DE PENALIZACIÓN (CLASE A) K= | M14: =150*'TOT-0516'!B13 -> 150 | N14: =IF(M14=150," ",IF(M14=300,"Coeficiente duplicado por tasa de falla >4 Sal. x año/100 km.","REVISAR COEFICIENTE")) -> 
F15: $/100 km-h : LÍNEAS 132 kV | G15: 375.48 | L15: FACTOR DE PENALIZACIÓN (CLASE B) K= | M15: =50*'TOT-0516'!B13 -> 50 | N15: =IF(M15=50," ",IF(M15=100,"Coeficiente duplicado por tasa de falla >4 Sal. x año/100 km.","REVISAR COEFICIENTE")) -> 
F16: $/100 km-h : LÍNEAS 66 kV | G16: 375.48 | L16: FACTOR DE PENALIZACIÓN (CLASE C) K= | M16: =10*'TOT-0516'!B13 -> 10 | N16: =IF(M16=10," ",IF(M16=20,"Coeficiente duplicado por tasa de falla >4 Sal. x año/100 km.","REVISAR COEFICIENTE")) -> 
C17: 3 | D17: 4 | E17: 5 | F17: 6 | G17: 7 | H17: 8 | I17: 9 | J17: 10 | K17: 11 | L17: 12 | M17: 13 | N17: 14 | O17: 15 | P17: 16 | Q17: 17 | R17: 18 | S17: 19 | T17: 20 | U17: 21 | V17: 22 | W17: 23 | X17: 24 | Y17: 25 | Z17: 26 | AA17: 27 | AB17: 28 | AC17: 29
C18: N° | D18: INDISP | E18: ID EQUIPO | F18: LÍNEAS | G18: U [kV] | H18: Long. [km] | I18: CLASE | J18: $/h | K18: Salida | L18: Entrada | M18: Hs. Indisp | N18: Minutos Indisp. | O18: Tipo Sal.(²) | P18: C.R. % | Q18: K (CLASE) | R18: PENALIZ. PROGRAM. | S18: REDUCC. PROGRAM. | T18: PENALIZACIÓN FORZADA Por Salida 1ras. 3 hs. hs. Restantes | W18: REDUCC. FORZADA Por Salida 1ras. 3 hs. hs. Restantes | Z18: RESTANTE FORZADA | AA18: REDUCC. RESTANTE | AB18: Informó en Térm. | AC18: TOTAL PENALIZAC.
AC19: ='LI-05 (1)'!AC42 -> 12038.47
C21: 20 | D21: 302370 | E21: 1516 | F21: GONZALEZ CHAVEZ - NECOCHEA | G21: 132 | H21: 138.8600006 | I21: A | J21: =IF(G21=220,$G$14,IF(G21=132,$G$15,$G$16))*IF(H21>25,H21,25)/100 -> 521.3915303 | K21: 2016-05-08T07:55:00 | L21: 2016-05-08T17:50:00 | M21: =IF(F21="","",(L21-K21)*24) -> 9.916666667 | N21: =IF(F21="","",ROUND((L21-K21)*24*60,0)) -> 595 | O21: P | P21: 0,000 | Q21: =IF(I21="A",$M$14,IF(I21="B",$M$15,$M$16)) -> 150 | R21: =IF(O21="P",ROUND(N21/60,2)*J21*Q21*0.01,"--") -> 7758.305971 | S21: =IF(O21="RP",ROUND(N21/60,2)*J21*Q21*0.01*P21/100,"--") -> -- | T21: =IF(O21="F",J21*Q21,"--") -> -- | U21: =IF(AND(N21>10,O21="F"),J21*Q21*IF(N21>180,3,ROUND((N21)/60,2)),"--") -> -- | V21: =IF(AND(O21="F",N21>180),(ROUND(N21/60,2)-3)*J21*Q21*0.1,"--") -> -- | W21: =IF(O21="R",J21*Q21*P21/100,"--") -> -- | X21: =IF(AND(N21>10,O21="R"),Q21*J21*P21/100*IF(N21>180,3,ROUND((N21)/60,2)),"--") -> -- | Y21: =IF(AND(O21="R",N21>180),(ROUND(N21/60,2)-3)*J21*Q21*0.1*P21/100,"--") -> -- | Z21: =IF(O21="RF",ROUND(N21/60,2)*J21*Q21*0.1,"--") -> -- | AA21: =IF(O21="RR",ROUND(N21/60,2)*J21*Q21*0.1*P21/100,"--") -> -- | AB21: SI | AC21: =IF(F21="","",SUM(R21:AA21)*IF(AB21="SI",1,2)) -> 7758.305971
C22: 21 | D22: 302376 | E22: 2714 | F22: VILLA LIA "T" - NUEVA CAMPANA | G22: 132 | H22: 35 | I22: C | J22: 131.418 | K22: 2016-05-08T08:54:00 | L22: 2016-05-08T17:25:00 | M22: 8.516666667 | N22: 511 | O22: P | P22: 0,000 | Q22: 10 | R22: 111.968136 | S22: -- | T22: -- | U22: -- | V22: -- | W22: -- | X22: -- | Y22: -- | Z22: -- | AA22: -- | AB22: SI | AC22: 111.968136
C23: 22 | D23: 302375 | E23: 2715 | F23: VILLA LIA "T" - SAN ANTONIO DE ARECO | G23: 132 | H23: 18.39999962 | I23: C | J23: 93.87 | K23: 2016-05-08T08:54:00 | L23: 2016-05-08T17:25:00 | M23: 8.516666667 | N23: 511 | O23: P | P23: 0,000 | Q23: 10 | R23: 79.97724 | S23: -- | T23: -- | U23: -- | V23: -- | W23: -- | X23: -- | Y23: -- | Z23: -- | AA23: -- | AB23: SI | AC23: 79.97724
C24: 23 | D24: 302377 | E24: 2713 | F24: VILLA LIA "T" - VILLA LÍA | G24: 132 | H24: 8 | I24: C | J24: 93.87 | K24: 2016-05-08T08:54:00 | L24: 2016-05-08T17:25:00 | M24: 8.516666667 | N24: 511 | O24: P | P24: 0,000 | Q24: 10 | R24: 79.97724 | S24: -- | T24: -- | U24: -- | V24: -- | W24: -- | X24: -- | Y24: -- | Z24: -- | AA24: -- | AB24: SI | AC24: 79.97724
C25: 24 | D25: 302666 | E25: 1439 | F25: SAN CLEMENTE - DOLORES | G25: 132 | H25: 102.5999985 | I25: C | J25: 385.2424743 | K25: 2016-05-09T08:57:00 | L25: 2016-05-09T17:19:00 | M25: 8.366666667 | N25: 502 | O25: P | P25: 0,000 | Q25: 10 | R25: 322.447951 | S25: -- | T25: -- | U25: -- | V25: -- | W25: -- | X25: -- | Y25: -- | Z25: -- | AA25: -- | AB25: SI | AC25: 322.447951
C26: 25 | D26: 302667 | E26: 3483 | F26: BAHIA BLANCA - PETROQ. BAHIA BLANCA 3 | G26: 132 | H26: 29.79999924 | I26: C | J26: 111.8930371 | K26: 2016-05-09T09:09:00 | L26: 2016-05-09T18:43:00 | M26: 9.566666667 | N26: 574 | O26: P | P26: 0,000 | Q26: 10 | R26: 107.0816365 | S26: -- | T26: -- | U26: -- | V26: -- | W26: -- | X26: -- | Y26: -- | Z26: -- | AA26: -- | AB26: SI | AC26: 107.0816365
C27: 26 | D27: 302668 | E27: 1534 | F27: BAHIA BLANCA - NORTE II | G27: 132 | H27: 19 | I27: C | J27: 93.87 | K27: 2016-05-09T09:24:00 | L27: 2016-05-09T18:04:00 | M27: 8.666666667 | N27: 520 | O27: P | P27: 0,000 | Q27: 10 | R27: 81.38529 | S27: -- | T27: -- | U27: -- | V27: -- | W27: -- | X27: -- | Y27: -- | Z27: -- | AA27: -- | AB27: SI | AC27: 81.38529
C29: 28 | D29: 302673 | E29: 1534 | F29: BAHIA BLANCA - NORTE II | G29: 132 | H29: 19 | I29: C | J29: 93.87 | K29: 2016-05-10T08:20:00 | L29: 2016-05-10T18:25:00 | M29: 10.08333333 | N29: 605 | O29: P | P29: 0,000 | Q29: 10 | R29: 94.62096 | S29: -- | T29: -- | U29: -- | V29: -- | W29: -- | X29: -- | Y29: -- | Z29: -- | AA29: -- | AB29: SI | AC29: 94.62096
C30: 29 | D30: 302674 | E30: 1439 | F30: SAN CLEMENTE - DOLORES | G30: 132 | H30: 102.5999985 | I30: C | J30: 385.2424743 | K30: 2016-05-10T08:24:00 | L30: 2016-05-10T17:14:00 | M30: 8.833333333 | N30: 530 | O30: P | P30: 0,000 | Q30: 10 | R30: 340.1691048 | S30: -- | T30: -- | U30: -- | V30: -- | W30: -- | X30: -- | Y30: -- | Z30: -- | AA30: -- | AB30: SI | AC30: 340.1691048
C31: 30 | D31: 302677 | E31: 3483 | F31: BAHIA BLANCA - PETROQ. BAHIA BLANCA 3 | G31: 132 | H31: 29.79999924 | I31: C | J31: 111.8930371 | K31: 2016-05-10T08:44:00 | L31: 2016-05-10T18:19:00 | M31: 9.583333333 | N31: 575 | O31: P | P31: 0,000 | Q31: 10 | R31: 107.1935296 | S31: -- | T31: -- | U31: -- | V31: -- | W31: -- | X31: -- | Y31: -- | Z31: -- | AA31: -- | AB31: SI | AC31: 107.1935296
C32: 31 | D32: 302678 | E32: 5280 | F32: BAHÍA BLANCA MONTE HERMOSO 1 | G32: 0,00 | H32: 0,00 | J32: 0 | K32: 2016-05-10T09:03:00 | L32: 2016-05-10T18:16:00 | M32: 9.216666667 | N32: 553 | O32: P | P32: 0,000 | Q32: 10 | R32: 0 | S32: -- | T32: -- | U32: -- | V32: -- | W32: -- | X32: -- | Y32: -- | Z32: -- | AA32: -- | AB32: SI | AC32: 0
C33: 32 | D33: 302689 | E33: 1439 | F33: SAN CLEMENTE - DOLORES | G33: 132 | H33: 102.5999985 | I33: C | J33: 385.2424743 | K33: 2016-05-11T08:53:00 | L33: 2016-05-11T17:16:00 | M33: 8.383333333 | N33: 503 | O33: P | P33: 0,000 | Q33: 10 | R33: 322.8331934 | S33: -- | T33: -- | U33: -- | V33: -- | W33: -- | X33: -- | Y33: -- | Z33: -- | AA33: -- | AB33: SI | AC33: 322.8331934
C34: 33 | D34: 302690 | E34: 5280 | F34: BAHÍA BLANCA MONTE HERMOSO 1 | G34: 0,00 | H34: 0,00 | J34: 0 | K34: 2016-05-11T08:57:00 | L34: 2016-05-11T17:27:00 | M34: 8.5 | N34: 510 | O34: P | P34: 0,000 | Q34: 10 | R34: 0 | S34: -- | T34: -- | U34: -- | V34: -- | W34: -- | X34: -- | Y34: -- | Z34: -- | AA34: -- | AB34: SI | AC34: 0
C35: 34 | D35: 302691 | E35: 1401 | F35: HENDERSON - CNEL. SUAREZ | G35: 132 | H35: 126.9000015 | I35: C | J35: 476.4841257 | K35: 2016-05-11T08:59:00 | L35: 2016-05-11T14:35:00 | M35: 5.6 | N35: 336 | O35: P | P35: 0,000 | Q35: 10 | R35: 266.8311104 | S35: -- | T35: -- | U35: -- | V35: -- | W35: -- | X35: -- | Y35: -- | Z35: -- | AA35: -- | AB35: SI | AC35: 266.8311104
C36: 35 | D36: 302697 | E36: 1439 | F36: SAN CLEMENTE - DOLORES | G36: 132 | H36: 102.5999985 | I36: C | J36: 385.2424743 | K36: 2016-05-12T08:19:00 | L36: 2016-05-12T17:17:00 | M36: 8.966666667 | N36: 538 | O36: P | P36: 0,000 | Q36: 10 | R36: 345.5624994 | S36: -- | T36: -- | U36: -- | V36: -- | W36: -- | X36: -- | Y36: -- | Z36: -- | AA36: -- | AB36: SI | AC36: 345.5624994
C37: 36 | D37: 302698 | E37: 5280 | F37: BAHÍA BLANCA MONTE HERMOSO 1 | G37: 0,00 | H37: 0,00 | J37: 0 | K37: 2016-05-12T08:27:00 | L37: 2016-05-12T17:31:00 | M37: 9.066666667 | N37: 544 | O37: P | P37: 0,000 | Q37: 10 | R37: 0 | S37: -- | T37: -- | U37: -- | V37: -- | W37: -- | X37: -- | Y37: -- | Z37: -- | AA37: -- | AB37: SI | AC37: 0
C38: 37 | D38: 302700 | E38: 3797 | F38: S. A. ARECO - LUJAN | G38: 66 | H38: 49.79999924 | I38: C | J38: 186.9890371 | K38: 2016-05-12T08:52:00 | L38: 2016-05-12T15:14:00 | M38: 6.366666667 | N38: 382 | O38: P | P38: 0,000 | Q38: 10 | R38: 119.1120167 | S38: -- | T38: -- | U38: -- | V38: -- | W38: -- | X38: -- | Y38: -- | Z38: -- | AA38: -- | AB38: SI | AC38: 119.1120167
C39: 38 | D39: 302703 | E39: 1418 | F39: ROJAS - JUNIN | G39: 132 | H39: 47.70000076 | I39: C | J39: 179.1039629 | K39: 2016-05-12T09:19:00 | L39: 2016-05-12T14:36:00 | M39: 5.283333333 | N39: 317 | O39: P | P39: 0,000 | Q39: 10 | R39: 94.56689239 | S39: -- | T39: -- | U39: -- | V39: -- | W39: -- | X39: -- | Y39: -- | Z39: -- | AA39: -- | AB39: SI | AC39: 94.56689239
C40: 39 | D40: 302712 | E40: 5280 | F40: BAHÍA BLANCA MONTE HERMOSO 1 | G40: 0,00 | H40: 0,00 | J40: 0 | K40: 2016-05-13T08:39:00 | L40: 2016-05-13T11:09:00 | M40: 2.5 | N40: 150 | O40: P | P40: 0,000 | Q40: 10 | R40: =IF(O40="P",ROUND(N40/60,2)*J40*Q40*0.01,"--") -> 0 | S40: -- | T40: -- | U40: -- | V40: -- | W40: -- | X40: -- | Y40: -- | Z40: -- | AA40: -- | AB40: SI | AC40: 0
C42: (²) | D42: P - PROGRAMADA ; F - FORZADA | R42: =SUM(R19:R41) -> 10232.03277 | S42: 0 | T42: 0 | U42: 0 | V42: 0 | W42: 0 | X42: 0 | Y42: 0 | Z42: 0 | AA42: 0 | AC42: =ROUND(SUM(AC19:AC41),2) -> 22270.5

Sheet LI-05 (3)
B2: ='TOT-0516'!B2 -> ANEXO VI al Memorándum D.T.E.E. N° 243/2017
F8: SISTEMA DE TRANSPORTE DE ENERGÍA ELÉCTRICA POR DISTRIBUCIÓN TRONCAL - TRANSBA S.A.
F10: 1.- LÍNEAS
B12: =+'TOT-0516'!B14 -> Desde el 01 al 31 de mayo de 2016
F14: $/100 km-h : LÍNEAS 220 kV | G14: 392.94 | L14: FACTOR DE PENALIZACIÓN (CLASE A) K= | M14: =150*'TOT-0516'!B13 -> 150 | N14: =IF(M14=150," ",IF(M14=300,"Coeficiente duplicado por tasa de falla >4 Sal. x año/100 km.","REVISAR COEFICIENTE")) -> 
F15: $/100 km-h : LÍNEAS 132 kV | G15: 375.48 | L15: FACTOR DE PENALIZACIÓN (CLASE B) K= | M15: =50*'TOT-0516'!B13 -> 50 | N15: =IF(M15=50," ",IF(M15=100,"Coeficiente duplicado por tasa de falla >4 Sal. x año/100 km.","REVISAR COEFICIENTE")) -> 
F16: $/100 km-h : LÍNEAS 66 kV | G16: 375.48 | L16: FACTOR DE PENALIZACIÓN (CLASE C) K= | M16: =10*'TOT-0516'!B13 -> 10 | N16: =IF(M16=10," ",IF(M16=20,"Coeficiente duplicado por tasa de falla >4 Sal. x año/100 km.","REVISAR COEFICIENTE")) -> 
C17: 3 | D17: 4 | E17: 5 | F17: 6 | G17: 7 | H17: 8 | I17: 9 | J17: 10 | K17: 11 | L17: 12 | M17: 13 | N17: 14 | O17: 15 | P17: 16 | Q17: 17 | R17: 18 | S17: 19 | T17: 20 | U17: 21 | V17: 22 | W17: 23 | X17: 24 | Y17: 25 | Z17: 26 | AA17: 27 | AB17: 28 | AC17: 29
C18: N° | D18: INDISP | E18: ID EQUIPO | F18: LÍNEAS | G18: U [kV] | H18: Long. [km] | I18: CLASE | J18: $/h | K18: Salida | L18: Entrada | M18: Hs. Indisp | N18: Minutos Indisp. | O18: Tipo Sal.(²) | P18: C.R. % | Q18: K (CLASE) | R18: PENALIZ. PROGRAM. | S18: REDUCC. PROGRAM. | T18: PENALIZACIÓN FORZADA Por Salida 1ras. 3 hs. hs. Restantes | W18: REDUCC. FORZADA Por Salida 1ras. 3 hs. hs. Restantes | Z18: RESTANTE FORZADA | AA18: REDUCC. RESTANTE | AB18: Informó en Térm. | AC18: TOTAL PENALIZAC.
AC19: ='LI-05 (2)'!AC42 -> 22270.5
C21: 40 | D21: 302714 | E21: 1439 | F21: SAN CLEMENTE - DOLORES | G21: 132 | H21: 102.5999985 | I21: C | J21: =IF(G21=220,$G$14,IF(G21=132,$G$15,$G$16))*IF(H21>25,H21,25)/100 -> 385.2424743 | K21: 2016-05-13T09:08:00 | L21: 2016-05-13T16:35:00 | M21: =IF(F21="","",(L21-K21)*24) -> 7.45 | N21: =IF(F21="","",ROUND((L21-K21)*24*60,0)) -> 447 | O21: P | P21: 0,000 | Q21: =IF(I21="A",$M$14,IF(I21="B",$M$15,$M$16)) -> 10 | R21: =IF(O21="P",ROUND(N21/60,2)*J21*Q21*0.01,"--") -> 287.0056433 | S21: =IF(O21="RP",ROUND(N21/60,2)*J21*Q21*0.01*P21/100,"--") -> -- | T21: =IF(O21="F",J21*Q21,"--") -> -- | U21: =IF(AND(N21>10,O21="F"),J21*Q21*IF(N21>180,3,ROUND((N21)/60,2)),"--") -> -- | V21: =IF(AND(O21="F",N21>180),(ROUND(N21/60,2)-3)*J21*Q21*0.1,"--") -> -- | W21: =IF(O21="R",J21*Q21*P21/100,"--") -> -- | X21: =IF(AND(N21>10,O21="R"),Q21*J21*P21/100*IF(N21>180,3,ROUND((N21)/60,2)),"--") -> -- | Y21: =IF(AND(O21="R",N21>180),(ROUND(N21/60,2)-3)*J21*Q21*0.1*P21/100,"--") -> -- | Z21: =IF(O21="RF",ROUND(N21/60,2)*J21*Q21*0.1,"--") -> -- | AA21: =IF(O21="RR",ROUND(N21/60,2)*J21*Q21*0.1*P21/100,"--") -> -- | AB21: SI | AC21: =IF(F21="","",SUM(R21:AA21)*IF(AB21="SI",1,2)) -> 287.0056433
C22: 41 | D22: 302720 | E22: 3483 | F22: BAHIA BLANCA - PETROQ. BAHIA BLANCA 3 | G22: 132 | H22: 29.79999924 | I22: C | J22: 111.8930371 | K22: 2016-05-14T07:38:00 | L22: 2016-05-14T17:44:00 | M22: 10.1 | N22: 606 | O22: P | P22: 0,000 | Q22: 10 | R22: 113.0119675 | S22: -- | T22: -- | U22: -- | V22: -- | W22: -- | X22: -- | Y22: -- | Z22: -- | AA22: -- | AB22: SI | AC22: 113.0119675
C23: 42 | D23: 302721 | E23: 1534 | F23: BAHIA BLANCA - NORTE II | G23: 132 | H23: 19 | I23: C | J23: 93.87 | K23: 2016-05-14T07:53:00 | L23: 2016-05-14T18:41:00 | M23: 10.8 | N23: 648 | O23: P | P23: 0,000 | Q23: 10 | R23: 101.3796 | S23: -- | T23: -- | U23: -- | V23: -- | W23: -- | X23: -- | Y23: -- | Z23: -- | AA23: -- | AB23: SI | AC23: 101.3796
C24: 43 | D24: 302724 | E24: 1534 | F24: BAHIA BLANCA - NORTE II | G24: 132 | H24: 19 | I24: C | J24: 93.87 | K24: 2016-05-15T07:16:00 | L24: 2016-05-15T19:27:00 | M24: 12.18333333 | N24: 731 | O24: P | P24: 0,000 | Q24: 10 | R24: 114.33366 | S24: -- | T24: -- | U24: -- | V24: -- | W24: -- | X24: -- | Y24: -- | Z24: -- | AA24: -- | AB24: SI | AC24: 114.33366
C25: 44 | D25: 302725 | E25: 3483 | F25: BAHIA BLANCA - PETROQ. BAHIA BLANCA 3 | G25: 132 | H25: 29.79999924 | I25: C | J25: 111.8930371 | K25: 2016-05-15T07:36:00 | L25: 2016-05-15T19:22:00 | M25: 11.76666667 | N25: 706 | O25: P | P25: 0,000 | Q25: 10 | R25: 131.6981047 | S25: -- | T25: -- | U25: -- | V25: -- | W25: -- | X25: -- | Y25: -- | Z25: -- | AA25: -- | AB25: SI | AC25: 131.6981047
C26: 45 | D26: 302728 | E26: 1529 | F26: MIRAMAR - NECOCHEA | G26: 132 | H26: 103.2900009 | I26: A | J26: 387.8332954 | K26: 2016-05-15T08:20:00 | L26: 2016-05-15T17:26:00 | M26: 9.1 | N26: 546 | O26: P | P26: 0,000 | Q26: 150 | R26: 5293.924483 | S26: -- | T26: -- | U26: -- | V26: -- | W26: -- | X26: -- | Y26: -- | Z26: -- | AA26: -- | AB26: SI | AC26: 5293.924483
C27: 46 | D27: 302958 | E27: 4889 | F27: CAMPANA III - MATHEU | G27: 132 | H27: 21 | I27: C | J27: 93.87 | K27: 2016-05-16T08:24:00 | L27: 2016-05-16T15:15:00 | M27: 6.85 | N27: 411 | O27: P | P27: 0,000 | Q27: 10 | R27: 64.30095 | S27: -- | T27: -- | U27: -- | V27: -- | W27: -- | X27: -- | Y27: -- | Z27: -- | AA27: -- | AB27: SI | AC27: 0
C28: 47 | D28: 302960 | E28: 4070 | F28: CHILLAR - GONZALES CHAVEZ | G28: 132 | H28: 89.13999939 | I28: C | J28: 334.7028697 | K28: 2016-05-16T09:06:00 | L28: 2016-05-16T17:29:00 | M28: 8.383333333 | N28: 503 | O28: P | P28: 0,000 | Q28: 10 | R28: 280.4810048 | S28: -- | T28: -- | U28: -- | V28: -- | W28: -- | X28: -- | Y28: -- | Z28: -- | AA28: -- | AB28: SI | AC28: 280.4810048
C29: 48 | D29: 302974 | E29: 3482 | F29: BAHIA BLANCA - PETROQ. BAHIA BLANCA 2 | G29: 132 | H29: 29.79999924 | I29: C | J29: 111.8930371 | K29: 2016-05-17T10:52:00 | L29: 2016-05-17T15:55:00 | M29: 5.05 | N29: 303 | O29: P | P29: 0,000 | Q29: 10 | R29: 56.50598375 | S29: -- | T29: -- | U29: -- | V29: -- | W29: -- | X29: -- | Y29: -- | Z29: -- | AA29: -- | AB29: SI | AC29: 56.50598375
C30: 49 | D30: 302976 | E30: 3482 | F30: BAHIA BLANCA - PETROQ. BAHIA BLANCA 2 | G30: 132 | H30: 29.79999924 | I30: C | J30: 111.8930371 | K30: 2016-05-18T09:13:00 | L30: 2016-05-18T17:00:00 | M30: 7.783333333 | N30: 467 | O30: P | P30: 0,000 | Q30: 10 | R30: 87.05278289 | S30: -- | T30: -- | U30: -- | V30: -- | W30: -- | X30: -- | Y30: -- | Z30: -- | AA30: -- | AB30: SI | AC30: 87.05278289
C31: 50 | D31: 302982 | E31: 5043 | F31: RAMALLO - SIDERAR 1 | G31: 132 | H31: 6.75 | I31: C | J31: 93.87 | K31: 2016-05-18T11:26:00 | L31: 2016-05-18T17:42:00 | M31: 6.266666667 | N31: 376 | O31: P | P31: 0,000 | Q31: 10 | R31: 58.85649 | S31: -- | T31: -- | U31: -- | V31: -- | W31: -- | X31: -- | Y31: -- | Z31: -- | AA31: -- | AB31: SI | AC31: 0
C32: 51 | D32: 302983 | E32: 1446 | F32: OLAVARRIA - HENDERSON | G32: 132 | H32: 139.8999939 | I32: C | J32: 525.2964971 | K32: 2016-05-18T13:20:00 | L32: 2016-05-18T15:18:00 | M32: 1.966666667 | N32: 118 | O32: P | P32: 0,000 | Q32: 10 | R32: 103.4834099 | S32: -- | T32: -- | U32: -- | V32: -- | W32: -- | X32: -- | Y32: -- | Z32: -- | AA32: -- | AB32: SI | AC32: 103.4834099
C33: 52 | D33: 302984 | E33: 1416 | F33: LINCOLN - BRAGADO | G33: 132 | H33: 109.4000015 | I33: C | J33: 410.7751257 | K33: 2016-05-19T07:48:00 | L33: 2016-05-19T17:26:00 | M33: 9.633333333 | N33: 578 | O33: P | P33: 0,000 | Q33: 10 | R33: 395.5764461 | S33: -- | T33: -- | U33: -- | V33: -- | W33: -- | X33: -- | Y33: -- | Z33: -- | AA33: -- | AB33: SI | AC33: 395.5764461
C34: 53 | D34: 302986 | E34: 3483 | F34: BAHIA BLANCA - PETROQ. BAHIA BLANCA 3 | G34: 132 | H34: 29.79999924 | I34: C | J34: 111.8930371 | K34: 2016-05-19T08:10:00 | L34: 2016-05-19T15:45:00 | M34: 7.583333333 | N34: 455 | O34: P | P34: 0,000 | Q34: 10 | R34: 84.81492215 | S34: -- | T34: -- | U34: -- | V34: -- | W34: -- | X34: -- | Y34: -- | Z34: -- | AA34: -- | AB34: SI | AC34: 84.81492215
C35: 54 | D35: 302987 | E35: 1441 | F35: PERGAMINO - ARRECIFES | G35: 66 | H35: 43.79999924 | I35: B | J35: 164.4602371 | K35: 2016-05-19T08:18:00 | L35: 2016-05-19T08:35:00 | M35: 0.2833333334 | N35: 17 | O35: P | P35: 0,000 | Q35: 50 | R35: 23.0244332 | S35: -- | T35: -- | U35: -- | V35: -- | W35: -- | X35: -- | Y35: -- | Z35: -- | AA35: -- | AB35: SI | AC35: 23.0244332
C36: 55 | D36: 302988 | E36: 1441 | F36: PERGAMINO - ARRECIFES | G36: 66 | H36: 43.79999924 | I36: B | J36: 164.4602371 | K36: 2016-05-19T08:50:00 | L36: 2016-05-19T18:10:00 | M36: 9.333333333 | N36: 560 | O36: P | P36: 0,000 | Q36: 50 | R36: 767.2070062 | S36: -- | T36: -- | U36: -- | V36: -- | W36: -- | X36: -- | Y36: -- | Z36: -- | AA36: -- | AB36: SI | AC36: 767.2070062
C37: 56 | D37: 302990 | E37: 5043 | F37: RAMALLO - SIDERAR 1 | G37: 132 | H37: 6.75 | I37: C | J37: 93.87 | K37: 2016-05-19T09:34:00 | L37: 2016-05-19T13:27:00 | M37: 3.883333333 | N37: 233 | O37: P | P37: 0,000 | Q37: 10 | R37: 36.42156 | S37: -- | T37: -- | U37: -- | V37: -- | W37: -- | X37: -- | Y37: -- | Z37: -- | AA37: -- | AB37: SI | AC37: 0
C38: 57 | D38: 302991 | E38: 1519 | F38: TANDIL - NECOCHEA | G38: 132 | H38: 149.1999969 | I38: C | J38: 560.2161485 | K38: 2016-05-20T07:49:00 | L38: 2016-05-20T09:24:00 | M38: 1.583333333 | N38: 95 | O38: P | P38: 0,000 | Q38: 10 | R38: 88.51415147 | S38: -- | T38: -- | U38: -- | V38: -- | W38: -- | X38: -- | Y38: -- | Z38: -- | AA38: -- | AB38: SI | AC38: 88.51415147
C39: 58 | D39: 302992 | E39: 1416 | F39: LINCOLN - BRAGADO | G39: 132 | H39: 109.4000015 | I39: C | J39: 410.7751257 | K39: 2016-05-20T08:15:00 | L39: 2016-05-20T17:50:00 | M39: 9.583333333 | N39: 575 | O39: P | P39: 0,000 | Q39: 10 | R39: =IF(O39="P",ROUND(N39/60,2)*J39*Q39*0.01,"--") -> 393.5225704 | S39: -- | T39: -- | U39: -- | V39: -- | W39: -- | X39: -- | Y39: -- | Z39: -- | AA39: -- | AB39: SI | AC39: 393.5225704
C41: (²) | D41: P - PROGRAMADA | R41: =SUM(R19:R40) -> 8481.115169 | S41: 0 | T41: 0 | U41: 0 | V41: 0 | W41: 0 | X41: 0 | Y41: 0 | Z41: 0 | AA41: 0 | AC41: =ROUND(SUM(AC19:AC40),2) -> 30592.04

Sheet LI-05 (4)
B2: ='TOT-0516'!B2 -> ANEXO VI al Memorándum D.T.E.E. N° 243/2017
F8: SISTEMA DE TRANSPORTE DE ENERGÍA ELÉCTRICA POR DISTRIBUCIÓN TRONCAL - TRANSBA S.A.
F10: 1.- LÍNEAS
B12: =+'TOT-0516'!B14 -> Desde el 01 al 31 de mayo de 2016
F14: $/100 km-h : LÍNEAS 220 kV | G14: 392.94 | L14: FACTOR DE PENALIZACIÓN (CLASE A) K= | M14: =150*'TOT-0516'!B13 -> 150 | N14: =IF(M14=150," ",IF(M14=300,"Coeficiente duplicado por tasa de falla >4 Sal. x año/100 km.","REVISAR COEFICIENTE")) -> 
F15: $/100 km-h : LÍNEAS 132 kV | G15: 375.48 | L15: FACTOR DE PENALIZACIÓN (CLASE B) K= | M15: =50*'TOT-0516'!B13 -> 50 | N15: =IF(M15=50," ",IF(M15=100,"Coeficiente duplicado por tasa de falla >4 Sal. x año/100 km.","REVISAR COEFICIENTE")) -> 
F16: $/100 km-h : LÍNEAS 66 kV | G16: 375.48 | L16: FACTOR DE PENALIZACIÓN (CLASE C) K= | M16: =10*'TOT-0516'!B13 -> 10 | N16: =IF(M16=10," ",IF(M16=20,"Coeficiente duplicado por tasa de falla >4 Sal. x año/100 km.","REVISAR COEFICIENTE")) -> 
C17: 3 | D17: 4 | E17: 5 | F17: 6 | G17: 7 | H17: 8 | I17: 9 | J17: 10 | K17: 11 | L17: 12 | M17: 13 | N17: 14 | O17: 15 | P17: 16 | Q17: 17 | R17: 18 | S17: 19 | T17: 20 | U17: 21 | V17: 22 | W17: 23 | X17: 24 | Y17: 25 | Z17: 26 | AA17: 27 | AB17: 28 | AC17: 29
C18: N° | D18: INDISP | E18: ID EQUIPO | F18: LÍNEAS | G18: U [kV] | H18: Long. [km] | I18: CLASE | J18: $/h | K18: Salida | L18: Entrada | M18: Hs. Indisp | N18: Minutos Indisp. | O18: Tipo Sal.(²) | P18: C.R. % | Q18: K (CLASE) | R18: PENALIZ. PROGRAM. | S18: REDUCC. PROGRAM. | T18: PENALIZACIÓN FORZADA Por Salida 1ras. 3 hs. hs. Restantes | W18: REDUCC. FORZADA Por Salida 1ras. 3 hs. hs. Restantes | Z18: RESTANTE FORZADA | AA18: REDUCC. RESTANTE | AB18: Informó en Térm. | AC18: TOTAL PENALIZAC.
AC19: ='LI-05 (3)'!AC41 -> 30592.04
C21: 59 | D21: 302994 | E21: 1441 | F21: PERGAMINO - ARRECIFES | G21: 66 | H21: 43.79999924 | I21: B | J21: =IF(G21=220,$G$14,IF(G21=132,$G$15,$G$16))*IF(H21>25,H21,25)/100 -> 164.4602371 | K21: 2016-05-20T08:26:00 | L21: 2016-05-20T16:20:00 | M21: =IF(F21="","",(L21-K21)*24) -> 7.9 | N21: =IF(F21="","",ROUND((L21-K21)*24*60,0)) -> 474 | O21: P | P21: 0,000 | Q21: =IF(I21="A",$M$14,IF(I21="B",$M$15,$M$16)) -> 50 | R21: =IF(O21="P",ROUND(N21/60,2)*J21*Q21*0.01,"--") -> 649.6179367 | S21: =IF(O21="RP",ROUND(N21/60,2)*J21*Q21*0.01*P21/100,"--") -> -- | T21: =IF(O21="F",J21*Q21,"--") -> -- | U21: =IF(AND(N21>10,O21="F"),J21*Q21*IF(N21>180,3,ROUND((N21)/60,2)),"--") -> -- | V21: =IF(AND(O21="F",N21>180),(ROUND(N21/60,2)-3)*J21*Q21*0.1,"--") -> -- | W21: =IF(O21="R",J21*Q21*P21/100,"--") -> -- | X21: =IF(AND(N21>10,O21="R"),Q21*J21*P21/100*IF(N21>180,3,ROUND((N21)/60,2)),"--") -> -- | Y21: =IF(AND(O21="R",N21>180),(ROUND(N21/60,2)-3)*J21*Q21*0.1*P21/100,"--") -> -- | Z21: =IF(O21="RF",ROUND(N21/60,2)*J21*Q21*0.1,"--") -> -- | AA21: =IF(O21="RR",ROUND(N21/60,2)*J21*Q21*0.1*P21/100,"--") -> -- | AB21: SI | AC21: =IF(F21="","",SUM(R21:AA21)*IF(AB21="SI",1,2)) -> 649.6179367
C22: 60 | D22: 302995 | E22: 1382 | F22: URBANA SAN NICOLAS - SAN NICOLAS | G22: 132 | H22: 6.5 | I22: C | J22: 93.87 | K22: 2016-05-20T08:41:00 | L22: 2016-05-20T15:29:00 | M22: 6.8 | N22: 408 | O22: P | P22: 0,000 | Q22: 10 | R22: 63.8316 | S22: -- | T22: -- | U22: -- | V22: -- | W22: -- | X22: -- | Y22: -- | Z22: -- | AA22: -- | AB22: SI | AC22: 63.8316
C23: 61 | D23: 302996 | E23: 3483 | F23: BAHIA BLANCA - PETROQ. BAHIA BLANCA 3 | G23: 132 | H23: 29.79999924 | I23: C | J23: 111.8930371 | K23: 2016-05-20T09:07:00 | L23: 2016-05-20T14:16:00 | M23: 5.15 | N23: 309 | O23: P | P23: 0,000 | Q23: 10 | R23: 57.62491412 | S23: -- | T23: -- | U23: -- | V23: -- | W23: -- | X23: -- | Y23: -- | Z23: -- | AA23: -- | AB23: SI | AC23: 57.62491412
C25: 63 | D25: 302999 | E25: 3483 | F25: BAHIA BLANCA - PETROQ. BAHIA BLANCA 3 | G25: 132 | H25: 29.79999924 | I25: C | J25: 111.8930371 | K25: 2016-05-21T07:37:00 | L25: 2016-05-21T17:20:00 | M25: 9.716666667 | N25: 583 | O25: P | P25: 0,000 | Q25: 10 | R25: 108.7600321 | S25: -- | T25: -- | U25: -- | V25: -- | W25: -- | X25: -- | Y25: -- | Z25: -- | AA25: -- | AB25: SI | AC25: 108.7600321
C26: 64 | D26: 303000 | E26: 1534 | F26: BAHIA BLANCA - NORTE II | G26: 132 | H26: 19 | I26: C | J26: 93.87 | K26: 2016-05-21T07:45:00 | L26: 2016-05-21T17:25:00 | M26: 9.666666667 | N26: 580 | O26: P | P26: 0,000 | Q26: 10 | R26: 90.77229 | S26: -- | T26: -- | U26: -- | V26: -- | W26: -- | X26: -- | Y26: -- | Z26: -- | AA26: -- | AB26: SI | AC26: 90.77229
C27: 65 | D27: 303001 | E27: 1416 | F27: LINCOLN - BRAGADO | G27: 132 | H27: 109.4000015 | I27: C | J27: 410.7751257 | K27: 2016-05-21T08:04:00 | L27: 2016-05-21T16:29:00 | M27: 8.416666667 | N27: 505 | O27: P | P27: 0,000 | Q27: 10 | R27: 345.8726559 | S27: -- | T27: -- | U27: -- | V27: -- | W27: -- | X27: -- | Y27: -- | Z27: -- | AA27: -- | AB27: SI | AC27: 345.8726559
C28: 66 | D28: 303002 | E28: 3483 | F28: BAHIA BLANCA - PETROQ. BAHIA BLANCA 3 | G28: 132 | H28: 29.79999924 | I28: C | J28: 111.8930371 | K28: 2016-05-22T07:44:00 | L28: 2016-05-22T16:36:00 | M28: 8.866666667 | N28: 532 | O28: P | P28: 0,000 | Q28: 10 | R28: 99.24912394 | S28: -- | T28: -- | U28: -- | V28: -- | W28: -- | X28: -- | Y28: -- | Z28: -- | AA28: -- | AB28: SI | AC28: 99.24912394
C29: 67 | D29: 303004 | E29: 1534 | F29: BAHIA BLANCA - NORTE II | G29: 132 | H29: 19 | I29: C | J29: 93.87 | K29: 2016-05-22T07:54:00 | L29: 2016-05-22T17:04:00 | M29: 9.166666667 | N29: 550 | O29: P | P29: 0,000 | Q29: 10 | R29: 86.07879 | S29: -- | T29: -- | U29: -- | V29: -- | W29: -- | X29: -- | Y29: -- | Z29: -- | AA29: -- | AB29: SI | AC29: 86.07879
C30: 68 | D30: 303008 | E30: 4277 | F30: SAN PEDRO - RAMALLO INDUSTRIAL | G30: 132 | H30: 58 | I30: C | J30: 217.7784 | K30: 2016-05-22T09:03:00 | L30: 2016-05-22T17:23:00 | M30: 8.333333333 | N30: 500 | O30: P | P30: 0,000 | Q30: 10 | R30: 181.4094072 | S30: -- | T30: -- | U30: -- | V30: -- | W30: -- | X30: -- | Y30: -- | Z30: -- | AA30: -- | AB30: SI | AC30: 181.4094072
C31: 69 | D31: 303009 | E31: 1449 | F31: OLAVARRIA - TANDIL | G31: 132 | H31: 133.1999969 | I31: A | J31: 500.1393485 | K31: 2016-05-22T10:16:00 | L31: 2016-05-22T17:38:00 | M31: 7.366666667 | N31: 442 | O31: P | P31: 0,000 | Q31: 150 | R31: 5529.040498 | S31: -- | T31: -- | U31: -- | V31: -- | W31: -- | X31: -- | Y31: -- | Z31: -- | AA31: -- | AB31: SI | AC31: 5529.040498
C32: 70 | D32: 303172 | E32: 1537 | F32: CNEL. SUAREZ - PIGUE | G32: 132 | H32: 47.59999847 | I32: C | J32: 178.7284743 | K32: 2016-05-23T08:29:00 | L32: 2016-05-23T17:16:00 | M32: 8.783333333 | N32: 527 | O32: P | P32: 0,000 | Q32: 10 | R32: 156.9236004 | S32: -- | T32: -- | U32: -- | V32: -- | W32: -- | X32: -- | Y32: -- | Z32: -- | AA32: -- | AB32: SI | AC32: 156.9236004
C33: 71 | D33: 303173 | E33: 4696 | F33: SIDERCA - CAMPANA | G33: 132 | H33: 0,38 | I33: C | J33: 1.426824 | K33: 2016-05-23T08:49:00 | L33: 2016-05-23T14:12:00 | M33: 5.383333333 | N33: 323 | O33: P | P33: 0,000 | Q33: 10 | R33: 0.767631312 | S33: -- | T33: -- | U33: -- | V33: -- | W33: -- | X33: -- | Y33: -- | Z33: -- | AA33: -- | AB33: SI | AC33: 0.767631312
C34: 72 | D34: 303177 | E34: 1537 | F34: CNEL. SUAREZ - PIGUE | G34: 132 | H34: 47.59999847 | I34: C | J34: 178.7284743 | K34: 2016-05-24T08:31:00 | L34: 2016-05-24T17:26:00 | M34: 8.916666667 | N34: 535 | O34: P | P34: 0,000 | Q34: 10 | R34: 159.425799 | S34: -- | T34: -- | U34: -- | V34: -- | W34: -- | X34: -- | Y34: -- | Z34: -- | AA34: -- | AB34: SI | AC34: 159.425799
C35: 73 | D35: 303181 | E35: 3796 | F35: C. SARMIENTO - S. A. ARECO | G35: 66 | H35: 31.5 | I35: C | J35: 118.2762 | K35: 2016-05-24T10:19:00 | L35: 2016-05-24T13:38:00 | M35: 3.316666667 | N35: 199 | O35: P | P35: 0,000 | Q35: 10 | R35: 39.2676984 | S35: -- | T35: -- | U35: -- | V35: -- | W35: -- | X35: -- | Y35: -- | Z35: -- | AA35: -- | AB35: SI | AC35: 39.2676984
C36: 74 | D36: 303182 | E36: 1537 | F36: CNEL. SUAREZ - PIGUE | G36: 132 | H36: 47.59999847 | I36: C | J36: 178.7284743 | K36: 2016-05-26T08:45:00 | L36: 2016-05-26T17:23:00 | M36: 8.633333333 | N36: 518 | O36: P | P36: 0,000 | Q36: 10 | R36: 154.2426733 | S36: -- | T36: -- | U36: -- | V36: -- | W36: -- | X36: -- | Y36: -- | Z36: -- | AA36: -- | AB36: SI | AC36: 154.2426733
C37: 75 | D37: 303184 | E37: 4702 | F37: CHACABUCO IND. - SALTO 1 | G37: 132 | H37: 48.59999847 | I37: C | J37: 182.4832743 | K37: 2016-05-26T09:17:00 | L37: 2016-05-26T15:07:00 | M37: 5.833333333 | N37: 350 | O37: P | P37: 0,000 | Q37: 10 | R37: 106.3877489 | S37: -- | T37: -- | U37: -- | V37: -- | W37: -- | X37: -- | Y37: -- | Z37: -- | AA37: -- | AB37: SI | AC37: 106.3877489
C38: 76 | D38: 303186 | E38: 1445 | F38: VILLA GESELL - GRAL. MADARIAGA | G38: 132 | H38: 35 | I38: C | J38: 131.418 | K38: 2016-05-26T09:48:00 | L38: 2016-05-26T23:17:00 | M38: 13.48333333 | N38: 809 | O38: P | P38: 0,000 | Q38: 10 | R38: 177.151464 | S38: -- | T38: -- | U38: -- | V38: -- | W38: -- | X38: -- | Y38: -- | Z38: -- | AA38: -- | AB38: SI | AC38: 177.151464
C39: 77 | D39: 303190 | E39: 2713 | F39: VILLA LIA "T" - VILLA LÍA | G39: 132 | H39: 8 | I39: C | J39: 93.87 | K39: 2016-05-26T10:51:00 | L39: 2016-05-26T15:09:00 | M39: 4.3 | N39: 258 | O39: P | P39: 0,000 | Q39: 10 | R39: 40.3641 | S39: -- | T39: -- | U39: -- | V39: -- | W39: -- | X39: -- | Y39: -- | Z39: -- | AA39: -- | AB39: SI | AC39: 40.3641
C40: 78 | D40: 303191 | E40: 1409 | F40: CHIVILCOY - MERCEDES B.A. | G40: 132 | H40: 69.09999847 | I40: C | J40: 259.4566743 | K40: 2016-05-26T22:01:00 | L40: 2016-05-26T22:03:00 | M40: 0.03333333327 | N40: 2 | O40: F | P40: 0,000 | Q40: 10 | R40: =IF(O40="P",ROUND(N40/60,2)*J40*Q40*0.01,"--") -> -- | S40: -- | T40: 2594.566743 | U40: -- | V40: -- | W40: -- | X40: -- | Y40: -- | Z40: -- | AA40: -- | AB40: SI | AC40: 2594.566743
C42: (²) | D42: P - PROGRAMADA ; F - FORZADA | R42: =SUM(R19:R41) -> 8046.787963 | S42: 0 | T42: 2594.566743 | U42: 0 | V42: 0 | W42: 0 | X42: 0 | Y42: 0 | Z42: 0 | AA42: 0 | AC42: =ROUND(SUM(AC19:AC41),2) -> 41233.39

Sheet LI-05 (5)
B2: ='TOT-0516'!B2 -> ANEXO VI al Memorándum D.T.E.E. N° 243/2017
F8: SISTEMA DE TRANSPORTE DE ENERGÍA ELÉCTRICA POR DISTRIBUCIÓN TRONCAL - TRANSBA S.A.
F10: 1.- LÍNEAS
B12: =+'TOT-0516'!B14 -> Desde el 01 al 31 de mayo de 2016
F14: $/100 km-h : LÍNEAS 220 kV | G14: 392.94 | L14: FACTOR DE PENALIZACIÓN (CLASE A) K= | M14: =150*'TOT-0516'!B13 -> 150 | N14: =IF(M14=150," ",IF(M14=300,"Coeficiente duplicado por tasa de falla >4 Sal. x año/100 km.","REVISAR COEFICIENTE")) -> 
F15: $/100 km-h : LÍNEAS 132 kV | G15: 375.48 | L15: FACTOR DE PENALIZACIÓN (CLASE B) K= | M15: =50*'TOT-0516'!B13 -> 50 | N15: =IF(M15=50," ",IF(M15=100,"Coeficiente duplicado por tasa de falla >4 Sal. x año/100 km.","REVISAR COEFICIENTE")) -> 
F16: $/100 km-h : LÍNEAS 66 kV | G16: 375.48 | L16: FACTOR DE PENALIZACIÓN (CLASE C) K= | M16: =10*'TOT-0516'!B13 -> 10 | N16: =IF(M16=10," ",IF(M16=20,"Coeficiente duplicado por tasa de falla >4 Sal. x año/100 km.","REVISAR COEFICIENTE")) -> 
C17: 3 | D17: 4 | E17: 5 | F17: 6 | G17: 7 | H17: 8 | I17: 9 | J17: 10 | K17: 11 | L17: 12 | M17: 13 | N17: 14 | O17: 15 | P17: 16 | Q17: 17 | R17: 18 | S17: 19 | T17: 20 | U17: 21 | V17: 22 | W17: 23 | X17: 24 | Y17: 25 | Z17: 26 | AA17: 27 | AB17: 28 | AC17: 29
C18: N° | D18: INDISP | E18: ID EQUIPO | F18: LÍNEAS | G18: U [kV] | H18: Long. [km] | I18: CLASE | J18: $/h | K18: Salida | L18: Entrada | M18: Hs. Indisp | N18: Minutos Indisp. | O18: Tipo Sal.(²) | P18: C.R. % | Q18: K (CLASE) | R18: PENALIZ. PROGRAM. | S18: REDUCC. PROGRAM. | T18: PENALIZACIÓN FORZADA Por Salida 1ras. 3 hs. hs. Restantes | W18: REDUCC. FORZADA Por Salida 1ras. 3 hs. hs. Restantes | Z18: RESTANTE FORZADA | AA18: REDUCC. RESTANTE | AB18: Informó en Térm. | AC18: TOTAL PENALIZAC.
AC19: ='LI-05 (4)'!AC42 -> 41233.39
C21: 79 | D21: 303192 | E21: 1537 | F21: CNEL. SUAREZ - PIGUE | G21: 132 | H21: 47.59999847 | I21: C | J21: =IF(G21=220,$G$14,IF(G21=132,$G$15,$G$16))*IF(H21>25,H21,25)/100 -> 178.7284743 | K21: 2016-05-27T08:12:00 | L21: 2016-05-27T15:48:00 | M21: =IF(F21="","",(L21-K21)*24) -> 7.6 | N21: =IF(F21="","",ROUND((L21-K21)*24*60,0)) -> 456 | O21: P | P21: 0,000 | Q21: =IF(I21="A",$M$14,IF(I21="B",$M$15,$M$16)) -> 10 | R21: =IF(O21="P",ROUND(N21/60,2)*J21*Q21*0.01,"--") -> 135.8336404 | S21: =IF(O21="RP",ROUND(N21/60,2)*J21*Q21*0.01*P21/100,"--") -> -- | T21: =IF(O21="F",J21*Q21,"--") -> -- | U21: =IF(AND(N21>10,O21="F"),J21*Q21*IF(N21>180,3,ROUND((N21)/60,2)),"--") -> -- | V21: =IF(AND(O21="F",N21>180),(ROUND(N21/60,2)-3)*J21*Q21*0.1,"--") -> -- | W21: =IF(O21="R",J21*Q21*P21/100,"--") -> -- | X21: =IF(AND(N21>10,O21="R"),Q21*J21*P21/100*IF(N21>180,3,ROUND((N21)/60,2)),"--") -> -- | Y21: =IF(AND(O21="R",N21>180),(ROUND(N21/60,2)-3)*J21*Q21*0.1*P21/100,"--") -> -- | Z21: =IF(O21="RF",ROUND(N21/60,2)*J21*Q21*0.1,"--") -> -- | AA21: =IF(O21="RR",ROUND(N21/60,2)*J21*Q21*0.1*P21/100,"--") -> -- | AB21: SI | AC21: =IF(F21="","",SUM(R21:AA21)*IF(AB21="SI",1,2)) -> 135.8336404
C22: 80 | D22: 303196 | E22: 2713 | F22: VILLA LIA "T" - VILLA LÍA | G22: 132 | H22: 8 | I22: C | J22: 93.87 | K22: 2016-05-27T09:10:00 | L22: 2016-05-27T13:39:00 | M22: 4.483333333 | N22: 269 | O22: P | P22: 0,000 | Q22: 10 | R22: 42.05376 | S22: -- | T22: -- | U22: -- | V22: -- | W22: -- | X22: -- | Y22: -- | Z22: -- | AA22: -- | AB22: SI | AC22: 42.05376
C23: 81 | D23: 303199 | E23: 1409 | F23: CHIVILCOY - MERCEDES B.A. | G23: 132 | H23: 69.09999847 | I23: C | J23: 259.4566743 | K23: 2016-05-28T08:28:00 | L23: 2016-05-28T11:43:00 | M23: 3.25 | N23: 195 | O23: P | P23: 0,000 | Q23: 10 | R23: 84.32341914 | S23: -- | T23: -- | U23: -- | V23: -- | W23: -- | X23: -- | Y23: -- | Z23: -- | AA23: -- | AB23: SI | AC23: 84.32341914
C24: 82 | D24: 303249 | E24: 1445 | F24: VILLA GESELL - GRAL. MADARIAGA | G24: 132 | H24: 35 | I24: C | J24: 131.418 | K24: 2016-05-30T10:52:00 | L24: 2016-05-30T17:13:00 | M24: 6.35 | N24: 381 | O24: P | P24: 0,000 | Q24: 10 | R24: 83.45043 | S24: -- | T24: -- | U24: -- | V24: -- | W24: -- | X24: -- | Y24: -- | Z24: -- | AA24: -- | AB24: SI | AC24: 83.45043
C25: 83 | D25: 303252 | E25: 1445 | F25: VILLA GESELL - GRAL. MADARIAGA | G25: 132 | H25: 35 | I25: C | J25: 131.418 | K25: 2016-05-31T09:12:00 | L25: 2016-05-31T17:21:00 | M25: 8.15 | N25: 489 | O25: P | P25: 0,000 | Q25: 10 | R25: 107.10567 | S25: -- | T25: -- | U25: -- | V25: -- | W25: -- | X25: -- | Y25: -- | Z25: -- | AA25: -- | AB25: SI | AC25: 107.10567
C26: 84 | D26: 303253 | E26: 4831 | F26: NORTE II - LOS CHAÑARES | G26: 132 | H26: 15.72999954 | I26: C | J26: 93.87 | K26: 2016-05-31T09:43:00 | L26: 2016-05-31T17:25:00 | M26: 7.7 | N26: 462 | O26: P | P26: 0,000 | Q26: 10 | R26: 72.2799 | S26: -- | T26: -- | U26: -- | V26: -- | W26: -- | X26: -- | Y26: -- | Z26: -- | AA26: -- | AB26: SI | AC26: 72.2799
J27: 93.87 | P27: =IF(F27="","","--") ->  | Q27: 10 | R27: -- | S27: -- | T27: -- | U27: -- | V27: -- | W27: -- | X27: -- | Y27: -- | Z27: -- | AA27: -- | AB27: =IF(F27="","","SI") -> 
J28: 93.87 | Q28: 10 | R28: -- | S28: -- | T28: -- | U28: -- | V28: -- | W28: -- | X28: -- | Y28: -- | Z28: -- | AA28: --
J29: 93.87 | Q29: 10 | R29: -- | S29: -- | T29: -- | U29: -- | V29: -- | W29: -- | X29: -- | Y29: -- | Z29: -- | AA29: --
J30: 93.87 | Q30: 10 | R30: -- | S30: -- | T30: -- | U30: -- | V30: -- | W30: -- | X30: -- | Y30: -- | Z30: -- | AA30: --
J31: 93.87 | Q31: 10 | R31: -- | S31: -- | T31: -- | U31: -- | V31: -- | W31: -- | X31: -- | Y31: -- | Z31: -- | AA31: --
J32: 93.87 | Q32: 10 | R32: -- | S32: -- | T32: -- | U32: -- | V32: -- | W32: -- | X32: -- | Y32: -- | Z32: -- | AA32: --
J33: 93.87 | Q33: 10 | R33: -- | S33: -- | T33: -- | U33: -- | V33: -- | W33: -- | X33: -- | Y33: -- | Z33: -- | AA33: --
J34: 93.87 | Q34: 10 | R34: -- | S34: -- | T34: -- | U34: -- | V34: -- | W34: -- | X34: -- | Y34: -- | Z34: -- | AA34: --
J35: 93.87 | Q35: 10 | R35: -- | S35: -- | T35: -- | U35: -- | V35: -- | W35: -- | X35: -- | Y35: -- | Z35: -- | AA35: --
J36: 93.87 | Q36: 10 | R36: -- | S36: -- | T36: -- | U36: -- | V36: -- | W36: -- | X36: -- | Y36: -- | Z36: -- | AA36: --
J37: 93.87 | Q37: 10 | R37: -- | S37: -- | T37: -- | U37: -- | V37: -- | W37: -- | X37: -- | Y37: -- | Z37: -- | AA37: --
J38: 93.87 | Q38: 10 | R38: -- | S38: -- | T38: -- | U38: -- | V38: -- | W38: -- | X38: -- | Y38: -- | Z38: -- | AA38: --
J39: 93.87 | Q39: 10 | R39: -- | S39: -- | T39: -- | U39: -- | V39: -- | W39: -- | X39: -- | Y39: -- | Z39: -- | AA39: --
J40: 93.87 | Q40: 10 | R40: =IF(O40="P",ROUND(N40/60,2)*J40*Q40*0.01,"--") -> -- | S40: -- | T40: -- | U40: -- | V40: -- | W40: -- | X40: -- | Y40: -- | Z40: -- | AA40: --
C42: (²) | D42: P - PROGRAMADA | R42: =SUM(R19:R41) -> 525.0468196 | S42: 0 | T42: 0 | U42: 0 | V42: 0 | W42: 0 | X42: 0 | Y42: 0 | Z42: 0 | AA42: 0 | AC42: =ROUND(SUM(AC19:AC41),2) -> 41758.44

Sheet T-05 (1)
B2: ='TOT-0516'!B2 -> ANEXO VI al Memorándum D.T.E.E. N° 243/2017
F8: SISTEMA DE TRANSPORTE DE ENERGÍA ELÉCTRICA POR DISTRIBUCIÓN TRONCAL - TRANSBA S.A.
F10: 2.- CONEXIÓN
F12: 2.1.- Transformación
B14: ='TOT-0516'!B14 -> Desde el 01 al 31 de mayo de 2016
F16: Por Transformador por MVA $ = | I16: 1.31
F17: Coeficiente de penalización por salida forzada = | I17: =60*'TOT-0516'!B13 -> 60 | K17: =IF(I17=60," ",IF(I17=120," Coeficiente duplicado por tasa de falla >4 Sal. x año/100 km."," REVISAR COEFICIENTE")) -> 
C18: 3 | D18: 4 | E18: 5 | F18: 6 | G18: 7 | H18: 8 | I18: 9 | J18: 10 | K18: 11 | L18: 12 | M18: 13 | N18: 14 | O18: 15 | P18: 16 | Q18: 17 | R18: 18 | S18: 19 | T18: 20 | U18: 21 | V18: 22 | W18: 23 | X18: 24 | Y18: 25 | Z18: 26 | AA18: 27 | AB18: 28 | AC18: 29
C19: N° | D19: INDISP | E19: ID EQUIPO | F19: ESTACIÓN TRANSFORMADORA | G19: EQUIPO | H19: POT. [MVA] | I19: U [kV] | J19: $/h | K19: Salida | L19: Entrada | M19: Hs Indisp. | N19: Minutos. Indisp. | O19: Tipo Sal.(²) | P19: AUT. | Q19: C.R. % | R19: E.N.S. | S19: K (P y ENS) | T19: PENALIZ. PROGRAM. | U19: REDUCC. PROGRAM. | V19: PENALIZACIÓN FORZADA Por Salida hs. Restantes | X19: REDUCC. FORZADA Por Salida hs. Restantes | Z19: RESTANTE FORZADA | AA19: REDUCC. RESTANTE | AB19: Informó en Térm. | AC19: TOTAL PENALIZAC.
C21: 85 | D21: 301984 | E21: 2564 | F21: PRINGLES | G21: T1CF | H21: 10 | I21: 132/13,2/13,2 | J21: =H21*$I$16 -> 13.1 | K21: 2016-05-01 | L21: 2016-05-03T17:41:00 | M21: =IF(F21="","",(L21-K21)*24) -> 65.68333333 | N21: =IF(F21="","",ROUND((L21-K21)*24*60,0)) -> 3941 | O21: P | P21: =IF(F21="","",IF(OR(O21="P",O21="RP"),"--","NO")) -> -- | Q21: 0,000 | R21: NO | S21: =$I$17*IF(OR(O21="P",O21="RP"),0.1,1)*IF(R21="SI",1,0.1) -> 0.6 | T21: =IF(O21="P",J21*S21*ROUND(N21/60,2),"--") -> 516.2448 | U21: =IF(O21="RP",J21*S21*ROUND(N21/60,2)*Q21/100,"--") -> -- | V21: =IF(AND(O21="F",P21="NO"),J21*S21,"--") -> -- | W21: =IF(O21="F",J21*S21*ROUND(N21/60,2),"--") -> -- | X21: =IF(AND(O21="R",P21="NO"),J21*S21*Q21/100,"--") -> -- | Y21: =IF(O21="R",J21*S21*ROUND(N21/60,2)*Q21/100,"--") -> -- | Z21: =IF(O21="RF",J21*S21*ROUND(N21/60,2),"--") -> -- | AA21: =IF(O21="RR",J21*S21*ROUND(N21/60,2)*Q21/100,"--") -> -- | AB21: =IF(F21="","","SI") -> SI | AC21: =IF(F21="","",SUM(T21:AA21)*IF(AB21="SI",1,2)*IF(AND(Q21<>"0,000",O21="RF"),Q21/100,1)) -> 516.2448
C22: 86 | D22: 302343 | E22: 2296 | F22: OLAVARRIA VIEJA | G22: T1OA | H22: 30 | I22: 132/33/13,2 | J22: 39.3 | K22: 2016-05-03T09:27:00 | L22: 2016-05-03T11:09:00 | M22: =IF(F22="","",(L22-K22)*24) -> 1.7 | N22: =IF(F22="","",ROUND((L22-K22)*24*60,0)) -> 102 | O22: P | P22: =IF(F22="","",IF(OR(O22="P",O22="RP"),"--","NO")) -> -- | Q22: 0,000 | R22: NO | S22: =$I$17*IF(OR(O22="P",O22="RP"),0.1,1)*IF(R22="SI",1,0.1) -> 0.6 | T22: =IF(O22="P",J22*S22*ROUND(N22/60,2),"--") -> 40.086 | U22: =IF(O22="RP",J22*S22*ROUND(N22/60,2)*Q22/100,"--") -> -- | V22: =IF(AND(O22="F",P22="NO"),J22*S22,"--") -> -- | W22: =IF(O22="F",J22*S22*ROUND(N22/60,2),"--") -> -- | X22: =IF(AND(O22="R",P22="NO"),J22*S22*Q22/100,"--") -> -- | Y22: =IF(O22="R",J22*S22*ROUND(N22/60,2)*Q22/100,"--") -> -- | Z22: =IF(O22="RF",J22*S22*ROUND(N22/60,2),"--") -> -- | AA22: =IF(O22="RR",J22*S22*ROUND(N22/60,2)*Q22/100,"--") -> -- | AB22: =IF(F22="","","SI") -> SI | AC22: =IF(F22="","",SUM(T22:AA22)*IF(AB22="SI",1,2)*IF(AND(Q22<>"0,000",O22="RF"),Q22/100,1)) -> 40.086
C23: 87 | D23: 302345 | E23: 2320 | F23: G. CHAVES | G23: Trafo 1 | H23: 10 | I23: 132/33/13,2 | J23: 13.1 | K23: 2016-05-03T10:13:00 | L23: 2016-05-03T17:50:00 | M23: 7.616666667 | N23: 457 | O23: P | P23: =IF(F23="","",IF(OR(O23="P",O23="RP"),"--","NO")) -> -- | Q23: 0,000 | R23: NO | S23: 0.6 | T23: 59.8932 | U23: -- | V23: -- | W23: -- | X23: -- | Y23: -- | Z23: -- | AA23: -- | AB23: =IF(F23="","","SI") -> SI | AC23: =IF(F23="","",SUM(T23:AA23)*IF(AB23="SI",1,2)*IF(AND(Q23<>"0,000",O23="RF"),Q23/100,1)) -> 59.8932
C24: 88 | D24: 302352 | E24: 2187 | F24: CARLOS CASARES | G24: Trafo 2 | H24: 5 | I24: 66/13,2 | J24: 6.55 | K24: 2016-05-05T07:32:00 | L24: 2016-05-05T17:15:00 | M24: 9.716666667 | N24: 583 | O24: P | P24: -- | Q24: 0,000 | R24: NO | S24: 0.6 | T24: 38.1996 | U24: -- | V24: -- | W24: -- | X24: -- | Y24: -- | Z24: -- | AA24: -- | AB24: SI | AC24: 38.1996
C25: 89 | D25: 302356 | E25: 2320 | F25: G. CHAVES | G25: Trafo 1 | H25: 10 | I25: 132/33/13,2 | J25: 13.1 | K25: 2016-05-05T09:39:00 | L25: 2016-05-05T17:56:00 | M25: 8.283333333 | N25: 497 | O25: P | P25: -- | Q25: 0,000 | R25: NO | S25: 0.6 | T25: 65.0808 | U25: -- | V25: -- | W25: -- | X25: -- | Y25: -- | Z25: -- | AA25: -- | AB25: SI | AC25: 65.0808
C26: 90 | D26: 302357 | E26: 2665 | F26: SAN NICOLAS | G26: Trafo | H26: 30 | I26: 132/33/13,2 | J26: 39.3 | K26: 2016-05-05T09:41:00 | L26: 2016-05-05T15:19:00 | M26: 5.633333333 | N26: 338 | O26: P | P26: -- | Q26: 0,000 | R26: NO | S26: 0.6 | T26: 132.7554 | U26: -- | V26: -- | W26: -- | X26: -- | Y26: -- | Z26: -- | AA26: -- | AB26: SI | AC26: 132.7554
C28: 92 | D28: 302364 | E28: 2665 | F28: SAN NICOLAS | G28: Trafo | H28: 30 | I28: 132/33/13,2 | J28: 39.3 | K28: 2016-05-06T09:44:00 | L28: 2016-05-06T15:02:00 | M28: 5.3 | N28: 318 | O28: P | P28: -- | Q28: 0,000 | R28: NO | S28: 0.6 | T28: 124.974 | U28: -- | V28: -- | W28: -- | X28: -- | Y28: -- | Z28: -- | AA28: -- | AB28: SI | AC28: 124.974
C29: 93 | D29: 302367 | E29: 2667 | F29: LUJAN | G29: Trafo 1 | H29: 30 | I29: 132/33/13,2 | J29: 39.3 | K29: 2016-05-07T13:05:00 | L29: 2016-05-07T18:19:00 | M29: 5.233333333 | N29: 314 | O29: P | P29: -- | Q29: 0,000 | R29: NO | S29: 0.6 | T29: 123.3234 | U29: -- | V29: -- | W29: -- | X29: -- | Y29: -- | Z29: -- | AA29: -- | AB29: SI | AC29: 123.3234
C30: 94 | D30: 302371 | E30: 4420 | F30: MERCEDES BS.AS | G30: T1MD | H30: 30 | I30: 132/33/13,2 | J30: 39.3 | K30: 2016-05-08T07:57:00 | L30: 2016-05-08T12:32:00 | M30: 4.583333333 | N30: 275 | O30: P | P30: -- | Q30: 0,000 | R30: NO | S30: 0.6 | T30: 107.9964 | U30: -- | V30: -- | W30: -- | X30: -- | Y30: -- | Z30: -- | AA30: -- | AB30: SI | AC30: 107.9964
C31: 95 | D31: 302373 | E31: 2607 | F31: CAMPANA | G31: Trafo 1 | H31: 30 | I31: 132/33/13,2 | J31: 39.3 | K31: 2016-05-08T08:19:00 | L31: 2016-05-08T17:58:00 | M31: 9.65 | N31: 579 | O31: P | P31: -- | Q31: 0,000 | R31: NO | S31: 0.6 | T31: 227.547 | U31: -- | V31: -- | W31: -- | X31: -- | Y31: -- | Z31: -- | AA31: -- | AB31: SI | AC31: 227.547
C32: 96 | D32: 302379 | E32: 2259 | F32: HENDERSON | G32: Trafo 5 | H32: 15 | I32: 132/33/13,2 | J32: 19.65 | K32: 2016-05-08T09:32:00 | L32: 2016-05-08T16:30:00 | M32: 6.966666667 | N32: 418 | O32: P | P32: -- | Q32: 0,000 | R32: NO | S32: 0.6 | T32: 82.1763 | U32: -- | V32: -- | W32: -- | X32: -- | Y32: -- | Z32: -- | AA32: -- | AB32: SI | AC32: 82.1763
C33: 97 | D33: 302381 | E33: 2310 | F33: TANDIL | G33: T2TD | H33: 30 | I33: 132/33/13,2 | J33: 39.3 | K33: 2016-05-08T11:51:00 | L33: 2016-05-08T12:48:00 | M33: 0.95 | N33: 57 | O33: P | P33: -- | Q33: 0,000 | R33: NO | S33: 0.6 | T33: 22.401 | U33: -- | V33: -- | W33: -- | X33: -- | Y33: -- | Z33: -- | AA33: -- | AB33: SI | AC33: 22.401
C34: 98 | D34: 302383 | E34: 4485 | F34: MERCEDES BS.AS | G34: T2MD | H34: 30 | I34: 132/33/13,2 | J34: 39.3 | K34: 2016-05-08T12:34:00 | L34: 2016-05-08T16:34:00 | M34: 4 | N34: 240 | O34: P | P34: -- | Q34: 0,000 | R34: NO | S34: 0.6 | T34: 94.32 | U34: -- | V34: -- | W34: -- | X34: -- | Y34: -- | Z34: -- | AA34: -- | AB34: SI | AC34: 94.32
C35: 99 | D35: 302665 | E35: 2096 | F35: S. NIC. URBANA | G35: Trafo 2 | H35: 44 | I35: 132/13,2/13,2 | J35: 57.64 | K35: 2016-05-09T08:20:00 | L35: 2016-05-09T14:43:00 | M35: 6.383333333 | N35: 383 | O35: P | P35: -- | Q35: 0,000 | R35: NO | S35: 0.6 | T35: 220.64592 | U35: -- | V35: -- | W35: -- | X35: -- | Y35: -- | Z35: -- | AA35: -- | AB35: SI | AC35: 220.64592
C36: 100 | D36: 302675 | E36: 2096 | F36: S. NIC. URBANA | G36: Trafo 2 | H36: 44 | I36: 132/13,2/13,2 | J36: 57.64 | K36: 2016-05-10T08:28:00 | L36: 2016-05-10T14:51:00 | M36: 6.383333333 | N36: 383 | O36: P | P36: -- | Q36: 0,000 | R36: NO | S36: 0.6 | T36: 220.64592 | U36: -- | V36: -- | W36: -- | X36: -- | Y36: -- | Z36: -- | AA36: -- | AB36: SI | AC36: 220.64592
C37: 101 | D37: 302679 | E37: 2297 | F37: OLAVARRIA VIEJA | G37: T2OA | H37: 30 | I37: 132/33/13,2 | J37: 39.3 | K37: 2016-05-10T09:16:00 | L37: 2016-05-10T14:41:00 | M37: 5.416666667 | N37: 325 | O37: P | P37: -- | Q37: 0,000 | R37: NO | S37: 0.6 | T37: 127.8036 | U37: -- | V37: -- | W37: -- | X37: -- | Y37: -- | Z37: -- | AA37: -- | AB37: SI | AC37: 127.8036
C38: 102 | D38: 302680 | E38: 4432 | F38: T. LAUQUEN | G38: Trafo 4 | H38: 40 | I38: 132/66/13,2 | J38: 52.4 | K38: 2016-05-10T10:27:00 | L38: 2016-05-10T14:12:00 | M38: 3.75 | N38: 225 | O38: P | P38: -- | Q38: 0,000 | R38: NO | S38: 0.6 | T38: 117.9 | U38: -- | V38: -- | W38: -- | X38: -- | Y38: -- | Z38: -- | AA38: -- | AB38: SI | AC38: 117.9
C39: 103 | D39: 302685 | E39: 2096 | F39: S. NIC. URBANA | G39: Trafo 2 | H39: 44 | I39: 132/13,2/13,2 | J39: 57.64 | K39: 2016-05-11T08:16:00 | L39: 2016-05-11T15:04:00 | M39: 6.8 | N39: 408 | O39: P | P39: -- | Q39: 0,000 | R39: NO | S39: 0.6 | T39: 235.1712 | U39: -- | V39: -- | W39: -- | X39: -- | Y39: -- | Z39: -- | AA39: -- | AB39: SI | AC39: 235.1712
C40: 104 | D40: 302687 | E40: 2297 | F40: OLAVARRIA VIEJA | G40: T2OA | H40: 30 | I40: 132/33/13,2 | J40: 39.3 | K40: 2016-05-11T08:41:00 | L40: 2016-05-11T16:57:00 | M40: 8.266666667 | N40: 496 | O40: P | P40: -- | Q40: 0,000 | R40: NO | S40: 0.6 | T40: 195.0066 | U40: -- | V40: -- | W40: -- | X40: -- | Y40: -- | Z40: -- | AA40: -- | AB40: SI | AC40: 195.0066
J41: 0 | Q41: =IF(F41="","","--") ->  | R41: =IF(F41="","","NO") ->  | S41: 6 | T41: -- | U41: -- | V41: -- | W41: -- | X41: -- | Y41: -- | Z41: -- | AA41: --
C43: (²) | D43: P - PROGRAMADA ; F - FORZADA | T43: =SUM(T20:T42) -> 2752.17114 | U43: =SUM(U20:U42) -> 0 | V43: =SUM(V20:V42) -> 0 | W43: =SUM(W22:W42) -> 0 | X43: =SUM(X20:X42) -> 0 | Y43: =SUM(Y22:Y42) -> 0 | Z43: =SUM(Z20:Z42) -> 0 | AA43: =SUM(AA22:AA42) -> 0 | AC43: =ROUND(SUM(AC20:AC42),2) -> 2752.17

Sheet T-05 (2)
B2: ='TOT-0516'!B2 -> ANEXO VI al Memorándum D.T.E.E. N° 243/2017
F8: SISTEMA DE TRANSPORTE DE ENERGÍA ELÉCTRICA POR DISTRIBUCIÓN TRONCAL - TRANSBA S.A.
F10: 2.- CONEXIÓN
F12: 2.1.- Transformación
B14: ='TOT-0516'!B14 -> Desde el 01 al 31 de mayo de 2016
F16: Por Transformador por MVA $ = | I16: 1.31
F17: Coeficiente de penalización por salida forzada = | I17: =60*'TOT-0516'!B13 -> 60 | K17: =IF(I17=60," ",IF(I17=120," Coeficiente duplicado por tasa de falla >4 Sal. x año/100 km."," REVISAR COEFICIENTE")) -> 
C18: 3 | D18: 4 | E18: 5 | F18: 6 | G18: 7 | H18: 8 | I18: 9 | J18: 10 | K18: 11 | L18: 12 | M18: 13 | N18: 14 | O18: 15 | P18: 16 | Q18: 17 | R18: 18 | S18: 19 | T18: 20 | U18: 21 | V18: 22 | W18: 23 | X18: 24 | Y18: 25 | Z18: 26 | AA18: 27 | AB18: 28 | AC18: 29
C19: N° | D19: INDISP | E19: ID EQUIPO | F19: ESTACIÓN TRANSFORMADORA | G19: EQUIPO | H19: POT. [MVA] | I19: U [kV] | J19: $/h | K19: Salida | L19: Entrada | M19: Hs Indisp. | N19: Minutos. Indisp. | O19: Tipo Sal.(²) | P19: AUT. | Q19: C.R. % | R19: E.N.S. | S19: K (P y ENS) | T19: PENALIZ. PROGRAM. | U19: REDUCC. PROGRAM. | V19: PENALIZACIÓN FORZADA Por Salida hs. Restantes | X19: REDUCC. FORZADA Por Salida hs. Restantes | Z19: RESTANTE FORZADA | AA19: REDUCC. RESTANTE | AB19: Informó en Térm. | AC19: TOTAL PENALIZAC.
AC20: ='T-05 (1)'!AC43 -> 2752.17
C22: 105 | D22: 302693 | E22: 4432 | F22: T. LAUQUEN | G22: Trafo 4 | H22: 40 | I22: 132/66/13,2 | J22: =H22*$I$16 -> 52.4 | K22: 2016-05-11T09:52:00 | L22: 2016-05-11T14:41:00 | M22: =IF(F22="","",(L22-K22)*24) -> 4.816666667 | N22: =IF(F22="","",ROUND((L22-K22)*24*60,0)) -> 289 | O22: P | P22: =IF(F22="","",IF(OR(O22="P",O22="RP"),"--","NO")) -> -- | Q22: 0,000 | R22: NO | S22: =$I$17*IF(OR(O22="P",O22="RP"),0.1,1)*IF(R22="SI",1,0.1) -> 0.6 | T22: =IF(O22="P",J22*S22*ROUND(N22/60,2),"--") -> 151.5408 | U22: =IF(O22="RP",J22*S22*ROUND(N22/60,2)*Q22/100,"--") -> -- | V22: =IF(AND(O22="F",P22="NO"),J22*S22,"--") -> -- | W22: =IF(O22="F",J22*S22*ROUND(N22/60,2),"--") -> -- | X22: =IF(AND(O22="R",P22="NO"),J22*S22*Q22/100,"--") -> -- | Y22: =IF(O22="R",J22*S22*ROUND(N22/60,2)*Q22/100,"--") -> -- | Z22: =IF(O22="RF",J22*S22*ROUND(N22/60,2),"--") -> -- | AA22: =IF(O22="RR",J22*S22*ROUND(N22/60,2)*Q22/100,"--") -> -- | AB22: =IF(F22="","","SI") -> SI | AC22: =IF(F22="","",SUM(T22:AA22)*IF(AB22="SI",1,2)*IF(AND(Q22<>"0,000",O22="RF"),Q22/100,1)) -> 151.5408
C23: 106 | D23: 302701 | E23: 2297 | F23: OLAVARRIA VIEJA | G23: T2OA | H23: 30 | I23: 132/33/13,2 | J23: 39.3 | K23: 2016-05-12T08:57:00 | L23: 2016-05-12T13:45:00 | M23: 4.8 | N23: 288 | O23: P | P23: =IF(F23="","",IF(OR(O23="P",O23="RP"),"--","NO")) -> -- | Q23: 0,000 | R23: NO | S23: 0.6 | T23: 113.184 | U23: -- | V23: -- | W23: -- | X23: -- | Y23: -- | Z23: -- | AA23: -- | AB23: =IF(F23="","","SI") -> SI | AC23: =IF(F23="","",SUM(T23:AA23)*IF(AB23="SI",1,2)*IF(AND(Q23<>"0,000",O23="RF"),Q23/100,1)) -> 113.184
C24: 107 | D24: 302702 | E24: 2055 | F24: SAN PEDRO | G24: Trafo 1 | H24: 15 | I24: 132/33/13,2 | J24: 19.65 | K24: 2016-05-12T09:15:00 | L24: 2016-05-12T17:27:00 | M24: 8.2 | N24: 492 | O24: P | P24: -- | Q24: 0,000 | R24: NO | S24: 0.6 | T24: 96.678 | U24: -- | V24: -- | W24: -- | X24: -- | Y24: -- | Z24: -- | AA24: -- | AB24: SI | AC24: 96.678
C25: 108 | D25: 302704 | E25: 5288 | F25: BRAGADO | G25: T6BG | H25: 15 | I25: 132/33/13.2 | J25: 19.65 | K25: 2016-05-12T09:41:00 | L25: 2016-05-13T13:24:00 | M25: 27.71666667 | N25: 1663 | O25: P | P25: -- | Q25: 0,000 | R25: NO | S25: 0.6 | T25: 326.8188 | U25: -- | V25: -- | W25: -- | X25: -- | Y25: -- | Z25: -- | AA25: -- | AB25: SI | AC25: 326.8188
C26: 109 | D26: 302706 | E26: 4435 | F26: LUJAN | G26: T4LJ | H26: 15 | I26: 132/66 | J26: 19.65 | K26: 2016-05-12T09:53:00 | L26: 2016-05-12T14:31:00 | M26: 4.633333333 | N26: 278 | O26: P | P26: -- | Q26: 0,000 | R26: NO | S26: 0.6 | T26: 54.5877 | U26: -- | V26: -- | W26: -- | X26: -- | Y26: -- | Z26: -- | AA26: -- | AB26: SI | AC26: 54.5877
C27: 110 | D27: 302707 | E27: 5758 | F27: PUNTA ALTA | G27: T1PV | H27: 20 | I27: 132/33/13.2 | J27: 26.2 | K27: 2016-05-12T10:05:00 | L27: 2016-05-12T17:00:00 | M27: 6.916666667 | N27: 415 | O27: P | P27: -- | Q27: 0,000 | R27: NO | S27: 0.6 | T27: 108.7824 | U27: -- | V27: -- | W27: -- | X27: -- | Y27: -- | Z27: -- | AA27: -- | AB27: SI | AC27: 108.7824
C28: 111 | D28: 302708 | E28: 2138 | F28: ARRECIFES | G28: AutoTrafo 2 | H28: 5 | I28: 66/33 | J28: 6.55 | K28: 2016-05-12T10:09:00 | L28: 2016-05-12T16:59:00 | M28: 6.833333333 | N28: 410 | O28: P | P28: -- | Q28: 0,000 | R28: NO | S28: 0.6 | T28: 26.8419 | U28: -- | V28: -- | W28: -- | X28: -- | Y28: -- | Z28: -- | AA28: -- | AB28: SI | AC28: 26.8419
C29: 112 | D29: 302711 | E29: 2565 | F29: PRINGLES | G29: Trafo 2 | H29: 10 | I29: 132/13,2/13,2 | J29: 13.1 | K29: 2016-05-13T08:06:00 | L29: 2016-05-13T18:51:00 | M29: 10.75 | N29: 645 | O29: P | P29: -- | Q29: 0,000 | R29: NO | S29: 0.6 | T29: 84.495 | U29: -- | V29: -- | W29: -- | X29: -- | Y29: -- | Z29: -- | AA29: -- | AB29: SI | AC29: 84.495
C30: 113 | D30: 302716 | E30: 4435 | F30: LUJAN | G30: T4LJ | H30: 15 | I30: 132/66 | J30: 19.65 | K30: 2016-05-13T09:23:00 | L30: 2016-05-13T14:10:00 | M30: 4.783333333 | N30: 287 | O30: P | P30: -- | Q30: 0,000 | R30: NO | S30: 0.6 | T30: 56.3562 | U30: -- | V30: -- | W30: -- | X30: -- | Y30: -- | Z30: -- | AA30: -- | AB30: SI | AC30: 56.3562
C31: 114 | D31: 302717 | E31: 2138 | F31: ARRECIFES | G31: AutoTrafo 2 | H31: 5 | I31: 66/33 | J31: 6.55 | K31: 2016-05-13T09:44:00 | L31: 2016-05-13T13:48:00 | M31: 4.066666667 | N31: 244 | O31: P | P31: -- | Q31: 0,000 | R31: NO | S31: 0.6 | T31: 15.9951 | U31: -- | V31: -- | W31: -- | X31: -- | Y31: -- | Z31: -- | AA31: -- | AB31: SI | AC31: 15.9951
C32: 115 | D32: 302718 | E32: 5758 | F32: PUNTA ALTA | G32: T1PV | H32: 20 | I32: 132/33/13.2 | J32: 26.2 | K32: 2016-05-13T11:05:00 | L32: 2016-05-13T17:47:00 | M32: 6.7 | N32: 402 | O32: P | P32: -- | Q32: 0,000 | R32: NO | S32: 0.6 | T32: 105.324 | U32: -- | V32: -- | W32: -- | X32: -- | Y32: -- | Z32: -- | AA32: -- | AB32: SI | AC32: 105.324
C33: 116 | D33: 302722 | E33: 2137 | F33: ARRECIFES | G33: Trafo 2 | H33: 7.5 | I33: 66/13,2 | J33: 9.825 | K33: 2016-05-14T07:57:00 | L33: 2016-05-15T16:33:00 | M33: 32.6 | N33: 1956 | O33: P | P33: -- | Q33: 0,000 | R33: NO | S33: 0.6 | T33: 192.177 | U33: -- | V33: -- | W33: -- | X33: -- | Y33: -- | Z33: -- | AA33: -- | AB33: SI | AC33: 192.177
C34: 117 | D34: 302726 | E34: 2410 | F34: CHASCOMUS | G34: Trafo 2 | H34: 15 | I34: 132/33/13,2 | J34: 19.65 | K34: 2016-05-15T07:48:00 | L34: 2016-05-15T10:10:00 | M34: 2.366666667 | N34: 142 | O34: P | P34: -- | Q34: 0,000 | R34: NO | S34: 0.6 | T34: 27.9423 | U34: -- | V34: -- | W34: -- | X34: -- | Y34: -- | Z34: -- | AA34: -- | AB34: SI | AC34: 27.9423
C35: 118 | D35: 302729 | E35: 5424 | F35: LUJAN | G35: T2LJ | H35: 40 | I35: 132/34.5/13.8 | J35: 52.4 | K35: 2016-05-15T08:24:00 | L35: 2016-05-15T13:00:00 | M35: 4.6 | N35: 276 | O35: P | P35: -- | Q35: 0,000 | R35: NO | S35: 0.6 | T35: 144.624 | U35: -- | V35: -- | W35: -- | X35: -- | Y35: -- | Z35: -- | AA35: -- | AB35: SI | AC35: 144.624
C36: 119 | D36: 302731 | E36: 2667 | F36: LUJAN | G36: Trafo 1 | H36: 30 | I36: 132/33/13,2 | J36: 39.3 | K36: 2016-05-15T13:03:00 | L36: 2016-05-15T15:53:00 | M36: 2.833333333 | N36: 170 | O36: P | P36: -- | Q36: 0,000 | R36: NO | S36: 0.6 | T36: 66.7314 | U36: -- | V36: -- | W36: -- | X36: -- | Y36: -- | Z36: -- | AA36: -- | AB36: SI | AC36: 66.7314
C37: 120 | D37: 302959 | E37: 5358 | F37: CORCEMAR | G37: T2CO | H37: 30 | I37: 132/33/13.2 | J37: 39.3 | K37: 2016-05-16T08:34:00 | L37: 2016-05-16T23:46:00 | M37: 15.2 | N37: 912 | O37: P | P37: -- | Q37: 0,000 | R37: NO | S37: 0.6 | T37: 358.416 | U37: -- | V37: -- | W37: -- | X37: -- | Y37: -- | Z37: -- | AA37: -- | AB37: SI | AC37: 358.416
C38: 121 | D38: 302961 | E38: 4652 | F38: OLAVARRIA VIEJA | G38: T3OA | H38: 30 | I38: 132/33/13,2 | J38: 39.3 | K38: 2016-05-16T09:33:00 | L38: 2016-05-16T14:53:00 | M38: 5.333333333 | N38: 320 | O38: P | P38: -- | Q38: 0,000 | R38: NO | S38: 0.6 | T38: 125.6814 | U38: -- | V38: -- | W38: -- | X38: -- | Y38: -- | Z38: -- | AA38: -- | AB38: SI | AC38: 125.6814
C39: 122 | D39: 303020 | E39: 5358 | F39: CORCEMAR | G39: T2CO | H39: 30 | I39: 132/33/13.2 | J39: 39.3 | K39: 2016-05-16T23:47:00 | L39: 2016-05-17T16:15:00 | M39: 16.46666667 | N39: 988 | O39: F | P39: NO | Q39: 0,000 | R39: NO | S39: 6 | T39: -- | U39: -- | V39: 235.8 | W39: 3883.626 | X39: -- | Y39: -- | Z39: -- | AA39: -- | AB39: SI | AC39: 4119.426
C40: 123 | D40: 302963 | E40: 2246 | F40: LINCOLN | G40: Trafo 1 | H40: 15 | I40: 132/33/13,2 | J40: 19.65 | K40: 2016-05-17T08:48:00 | L40: 2016-05-17T18:47:00 | M40: 9.983333333 | N40: 599 | O40: P | P40: -- | Q40: 0,000 | R40: NO | S40: 0.6 | T40: 117.6642 | U40: -- | V40: -- | W40: -- | X40: -- | Y40: -- | Z40: -- | AA40: -- | AB40: SI | AC40: 117.6642
C41: 124 | D41: 302964 | E41: 4652 | F41: OLAVARRIA VIEJA | G41: T3OA | H41: 30 | I41: 132/33/13,2 | J41: 39.3 | K41: 2016-05-17T09:08:00 | L41: 2016-05-17T15:28:00 | M41: 6.333333333 | N41: 380 | O41: P | P41: -- | Q41: 0,000 | R41: NO | S41: 0.6 | T41: 149.2614 | U41: -- | V41: -- | W41: -- | X41: -- | Y41: -- | Z41: -- | AA41: -- | AB41: SI | AC41: 149.2614
C43: (²) | D43: P - PROGRAMADA ; F - FORZADA | T43: =SUM(T20:T42) -> 2323.1016 | U43: =SUM(U20:U42) -> 0 | V43: =SUM(V20:V42) -> 235.8 | W43: =SUM(W22:W42) -> 3883.626 | X43: =SUM(X20:X42) -> 0 | Y43: =SUM(Y22:Y42) -> 0 | Z43: =SUM(Z20:Z42) -> 0 | AA43: =SUM(AA22:AA42) -> 0 | AC43: =ROUND(SUM(AC20:AC42),2) -> 9194.7

Sheet T-05 (3)
B2: ='TOT-0516'!B2 -> ANEXO VI al Memorándum D.T.E.E. N° 243/2017
F8: SISTEMA DE TRANSPORTE DE ENERGÍA ELÉCTRICA POR DISTRIBUCIÓN TRONCAL - TRANSBA S.A.
F10: 2.- CONEXIÓN
F12: 2.1.- Transformación
B14: ='TOT-0516'!B14 -> Desde el 01 al 31 de mayo de 2016
F16: Por Transformador por MVA $ = | I16: 1.31
F17: Coeficiente de penalización por salida forzada = | I17: =60*'TOT-0516'!B13 -> 60 | K17: =IF(I17=60," ",IF(I17=120," Coeficiente duplicado por tasa de falla >4 Sal. x año/100 km."," REVISAR COEFICIENTE")) -> 
C18: 3 | D18: 4 | E18: 5 | F18: 6 | G18: 7 | H18: 8 | I18: 9 | J18: 10 | K18: 11 | L18: 12 | M18: 13 | N18: 14 | O18: 15 | P18: 16 | Q18: 17 | R18: 18 | S18: 19 | T18: 20 | U18: 21 | V18: 22 | W18: 23 | X18: 24 | Y18: 25 | Z18: 26 | AA18: 27 | AB18: 28 | AC18: 29
C19: N° | D19: INDISP | E19: ID EQUIPO | F19: ESTACIÓN TRANSFORMADORA | G19: EQUIPO | H19: POT. [MVA] | I19: U [kV] | J19: $/h | K19: Salida | L19: Entrada | M19: Hs Indisp. | N19: Minutos. Indisp. | O19: Tipo Sal.(²) | P19: AUT. | Q19: C.R. % | R19: E.N.S. | S19: K (P y ENS) | T19: PENALIZ. PROGRAM. | U19: REDUCC. PROGRAM. | V19: PENALIZACIÓN FORZADA Por Salida hs. Restantes | X19: REDUCC. FORZADA Por Salida hs. Restantes | Z19: RESTANTE FORZADA | AA19: REDUCC. RESTANTE | AB19: Informó en Térm. | AC19: TOTAL PENALIZAC.
AC20: ='T-05 (2)'!AC43 -> 9194.7
C22: 125 | D22: 302965 | E22: 2442 | F22: MAR DE AJO | G22: Trafo 3 | H22: 44 | I22: 132/33/13,2 | J22: =H22*$I$16 -> 57.64 | K22: 2016-05-17T09:41:00 | L22: 2016-05-17T17:34:00 | M22: =IF(F22="","",(L22-K22)*24) -> 7.883333333 | N22: =IF(F22="","",ROUND((L22-K22)*24*60,0)) -> 473 | O22: P | P22: =IF(F22="","",IF(OR(O22="P",O22="RP"),"--","NO")) -> -- | Q22: 0,000 | R22: NO | S22: =$I$17*IF(OR(O22="P",O22="RP"),0.1,1)*IF(R22="SI",1,0.1) -> 0.6 | T22: =IF(O22="P",J22*S22*ROUND(N22/60,2),"--") -> 272.52192 | U22: =IF(O22="RP",J22*S22*ROUND(N22/60,2)*Q22/100,"--") -> -- | V22: =IF(AND(O22="F",P22="NO"),J22*S22,"--") -> -- | W22: =IF(O22="F",J22*S22*ROUND(N22/60,2),"--") -> -- | X22: =IF(AND(O22="R",P22="NO"),J22*S22*Q22/100,"--") -> -- | Y22: =IF(O22="R",J22*S22*ROUND(N22/60,2)*Q22/100,"--") -> -- | Z22: =IF(O22="RF",J22*S22*ROUND(N22/60,2),"--") -> -- | AA22: =IF(O22="RR",J22*S22*ROUND(N22/60,2)*Q22/100,"--") -> -- | AB22: =IF(F22="","","SI") -> SI | AC22: =IF(F22="","",SUM(T22:AA22)*IF(AB22="SI",1,2)*IF(AND(Q22<>"0,000",O22="RF"),Q22/100,1)) -> 272.52192
C23: 126 | D23: 302973 | E23: 3550 | F23: PETROQUIMICA | G23: Trafo 2 | H23: 40 | I23: 132/33/13,2 | J23: 52.4 | K23: 2016-05-17T09:46:00 | L23: 2016-05-17T14:06:00 | M23: 4.333333333 | N23: 260 | O23: P | P23: =IF(F23="","",IF(OR(O23="P",O23="RP"),"--","NO")) -> -- | Q23: 0,000 | R23: NO | S23: 0.6 | T23: 136.1352 | U23: -- | V23: -- | W23: -- | X23: -- | Y23: -- | Z23: -- | AA23: -- | AB23: =IF(F23="","","SI") -> SI | AC23: =IF(F23="","",SUM(T23:AA23)*IF(AB23="SI",1,2)*IF(AND(Q23<>"0,000",O23="RF"),Q23/100,1)) -> 136.1352
C24: 127 | D24: 302966 | E24: 3558 | F24: PETROQUIMICA | G24: Trafo 3 | H24: 40 | I24: 132/33/13,2 | J24: 52.4 | K24: 2016-05-17T09:46:00 | L24: 2016-05-17T09:50:00 | M24: 0.06666666653 | N24: 4 | O24: R | P24: NO | Q24: 28 | R24: SI | S24: 60 | T24: -- | U24: -- | V24: -- | W24: -- | X24: 880.32 | Y24: 61.6224 | Z24: -- | AA24: -- | AB24: SI | AC24: 941.9424
C25: 128 | D25: 302975 | E25: 2442 | F25: MAR DE AJO | G25: Trafo 3 | H25: 44 | I25: 132/33/13,2 | J25: 57.64 | K25: 2016-05-18T08:23:00 | L25: 2016-05-18T15:35:00 | M25: 7.2 | N25: 432 | O25: P | P25: -- | Q25: 0,000 | R25: NO | S25: 0.6 | T25: 249.0048 | U25: -- | V25: -- | W25: -- | X25: -- | Y25: -- | Z25: -- | AA25: -- | AB25: SI | AC25: 249.0048
C26: 129 | D26: 302978 | E26: 2246 | F26: LINCOLN | G26: Trafo 1 | H26: 15 | I26: 132/33/13,2 | J26: 19.65 | K26: 2016-05-18T09:43:00 | L26: 2016-05-18T18:38:00 | M26: 8.916666667 | N26: 535 | O26: P | P26: -- | Q26: 0,000 | R26: NO | S26: 0.6 | T26: 105.1668 | U26: -- | V26: -- | W26: -- | X26: -- | Y26: -- | Z26: -- | AA26: -- | AB26: SI | AC26: 105.1668
C27: 130 | D27: 302979 | E27: 4652 | F27: OLAVARRIA VIEJA | G27: T3OA | H27: 30 | I27: 132/33/13,2 | J27: 39.3 | K27: 2016-05-18T09:51:00 | L27: 2016-05-18T15:03:00 | M27: 5.2 | N27: 312 | O27: P | P27: -- | Q27: 0,000 | R27: NO | S27: 0.6 | T27: 122.616 | U27: -- | V27: -- | W27: -- | X27: -- | Y27: -- | Z27: -- | AA27: -- | AB27: SI | AC27: 122.616
C28: 131 | D28: 302981 | E28: 3550 | F28: PETROQUIMICA | G28: Trafo 2 | H28: 40 | I28: 132/33/13,2 | J28: 52.4 | K28: 2016-05-18T10:04:00 | L28: 2016-05-18T16:19:00 | M28: 6.25 | N28: 375 | O28: P | P28: -- | Q28: 0,000 | R28: NO | S28: 0.6 | T28: 196.5 | U28: -- | V28: -- | W28: -- | X28: -- | Y28: -- | Z28: -- | AA28: -- | AB28: SI | AC28: 196.5
C29: 132 | D29: 302985 | E29: 2442 | F29: MAR DE AJO | G29: Trafo 3 | H29: 44 | I29: 132/33/13,2 | J29: 57.64 | K29: 2016-05-19T08:04:00 | L29: 2016-05-19T15:38:00 | M29: 7.566666667 | N29: 454 | O29: P | P29: -- | Q29: 0,000 | R29: NO | S29: 0.6 | T29: 261.80088 | U29: -- | V29: -- | W29: -- | X29: -- | Y29: -- | Z29: -- | AA29: -- | AB29: SI | AC29: 261.80088
C30: 133 | D30: 302989 | E30: 3816 | F30: BARADERO | G30: T1BD | H30: 30 | I30: 132/33/13,2 | J30: 39.3 | K30: 2016-05-19T09:21:00 | L30: 2016-05-19T14:42:00 | M30: 5.35 | N30: 321 | O30: P | P30: -- | Q30: 0,000 | R30: NO | S30: 0.6 | T30: 126.153 | U30: -- | V30: -- | W30: -- | X30: -- | Y30: -- | Z30: -- | AA30: -- | AB30: SI | AC30: 126.153
C31: 134 | D31: 302993 | E31: 2442 | F31: MAR DE AJO | G31: Trafo 3 | H31: 44 | I31: 132/33/13,2 | J31: 57.64 | K31: 2016-05-20T08:19:00 | L31: 2016-05-20T15:50:00 | M31: 7.516666667 | N31: 451 | O31: P | P31: -- | Q31: 0,000 | R31: NO | S31: 0.6 | T31: 260.07168 | U31: -- | V31: -- | W31: -- | X31: -- | Y31: -- | Z31: -- | AA31: -- | AB31: SI | AC31: 260.07168
C32: 135 | D32: 302997 | E32: 3816 | F32: BARADERO | G32: T1BD | H32: 30 | I32: 132/33/13,2 | J32: 39.3 | K32: 2016-05-20T09:38:00 | L32: 2016-05-20T15:04:00 | M32: 5.433333333 | N32: 326 | O32: P | P32: -- | Q32: 0,000 | R32: NO | S32: 0.6 | T32: 128.0394 | U32: -- | V32: -- | W32: -- | X32: -- | Y32: -- | Z32: -- | AA32: -- | AB32: SI | AC32: 128.0394
C33: 136 | D33: 303005 | E33: 5424 | F33: LUJAN | G33: T2LJ | H33: 40 | I33: 132/34.5/13.8 | J33: 52.4 | K33: 2016-05-22T07:57:00 | L33: 2016-05-22T13:41:00 | M33: 5.733333333 | N33: 344 | O33: P | P33: -- | Q33: 0,000 | R33: NO | S33: 0.6 | T33: 180.1512 | U33: -- | V33: -- | W33: -- | X33: -- | Y33: -- | Z33: -- | AA33: -- | AB33: SI | AC33: 180.1512
C34: 137 | D34: 303007 | E34: 4573 | F34: NECOCHEA | G34: Trafo 2 | H34: 30 | I34: 132/33/13,2 | J34: 39.3 | K34: 2016-05-22T08:38:00 | L34: 2016-05-22T18:08:00 | M34: 9.5 | N34: 570 | O34: P | P34: -- | Q34: 0,000 | R34: NO | S34: 0.6 | T34: 224.01 | U34: -- | V34: -- | W34: -- | X34: -- | Y34: -- | Z34: -- | AA34: -- | AB34: SI | AC34: 224.01
C35: 138 | D35: 303012 | E35: 2667 | F35: LUJAN | G35: Trafo 1 | H35: 30 | I35: 132/33/13,2 | J35: 39.3 | K35: 2016-05-22T13:41:00 | L35: 2016-05-22T17:39:00 | M35: 3.966666667 | N35: 238 | O35: P | P35: -- | Q35: 0,000 | R35: NO | S35: 0.6 | T35: 93.6126 | U35: -- | V35: -- | W35: -- | X35: -- | Y35: -- | Z35: -- | AA35: -- | AB35: SI | AC35: 93.6126
C36: 139 | D36: 303175 | E36: 4210 | F36: URBANA BBCA | G36: Trafo 2 | H36: 40 | I36: 132/33/13,2 | J36: 52.4 | K36: 2016-05-23T10:46:00 | L36: 2016-05-23T17:30:00 | M36: 6.733333333 | N36: 404 | O36: P | P36: -- | Q36: 0,000 | R36: NO | S36: 0.6 | T36: 211.5912 | U36: -- | V36: -- | W36: -- | X36: -- | Y36: -- | Z36: -- | AA36: -- | AB36: SI | AC36: 211.5912
C37: 140 | D37: 303178 | E37: 4210 | F37: URBANA BBCA | G37: Trafo 2 | H37: 40 | I37: 132/33/13,2 | J37: 52.4 | K37: 2016-05-24T09:14:00 | L37: 2016-05-24T17:22:00 | M37: 8.133333333 | N37: 488 | O37: P | P37: -- | Q37: 0,000 | R37: NO | S37: 0.6 | T37: 255.6072 | U37: -- | V37: -- | W37: -- | X37: -- | Y37: -- | Z37: -- | AA37: -- | AB37: SI | AC37: 255.6072
C38: 141 | D38: 303179 | E38: 3716 | F38: SALTO - BA | G38: Trafo 1 | H38: 30 | I38: 132/33/13,2 | J38: 39.3 | K38: 2016-05-24T09:27:00 | L38: 2016-05-24T15:38:00 | M38: 6.183333333 | N38: 371 | O38: P | P38: -- | Q38: 0,000 | R38: NO | S38: 0.6 | T38: 145.7244 | U38: -- | V38: -- | W38: -- | X38: -- | Y38: -- | Z38: -- | AA38: -- | AB38: SI | AC38: 145.7244
C39: 142 | D39: 303180 | E39: 2696 | F39: AZUL | G39: Trafo 3 | H39: 15 | I39: 132/33/13,2 | J39: 19.65 | K39: 2016-05-24T10:00:00 | L39: 2016-05-24T16:07:00 | M39: 6.116666667 | N39: 367 | O39: P | P39: -- | Q39: 0,000 | R39: NO | S39: 0.6 | T39: 72.1548 | U39: -- | V39: -- | W39: -- | X39: -- | Y39: -- | Z39: -- | AA39: -- | AB39: SI | AC39: 72.1548
C40: 143 | D40: 303183 | E40: 3716 | F40: SALTO - BA | G40: Trafo 1 | H40: 30 | I40: 132/33/13,2 | J40: 39.3 | K40: 2016-05-26T08:56:00 | L40: 2016-05-26T15:24:00 | M40: 6.466666667 | N40: 388 | O40: P | P40: -- | Q40: 0,000 | R40: NO | S40: 0.6 | T40: 152.5626 | U40: -- | V40: -- | W40: -- | X40: -- | Y40: -- | Z40: -- | AA40: -- | AB40: SI | AC40: 152.5626
C42: (²) | D42: P - PROGRAMADA ; R - REDUCCION FORZADA | T42: =SUM(T20:T41) -> 3193.42368 | U42: =SUM(U20:U41) -> 0 | V42: =SUM(V20:V41) -> 0 | W42: =SUM(W22:W41) -> 0 | X42: =SUM(X20:X41) -> 880.32 | Y42: =SUM(Y22:Y41) -> 61.6224 | Z42: =SUM(Z20:Z41) -> 0 | AA42: =SUM(AA22:AA41) -> 0 | AC42: =ROUND(SUM(AC20:AC41),2) -> 13330.07

Sheet T-05 (4)
B2: ='TOT-0516'!B2 -> ANEXO VI al Memorándum D.T.E.E. N° 243/2017
F8: SISTEMA DE TRANSPORTE DE ENERGÍA ELÉCTRICA POR DISTRIBUCIÓN TRONCAL - TRANSBA S.A.
F10: 2.- CONEXIÓN
F12: 2.1.- Transformación
B14: ='TOT-0516'!B14 -> Desde el 01 al 31 de mayo de 2016
F16: Por Transformador por MVA $ = | I16: 1.31
F17: Coeficiente de penalización por salida forzada = | I17: =60*'TOT-0516'!B13 -> 60 | K17: =IF(I17=60," ",IF(I17=120," Coeficiente duplicado por tasa de falla >4 Sal. x año/100 km."," REVISAR COEFICIENTE")) -> 
C18: 3 | D18: 4 | E18: 5 | F18: 6 | G18: 7 | H18: 8 | I18: 9 | J18: 10 | K18: 11 | L18: 12 | M18: 13 | N18: 14 | O18: 15 | P18: 16 | Q18: 17 | R18: 18 | S18: 19 | T18: 20 | U18: 21 | V18: 22 | W18: 23 | X18: 24 | Y18: 25 | Z18: 26 | AA18: 27 | AB18: 28 | AC18: 29
C19: N° | D19: INDISP | E19: ID EQUIPO | F19: ESTACIÓN TRANSFORMADORA | G19: EQUIPO | H19: POT. [MVA] | I19: U [kV] | J19: $/h | K19: Salida | L19: Entrada | M19: Hs Indisp. | N19: Minutos. Indisp. | O19: Tipo Sal.(²) | P19: AUT. | Q19: C.R. % | R19: E.N.S. | S19: K (P y ENS) | T19: PENALIZ. PROGRAM. | U19: REDUCC. PROGRAM. | V19: PENALIZACIÓN FORZADA Por Salida hs. Restantes | X19: REDUCC. FORZADA Por Salida hs. Restantes | Z19: RESTANTE FORZADA | AA19: REDUCC. RESTANTE | AB19: Informó en Térm. | AC19: TOTAL PENALIZAC.
AC20: ='T-05 (3)'!AC42 -> 13330.07
C22: 144 | D22: 303185 | E22: 4210 | F22: URBANA BBCA | G22: Trafo 2 | H22: 40 | I22: 132/33/13,2 | J22: =H22*$I$16 -> 52.4 | K22: 2016-05-26T09:24:00 | L22: 2016-05-26T14:27:00 | M22: =IF(F22="","",(L22-K22)*24) -> 5.05 | N22: =IF(F22="","",ROUND((L22-K22)*24*60,0)) -> 303 | O22: P | P22: =IF(F22="","",IF(OR(O22="P",O22="RP"),"--","NO")) -> -- | Q22: 0,000 | R22: NO | S22: =$I$17*IF(OR(O22="P",O22="RP"),0.1,1)*IF(R22="SI",1,0.1) -> 0.6 | T22: =IF(O22="P",J22*S22*ROUND(N22/60,2),"--") -> 158.772 | U22: =IF(O22="RP",J22*S22*ROUND(N22/60,2)*Q22/100,"--") -> -- | V22: =IF(AND(O22="F",P22="NO"),J22*S22,"--") -> -- | W22: =IF(O22="F",J22*S22*ROUND(N22/60,2),"--") -> -- | X22: =IF(AND(O22="R",P22="NO"),J22*S22*Q22/100,"--") -> -- | Y22: =IF(O22="R",J22*S22*ROUND(N22/60,2)*Q22/100,"--") -> -- | Z22: =IF(O22="RF",J22*S22*ROUND(N22/60,2),"--") -> -- | AA22: =IF(O22="RR",J22*S22*ROUND(N22/60,2)*Q22/100,"--") -> -- | AB22: =IF(F22="","","SI") -> SI | AC22: =IF(F22="","",SUM(T22:AA22)*IF(AB22="SI",1,2)*IF(AND(Q22<>"0,000",O22="RF"),Q22/100,1)) -> 158.772
C23: 145 | D23: 303188 | E23: 2696 | F23: AZUL | G23: Trafo 3 | H23: 15 | I23: 132/33/13,2 | J23: 19.65 | K23: 2016-05-26T10:21:00 | L23: 2016-05-26T16:06:00 | M23: 5.75 | N23: 345 | O23: P | P23: =IF(F23="","",IF(OR(O23="P",O23="RP"),"--","NO")) -> -- | Q23: 0,000 | R23: NO | S23: 0.6 | T23: 67.7925 | U23: -- | V23: -- | W23: -- | X23: -- | Y23: -- | Z23: -- | AA23: -- | AB23: =IF(F23="","","SI") -> SI | AC23: =IF(F23="","",SUM(T23:AA23)*IF(AB23="SI",1,2)*IF(AND(Q23<>"0,000",O23="RF"),Q23/100,1)) -> 67.7925
C24: 146 | D24: 303189 | E24: 2069 | F24: VILLA LIA | G24: Autotrafo | H24: 150 | I24: 220/132/13,2 | J24: 196.5 | K24: 2016-05-26T10:51:00 | L24: 2016-05-26T15:09:00 | M24: 4.3 | N24: 258 | O24: P | P24: -- | Q24: 0,000 | R24: NO | S24: 0.6 | T24: 506.97 | U24: -- | V24: -- | W24: -- | X24: -- | Y24: -- | Z24: -- | AA24: -- | AB24: SI | AC24: 506.97
C25: 147 | D25: 303193 | E25: 3716 | F25: SALTO - BA | G25: Trafo 1 | H25: 30 | I25: 132/33/13,2 | J25: 39.3 | K25: 2016-05-27T08:52:00 | L25: 2016-05-27T13:06:00 | M25: 4.233333333 | N25: 254 | O25: P | P25: -- | Q25: 0,000 | R25: NO | S25: 0.6 | T25: 99.7434 | U25: -- | V25: -- | W25: -- | X25: -- | Y25: -- | Z25: -- | AA25: -- | AB25: SI | AC25: 99.7434
C26: 148 | D26: 303194 | E26: 2696 | F26: AZUL | G26: Trafo 3 | H26: 15 | I26: 132/33/13,2 | J26: 19.65 | K26: 2016-05-27T09:05:00 | L26: 2016-05-27T11:33:00 | M26: 2.466666667 | N26: 148 | O26: P | P26: -- | Q26: 0,000 | R26: NO | S26: 0.6 | T26: 29.1213 | U26: -- | V26: -- | W26: -- | X26: -- | Y26: -- | Z26: -- | AA26: -- | AB26: SI | AC26: 29.1213
C27: 149 | D27: 303195 | E27: 2069 | F27: VILLA LIA | G27: Autotrafo | H27: 150 | I27: 220/132/13,2 | J27: 196.5 | K27: 2016-05-27T09:10:00 | L27: 2016-05-27T13:39:00 | M27: 4.483333333 | N27: 269 | O27: P | P27: -- | Q27: 0,000 | R27: NO | S27: 0.6 | T27: 528.192 | U27: -- | V27: -- | W27: -- | X27: -- | Y27: -- | Z27: -- | AA27: -- | AB27: SI | AC27: 528.192
C28: 150 | D28: 303198 | E28: 4210 | F28: URBANA BBCA | G28: Trafo 2 | H28: 40 | I28: 132/33/13,2 | J28: 52.4 | K28: 2016-05-27T10:12:00 | L28: 2016-05-27T17:14:00 | M28: 7.033333333 | N28: 422 | O28: P | P28: -- | Q28: 0,000 | R28: NO | S28: 0.6 | T28: 221.0232 | U28: -- | V28: -- | W28: -- | X28: -- | Y28: -- | Z28: -- | AA28: -- | AB28: SI | AC28: 221.0232
C29: 151 | D29: 303248 | E29: 2517 | F29: PETROQUIMICA | G29: Trafo 1 | H29: 15 | I29: 132/33/13,2 | J29: 19.65 | K29: 2016-05-30T08:55:00 | L29: 2016-05-30T14:39:00 | M29: 5.733333333 | N29: 344 | O29: P | P29: -- | Q29: 0,000 | R29: NO | S29: 0.6 | T29: 67.5567 | U29: -- | V29: -- | W29: -- | X29: -- | Y29: -- | Z29: -- | AA29: -- | AB29: SI | AC29: 67.5567
C30: 152 | D30: 303251 | E30: 2517 | F30: PETROQUIMICA | G30: Trafo 1 | H30: 15 | I30: 132/33/13,2 | J30: 19.65 | K30: 2016-05-31T08:58:00 | L30: 2016-05-31T09:24:00 | M30: 0.4333333333 | N30: 26 | O30: P | P30: -- | Q30: 0,000 | R30: NO | S30: 0.6 | T30: 5.0697 | U30: -- | V30: -- | W30: -- | X30: -- | Y30: -- | Z30: -- | AA30: -- | AB30: SI | AC30: 5.0697
C31: 153 | D31: 303254 | E31: 5288 | F31: BRAGADO | G31: T6BG | H31: 15 | I31: 132/33/13.2 | J31: 19.65 | K31: 2016-05-31T10:28:00 | L31: 2016-05-31T15:21:00 | M31: 4.883333333 | N31: 293 | O31: P | P31: -- | Q31: 0,000 | R31: NO | S31: 0.6 | T31: 57.5352 | U31: -- | V31: -- | W31: -- | X31: -- | Y31: -- | Z31: -- | AA31: -- | AB31: SI | AC31: 57.5352
J32: 0 | Q32: =IF(F32="","","--") ->  | R32: =IF(F32="","","NO") ->  | S32: 6 | T32: -- | U32: -- | V32: -- | W32: -- | X32: -- | Y32: -- | Z32: -- | AA32: --
J33: 0 | S33: 6 | T33: -- | U33: -- | V33: -- | W33: -- | X33: -- | Y33: -- | Z33: -- | AA33: --
J34: 0 | S34: 6 | T34: -- | U34: -- | V34: -- | W34: -- | X34: -- | Y34: -- | Z34: -- | AA34: --
J35: 0 | S35: 6 | T35: -- | U35: -- | V35: -- | W35: -- | X35: -- | Y35: -- | Z35: -- | AA35: --
J36: 0 | S36: 6 | T36: -- | U36: -- | V36: -- | W36: -- | X36: -- | Y36: -- | Z36: -- | AA36: --
J37: 0 | S37: 6 | T37: -- | U37: -- | V37: -- | W37: -- | X37: -- | Y37: -- | Z37: -- | AA37: --
J38: 0 | S38: 6 | T38: -- | U38: -- | V38: -- | W38: -- | X38: -- | Y38: -- | Z38: -- | AA38: --
J39: 0 | S39: 6 | T39: -- | U39: -- | V39: -- | W39: -- | X39: -- | Y39: -- | Z39: -- | AA39: --
J40: 0 | S40: 6 | T40: -- | U40: -- | V40: -- | W40: -- | X40: -- | Y40: -- | Z40: -- | AA40: --
J41: 0 | S41: 6 | T41: -- | U41: -- | V41: -- | W41: -- | X41: -- | Y41: -- | Z41: -- | AA41: --
C43: (²) | D43: P - PROGRAMADA | T43: =SUM(T20:T42) -> 1741.776 | U43: =SUM(U20:U42) -> 0 | V43: =SUM(V20:V42) -> 0 | W43: =SUM(W22:W42) -> 0 | X43: =SUM(X20:X42) -> 0 | Y43: =SUM(Y22:Y42) -> 0 | Z43: =SUM(Z20:Z42) -> 0 | AA43: =SUM(AA22:AA42) -> 0 | AC43: =ROUND(SUM(AC20:AC42),2) -> 15071.85

Sheet SA-05 (1)
B2: ='TOT-0516'!B2 -> ANEXO VI al Memorándum D.T.E.E. N° 243/2017
F8: SISTEMA DE TRANSPORTE DE ENERGÍA ELÉCTRICA POR DISTRIBUCIÓN TRONCAL - TRANSBA S.A.
F10: 2.2.- Salidas
B12: ='TOT-0516'!B14 -> Desde el 01 al 31 de mayo de 2016
F14: Salida en 220 kV | G14: 34.93 | H14: =60*'TOT-0516'!B13 -> 60 | J14: =IF(H14=60," ",IF(H14=120," Coeficiente duplicado por tasa de falla >4 Sal. x año/100 km."," REVISAR COEFICIENTE")) -> 
F15: Salida en 132 kV o 66 kV = | G15: 17.466 | H15: =50*'TOT-0516'!B13 -> 50 | J15: =IF(H15=50," ",IF(H15=100," Coeficiente duplicado por tasa de falla >4 Sal. x año/100 km."," REVISAR COEFICIENTE")) -> 
F16: Salida en 33 kV | G16: 13.097 | H16: =50*'TOT-0516'!B13 -> 50 | J16: =IF(H16=50," ",IF(H16=100," Coeficiente duplicado por tasa de falla >4 Sal. x año/100 km."," REVISAR COEFICIENTE")) -> 
F17: Salida en 13,2 kV = | G17: 13.097 | H17: =40*'TOT-0516'!B13 -> 40 | J17: =IF(H17=40," ",IF(H17=80," Coeficiente duplicado por tasa de falla >4 Sal. x año/100 km."," REVISAR COEFICIENTE")) -> 
C18: 3 | D18: 4 | E18: 5 | F18: 6 | G18: 7 | H18: 8 | I18: 9 | J18: 10 | K18: 11 | L18: 12 | M18: 13 | N18: 14 | O18: 15 | P18: 16 | Q18: 17 | R18: 18 | S18: 19 | T18: 20 | U18: 21 | V18: 22
C19: N° | D19: INDISP | E19: ID EQUIPO | F19: ESTACIÓN TRANSFORMADORA | G19: EQUIPO | H19: U [kV] | I19: $/h | J19: Salida | K19: Entrada | L19: Hs Indisp. | M19: Minutos. Indisp. | N19: Tipo Sal.(²) | O19: AUT. | P19: K (U) | Q19: PENALIZAC. PROGRAM. | R19: PENALIZACIÓN FORZADA Por Salida hs. Restantes | T19: RESTANTE FORZADA | U19: Informó en Térm. | V19: TOTAL PENALIZAC.
C22: 154 | D22: 302340 | E22: 3813 | F22: MONTE | G22: Alimentador a G. BELGRANO | H22: 33 | I22: =IF(H22=220,$G$14,IF(AND(H22<=132,H22>=66),$G$15,IF(AND(H22<66,H22>=33),$G$16,$G$17))) -> 13.097 | J22: 2016-05-03T08:53:00 | K22: 2016-05-03T15:45:00 | L22: =IF(F22="","",(K22-J22)*24) -> 6.866666667 | M22: =IF(F22="","",ROUND((K22-J22)*24*60,0)) -> 412 | N22: P | O22: =IF(F22="","",IF(OR(N22="P",N22="RP"),"--","NO")) -> -- | P22: =IF(H22=220,$H$14,IF(AND(H22<=132,H22>=66),$H$15,IF(AND(H22<66,H22>13.2),$H$16,$H$17))) -> 50 | Q22: =IF(N22="P",I22*P22*ROUND(M22/60,2)*0.1,"--") -> 449.88195 | R22: =IF(AND(N22="F",O22="NO"),I22*P22,"--") -> -- | S22: =IF(N22="F",I22*P22*ROUND(M22/60,2),"--") -> -- | T22: =IF(N22="RF",I22*P22*ROUND(M22/60,2),"--") -> -- | U22: SI | V22: =IF(F22="","",SUM(Q22:T22)*IF(U22="SI",1,2)*IF(H22="500/220",0,1)) -> 449.88195
C23: 155 | D23: 302346 | E23: 3633 | F23: BRAGADO | G23: Alimentador Alberti | H23: 33 | I23: 13.097 | J23: 2016-05-03T10:44:00 | K23: 2016-05-03T15:50:00 | L23: 5.1 | M23: 306 | N23: P | O23: =IF(F23="","",IF(OR(N23="P",N23="RP"),"--","NO")) -> -- | P23: 50 | Q23: 333.9735 | R23: -- | S23: -- | T23: -- | U23: SI | V23: 333.9735
C24: 156 | D24: 302347 | E24: 2412 | F24: CHASCOMUS | G24: Alimentador a LEZAMA | H24: 33 | I24: 13.097 | J24: 2016-05-03T10:54:00 | K24: 2016-05-03T15:13:00 | L24: 4.316666667 | M24: 259 | N24: P | O24: -- | P24: 50 | Q24: 282.8952 | R24: -- | S24: -- | T24: -- | U24: SI | V24: 282.8952
C25: 157 | D25: 302350 | E25: 2178 | F25: BRAGADO | G25: Interruptor WARNER - O'BRIEN | H25: 33 | I25: 13.097 | J25: 2016-05-04T09:05:00 | K25: 2016-05-04T15:01:00 | L25: 5.933333333 | M25: 356 | N25: P | O25: -- | P25: 50 | Q25: 388.32605 | R25: -- | S25: -- | T25: -- | U25: SI | V25: 388.32605
C26: 158 | D26: 302368 | E26: 3468 | F26: TANDIL | G26: Alimentador 7 EDEA | H26: 13.19999981 | I26: 13.097 | J26: 2016-05-08T06:45:00 | K26: 2016-05-08T09:05:00 | L26: 2.333333333 | M26: 140 | N26: P | O26: -- | P26: 40 | Q26: 122.06404 | R26: -- | S26: -- | T26: -- | U26: SI | V26: 122.06404
C27: 159 | D27: 302372 | E27: 2199 | F27: CHIVILCOY | G27: Alimentador 4 a CHIVILCOY | H27: 13.19999981 | I27: 13.097 | J27: 2016-05-08T08:11:00 | K27: 2016-05-08T11:23:00 | L27: 3.2 | M27: 192 | N27: P | O27: -- | P27: 40 | Q27: 167.6416 | R27: -- | S27: -- | T27: -- | U27: SI | V27: 167.6416
C28: 160 | D28: 302374 | E28: 3837 | F28: TANDIL | G28: Alimentador 6 Coop. TANDIL | H28: 13.19999981 | I28: 13.097 | J28: 2016-05-08T08:21:00 | K28: 2016-05-08T11:23:00 | L28: 3.033333333 | M28: 182 | N28: P | O28: -- | P28: 40 | Q28: 158.73564 | R28: -- | S28: -- | T28: -- | U28: SI | V28: 158.73564
C29: 161 | D29: 302378 | E29: 3717 | F29: SALTO BA | G29: ALIMENTADOR 3 | H29: 13.19999981 | I29: 13.097 | J29: 2016-05-08T09:03:00 | K29: 2016-05-08T11:38:00 | L29: 2.583333333 | M29: 155 | N29: P | O29: -- | P29: 40 | Q29: 135.16104 | R29: -- | S29: -- | T29: -- | U29: SI | V29: 135.16104
C30: 162 | D30: 302380 | E30: 3718 | F30: SALTO BA | G30: ALIMENTADOR 4 | H30: 13.19999981 | I30: 13.097 | J30: 2016-05-08T11:39:00 | K30: 2016-05-08T14:14:00 | L30: 2.583333333 | M30: 155 | N30: P | O30: -- | P30: 40 | Q30: 135.16104 | R30: -- | S30: -- | T30: -- | U30: SI | V30: 135.16104
C31: 163 | D31: 302382 | E31: 2201 | F31: CHIVILCOY | G31: Alimentador 6 a CHIVILCOY | H31: 13.19999981 | I31: 13.097 | J31: 2016-05-08T12:09:00 | K31: 2016-05-08T14:04:00 | L31: 1.916666667 | M31: 115 | N31: P | O31: -- | P31: 40 | Q31: 100.58496 | R31: -- | S31: -- | T31: -- | U31: SI | V31: 100.58496
C32: 164 | D32: 302669 | E32: 5243 | F32: BARADERO | G32: ALIM. 4 | H32: 33 | I32: 13.097 | J32: 2016-05-09T10:31:00 | K32: 2016-05-09T14:39:00 | L32: 4.133333333 | M32: 248 | N32: P | O32: -- | P32: 50 | Q32: 270.45305 | R32: -- | S32: -- | T32: -- | U32: SI | V32: 270.45305
C33: 165 | D33: 302670 | E33: 5273 | F33: MTE. HERMOSO | G33: SALIDA ALIMENTADOR 9ALIM1 | H33: 13.2 | I33: 13.097 | J33: 2016-05-09T11:40:00 | K33: 2016-05-09T17:41:00 | L33: 6.016666667 | M33: 361 | N33: P | O33: -- | P33: 40 | Q33: 315.37576 | R33: -- | S33: -- | T33: -- | U33: SI | V33: 315.37576
C34: 166 | D34: 302671 | E34: 5066 | F34: CAMPANA III | G34: ALIMENTADOR CARDALES | H34: 33 | I34: 13.097 | J34: 2016-05-09T11:57:00 | K34: 2016-05-09T14:51:00 | L34: 2.9 | M34: 174 | N34: P | O34: -- | P34: 50 | Q34: 189.9065 | R34: -- | S34: -- | T34: -- | U34: SI | V34: 189.9065
C35: 167 | D35: 302676 | E35: 5274 | F35: MTE. HERMOSO | G35: SALIDA ALIMENTADOR 9ALIM2 | H35: 13.2 | I35: 13.097 | J35: 2016-05-10T08:35:00 | K35: 2016-05-10T17:50:00 | L35: 9.25 | M35: 555 | N35: P | O35: -- | P35: 40 | Q35: 484.589 | R35: -- | S35: -- | T35: -- | U35: SI | V35: 484.589
C36: 168 | D36: 302682 | E36: 5109 | F36: BRAGADO | G36: ALIMENT. A C.T. BRAGADO | H36: 132 | I36: 17.466 | J36: 2016-05-10T10:57:00 | K36: 2016-05-10T15:04:00 | L36: 4.116666667 | M36: 247 | N36: P | O36: -- | P36: 50 | Q36: 359.7996 | R36: -- | S36: -- | T36: -- | U36: SI | V36: 359.7996
C37: 169 | D37: 302683 | E37: 2321 | F37: G.CHAVES | G37: Alimentador 3 a JUAREZ | H37: 33 | I37: 13.097 | J37: 2016-05-10T11:16:00 | K37: 2016-05-10T19:24:00 | L37: 8.133333333 | M37: 488 | N37: P | O37: -- | P37: 50 | Q37: 532.39305 | R37: -- | S37: -- | T37: -- | U37: SI | V37: 532.39305
C38: 170 | D38: 302686 | E38: 5109 | F38: BRAGADO | G38: ALIMENT. A C.T. BRAGADO | H38: 132 | I38: 17.466 | J38: 2016-05-11T08:33:00 | K38: 2016-05-11T14:06:00 | L38: 5.55 | M38: 333 | N38: P | O38: -- | P38: 50 | Q38: 484.6815 | R38: -- | S38: -- | T38: -- | U38: SI | V38: 484.6815
C39: 171 | D39: 302688 | E39: 5275 | F39: MTE. HERMOSO | G39: SALIDA ALIMENTADOR 9ALIM3 | H39: 13.2 | I39: 13.097 | J39: 2016-05-11T08:45:00 | K39: 2016-05-11T17:33:00 | L39: 8.8 | M39: 528 | N39: P | O39: -- | P39: 40 | Q39: 461.0144 | R39: -- | S39: -- | T39: -- | U39: SI | V39: 461.0144
C40: 172 | D40: 302692 | E40: 2321 | F40: G.CHAVES | G40: Alimentador 3 a JUAREZ | H40: 33 | I40: 13.097 | J40: 2016-05-11T09:19:00 | K40: 2016-05-11T17:33:00 | L40: 8.233333333 | M40: 494 | N40: P | O40: -- | P40: 50 | Q40: 538.94155 | R40: -- | S40: -- | T40: -- | U40: SI | V40: 538.94155
I41: 13.097 | P41: 40 | Q41: -- | R41: -- | S41: -- | T41: -- | U41: =IF(F41="","","SI") -> 
C43: (²) | D43: P - PROGRAMADA | Q43: =SUM(Q20:Q42) -> 5911.57943 | R43: =SUM(R20:R42) -> 0 | S43: =SUM(S20:S42) -> 0 | T43: =SUM(T20:T42) -> 0 | V43: =ROUND(SUM(V20:V42),2) -> 5911.58

Sheet SA-05 (2)
B2: ='TOT-0516'!B2 -> ANEXO VI al Memorándum D.T.E.E. N° 243/2017
F8: SISTEMA DE TRANSPORTE DE ENERGÍA ELÉCTRICA POR DISTRIBUCIÓN TRONCAL - TRANSBA S.A.
F10: 2.2.- Salidas
B12: ='TOT-0516'!B14 -> Desde el 01 al 31 de mayo de 2016
F14: Salida en 220 kV | G14: 34.93 | H14: =60*'TOT-0516'!B13 -> 60 | J14: =IF(H14=60," ",IF(H14=120," Coeficiente duplicado por tasa de falla >4 Sal. x año/100 km."," REVISAR COEFICIENTE")) -> 
F15: Salida en 132 kV o 66 kV = | G15: 17.466 | H15: =50*'TOT-0516'!B13 -> 50 | J15: =IF(H15=50," ",IF(H15=100," Coeficiente duplicado por tasa de falla >4 Sal. x año/100 km."," REVISAR COEFICIENTE")) -> 
F16: Salida en 33 kV | G16: 13.097 | H16: =50*'TOT-0516'!B13 -> 50 | J16: =IF(H16=50," ",IF(H16=100," Coeficiente duplicado por tasa de falla >4 Sal. x año/100 km."," REVISAR COEFICIENTE")) -> 
F17: Salida en 13,2 kV = | G17: 13.097 | H17: =40*'TOT-0516'!B13 -> 40 | J17: =IF(H17=40," ",IF(H17=80," Coeficiente duplicado por tasa de falla >4 Sal. x año/100 km."," REVISAR COEFICIENTE")) -> 
C18: 3 | D18: 4 | E18: 5 | F18: 6 | G18: 7 | H18: 8 | I18: 9 | J18: 10 | K18: 11 | L18: 12 | M18: 13 | N18: 14 | O18: 15 | P18: 16 | Q18: 17 | R18: 18 | S18: 19 | T18: 20 | U18: 21 | V18: 22
C19: N° | D19: INDISP | E19: ID EQUIPO | F19: ESTACIÓN TRANSFORMADORA | G19: EQUIPO | H19: U [kV] | I19: $/h | J19: Salida | K19: Entrada | L19: Hs Indisp. | M19: Minutos. Indisp. | N19: Tipo Sal.(²) | O19: AUT. | P19: K (U) | Q19: PENALIZAC. PROGRAM. | R19: PENALIZACIÓN FORZADA Por Salida hs. Restantes | T19: RESTANTE FORZADA | U19: Informó en Térm. | V19: TOTAL PENALIZAC.
V20: ='SA-05 (1)'!V43 -> 5911.58
C22: 173 | D22: 302694 | E22: 2504 | F22: PUNTA ALTA | G22: Alimentador a BASE NAVAL P.BELG. 4 | H22: 33 | I22: =IF(H22=220,$G$14,IF(AND(H22<=132,H22>=66),$G$15,IF(AND(H22<66,H22>=33),$G$16,$G$17))) -> 13.097 | J22: 2016-05-11T10:38:00 | K22: 2016-05-11T17:38:00 | L22: =IF(F22="","",(K22-J22)*24) -> 7 | M22: =IF(F22="","",ROUND((K22-J22)*24*60,0)) -> 420 | N22: P | O22: =IF(F22="","",IF(OR(N22="P",N22="RP"),"--","NO")) -> -- | P22: =IF(H22=220,$H$14,IF(AND(H22<=132,H22>=66),$H$15,IF(AND(H22<66,H22>13.2),$H$16,$H$17))) -> 50 | Q22: =IF(N22="P",I22*P22*ROUND(M22/60,2)*0.1,"--") -> 458.395 | R22: =IF(AND(N22="F",O22="NO"),I22*P22,"--") -> -- | S22: =IF(N22="F",I22*P22*ROUND(M22/60,2),"--") -> -- | T22: =IF(N22="RF",I22*P22*ROUND(M22/60,2),"--") -> -- | U22: SI | V22: =IF(F22="","",SUM(Q22:T22)*IF(U22="SI",1,2)*IF(H22="500/220",0,1)) -> 458.395
C23: 174 | D23: 302695 | E23: 2167 | F23: IMSA | G23: Alimentador 1 | H23: 13.19999981 | I23: 13.097 | J23: 2016-05-11T12:13:00 | K23: 2016-05-11T15:20:00 | L23: 3.116666667 | M23: 187 | N23: P | O23: =IF(F23="","",IF(OR(N23="P",N23="RP"),"--","NO")) -> -- | P23: 40 | Q23: 163.45056 | R23: -- | S23: -- | T23: -- | U23: SI | V23: 163.45056
C24: 175 | D24: 302696 | E24: 5276 | F24: MTE. HERMOSO | G24: SALIDA ALIMENTADOR 9ALIM4 | H24: 13.2 | I24: 13.097 | J24: 2016-05-12T08:19:00 | K24: 2016-05-12T17:43:00 | L24: 9.4 | M24: 564 | N24: P | O24: -- | P24: 40 | Q24: 492.4472 | R24: -- | S24: -- | T24: -- | U24: SI | V24: 492.4472
C25: 176 | D25: 302699 | E25: 2321 | F25: G.CHAVES | G25: Alimentador 3 a JUAREZ | H25: 33 | I25: 13.097 | J25: 2016-05-12T08:43:00 | K25: 2016-05-12T19:08:00 | L25: 10.41666667 | M25: 625 | N25: P | O25: -- | P25: 50 | Q25: 682.3537 | R25: -- | S25: -- | T25: -- | U25: SI | V25: 682.3537
C26: 177 | D26: 302705 | E26: 2504 | F26: PUNTA ALTA | G26: Alimentador a BASE NAVAL P.BELG. 4 | H26: 33 | I26: 13.097 | J26: 2016-05-12T09:42:00 | K26: 2016-05-12T17:04:00 | L26: 7.366666667 | M26: 442 | N26: P | O26: -- | P26: 50 | Q26: 482.62445 | R26: -- | S26: -- | T26: -- | U26: SI | V26: 482.62445
C27: 178 | D27: 302709 | E27: 2168 | F27: IMSA | G27: Alimentador 2 | H27: 13.19999981 | I27: 13.097 | J27: 2016-05-12T12:18:00 | K27: 2016-05-12T14:23:00 | L27: 2.083333333 | M27: 125 | N27: P | O27: -- | P27: 40 | Q27: 108.96704 | R27: -- | S27: -- | T27: -- | U27: SI | V27: 108.96704
C29: 180 | D29: 302713 | E29: 5277 | F29: MTE. HERMOSO | G29: SALIDA ALIMENTADOR 9MOHE5 | H29: 13.2 | I29: 13.097 | J29: 2016-05-13T08:50:00 | K29: 2016-05-13T14:09:00 | L29: 5.316666667 | M29: 319 | N29: P | O29: -- | P29: 40 | Q29: 278.70416 | R29: -- | S29: -- | T29: -- | U29: SI | V29: 278.70416
C30: 181 | D30: 302715 | E30: 2322 | F30: G.CHAVES | G30: Alimentador 4 a SAN CAYETANO | H30: 33 | I30: 13.097 | J30: 2016-05-13T09:19:00 | K30: 2016-05-13T14:02:00 | L30: 4.716666667 | M30: 283 | N30: P | O30: -- | P30: 50 | Q30: 309.0892 | R30: -- | S30: -- | T30: -- | U30: SI | V30: 309.0892
C31: 182 | D31: 302719 | E31: 5290 | F31: BRAGADO | G31: 9ALIM2 | H31: 13.2 | I31: 13.097 | J31: 2016-05-13T12:51:00 | K31: 2016-05-13T15:25:00 | L31: 2.566666667 | M31: 154 | N31: P | O31: -- | P31: 40 | Q31: 134.63716 | R31: -- | S31: -- | T31: -- | U31: SI | V31: 134.63716
C32: 183 | D32: 302727 | E32: 4590 | F32: SALTO - BA | G32: Alimentador 1 a SALTO | H32: 13.19999981 | I32: 13.097 | J32: 2016-05-15T08:02:00 | K32: 2016-05-15T11:12:00 | L32: 3.166666667 | M32: 190 | N32: P | O32: -- | P32: 40 | Q32: 166.06996 | R32: -- | S32: -- | T32: -- | U32: SI | V32: 166.06996
C33: 184 | D33: 302730 | E33: 4977 | F33: SALTO BA | G33: ALIMENTADOR 2 | H33: 13.19999981 | I33: 13.097 | J33: 2016-05-15T11:13:00 | K33: 2016-05-15T14:30:00 | L33: 3.283333333 | M33: 197 | N33: P | O33: -- | P33: 40 | Q33: 171.83264 | R33: -- | S33: -- | T33: -- | U33: SI | V33: 171.83264
C34: 185 | D34: 302957 | E34: 5068 | F34: SALTO BA | G34: ALIMENTADOR A C.T. SALTO | H34: 13.19999981 | I34: 13.097 | J34: 2016-05-16T07:40:00 | K34: 2016-05-16T09:40:00 | L34: 2 | M34: 120 | N34: P | O34: -- | P34: 40 | Q34: 104.776 | R34: -- | S34: -- | T34: -- | U34: SI | V34: 104.776
C35: 186 | D35: 302962 | E35: 2250 | F35: LINCOLN | G35: Alimentador a VEDIA | H35: 33 | I35: 13.097 | J35: 2016-05-17T08:43:00 | K35: 2016-05-17T15:37:00 | L35: 6.9 | M35: 414 | N35: P | O35: -- | P35: 50 | Q35: 451.8465 | R35: -- | S35: -- | T35: -- | U35: SI | V35: 451.8465
C36: 187 | D36: 302977 | E36: 2251 | F36: LINCOLN | G36: Alimentador a ARENAZA | H36: 33 | I36: 13.097 | J36: 2016-05-18T09:37:00 | K36: 2016-05-18T14:35:00 | L36: 4.966666667 | M36: 298 | N36: P | O36: -- | P36: 50 | Q36: 325.46045 | R36: -- | S36: -- | T36: -- | U36: SI | V36: 325.46045
C37: 188 | D37: 302980 | E37: 2408 | F37: LAS ARMAS | G37: Alimentador 1 a LAS ARMAS | H37: 13.19999981 | I37: 13.097 | J37: 2016-05-18T09:56:00 | K37: 2016-05-18T12:10:00 | L37: 2.233333333 | M37: 134 | N37: P | O37: -- | P37: 40 | Q37: 116.82524 | R37: -- | S37: -- | T37: -- | U37: SI | V37: 116.82524
C38: 189 | D38: 303003 | E38: 3720 | F38: SALTO BA | G38: ALIMENTADOR 6 | H38: 13.19999981 | I38: 13.097 | J38: 2016-05-22T07:49:00 | K38: 2016-05-22T11:12:00 | L38: 3.383333333 | M38: 203 | N38: P | O38: -- | P38: 40 | Q38: 177.07144 | R38: -- | S38: -- | T38: -- | U38: SI | V38: 177.07144
C39: 190 | D39: 303006 | E39: 2388 | F39: AZUL | G39: Alimentador 1 a Coop. AZUL | H39: 33 | I39: 13.097 | J39: 2016-05-22T08:17:00 | K39: 2016-05-22T13:10:00 | L39: 4.883333333 | M39: 293 | N39: P | O39: -- | P39: 50 | Q39: 319.5668 | R39: -- | S39: -- | T39: -- | U39: SI | V39: 319.5668
C40: 191 | D40: 303010 | E40: 5239 | F40: SALTO | G40: SALIDA ALIMENTADOR 9SALT7 | H40: 13.2 | I40: 13.097 | J40: 2016-05-22T11:09:00 | K40: 2016-05-22T13:54:00 | L40: 2.75 | M40: 165 | N40: P | O40: -- | P40: 40 | Q40: 144.067 | R40: -- | S40: -- | T40: -- | U40: SI | V40: 144.067
C41: 192 | D41: 303011 | E41: 2389 | F41: AZUL | G41: Alimentador 2 a Coop. AZUL | H41: 33 | I41: 13.097 | J41: 2016-05-22T13:11:00 | K41: 2016-05-22T16:22:00 | L41: 3.183333333 | M41: 191 | N41: P | O41: -- | P41: 50 | Q41: 208.2423 | R41: -- | S41: -- | T41: -- | U41: SI | V41: 208.2423
C42: 193 | D42: 303013 | E42: 3719 | F42: SALTO | G42: SALIDA ALIMENTADOR 5 | H42: 13.2 | I42: 13.097 | J42: 2016-05-22T14:08:00 | K42: 2016-05-22T16:49:00 | L42: 2.683333333 | M42: 161 | N42: P | O42: -- | P42: 40 | Q42: 140.39984 | R42: -- | S42: -- | T42: -- | U42: SI | V42: 140.39984
C44: (²) | D44: P - PROGRAMADA | Q44: =SUM(Q20:Q43) -> 5436.82664 | R44: =SUM(R20:R43) -> 0 | S44: =SUM(S20:S43) -> 0 | T44: =SUM(T20:T43) -> 0 | V44: =ROUND(SUM(V20:V43),2) -> 11348.41

Sheet SA-05 (3)
B2: ='TOT-0516'!B2 -> ANEXO VI al Memorándum D.T.E.E. N° 243/2017
F8: SISTEMA DE TRANSPORTE DE ENERGÍA ELÉCTRICA POR DISTRIBUCIÓN TRONCAL - TRANSBA S.A.
F10: 2.2.- Salidas
B12: ='TOT-0516'!B14 -> Desde el 01 al 31 de mayo de 2016
F14: Salida en 220 kV | G14: 34.93 | H14: =60*'TOT-0516'!B13 -> 60 | J14: =IF(H14=60," ",IF(H14=120," Coeficiente duplicado por tasa de falla >4 Sal. x año/100 km."," REVISAR COEFICIENTE")) -> 
F15: Salida en 132 kV o 66 kV = | G15: 17.466 | H15: =50*'TOT-0516'!B13 -> 50 | J15: =IF(H15=50," ",IF(H15=100," Coeficiente duplicado por tasa de falla >4 Sal. x año/100 km."," REVISAR COEFICIENTE")) -> 
F16: Salida en 33 kV | G16: 13.097 | H16: =50*'TOT-0516'!B13 -> 50 | J16: =IF(H16=50," ",IF(H16=100," Coeficiente duplicado por tasa de falla >4 Sal. x año/100 km."," REVISAR COEFICIENTE")) -> 
F17: Salida en 13,2 kV = | G17: 13.097 | H17: =40*'TOT-0516'!B13 -> 40 | J17: =IF(H17=40," ",IF(H17=80," Coeficiente duplicado por tasa de falla >4 Sal. x año/100 km."," REVISAR COEFICIENTE")) -> 
C18: 3 | D18: 4 | E18: 5 | F18: 6 | G18: 7 | H18: 8 | I18: 9 | J18: 10 | K18: 11 | L18: 12 | M18: 13 | N18: 14 | O18: 15 | P18: 16 | Q18: 17 | R18: 18 | S18: 19 | T18: 20 | U18: 21 | V18: 22
C19: N° | D19: INDISP | E19: ID EQUIPO | F19: ESTACIÓN TRANSFORMADORA | G19: EQUIPO | H19: U [kV] | I19: $/h | J19: Salida | K19: Entrada | L19: Hs Indisp. | M19: Minutos. Indisp. | N19: Tipo Sal.(²) | O19: AUT. | P19: K (U) | Q19: PENALIZAC. PROGRAM. | R19: PENALIZACIÓN FORZADA Por Salida hs. Restantes | T19: RESTANTE FORZADA | U19: Informó en Térm. | V19: TOTAL PENALIZAC.
V20: ='SA-05 (2)'!V44 -> 11348.41
C22: 194 | D22: 303174 | E22: 2413 | F22: CHASCOMUS | G22: Alimentador a VILLA DEL SUR-GANDARA | H22: 33 | I22: =IF(H22=220,$G$14,IF(AND(H22<=132,H22>=66),$G$15,IF(AND(H22<66,H22>=33),$G$16,$G$17))) -> 13.097 | J22: 2016-05-23T09:49:00 | K22: 2016-05-23T17:00:00 | L22: =IF(F22="","",(K22-J22)*24) -> 7.183333333 | M22: =IF(F22="","",ROUND((K22-J22)*24*60,0)) -> 431 | N22: P | O22: =IF(F22="","",IF(OR(N22="P",N22="RP"),"--","NO")) -> -- | P22: =IF(H22=220,$H$14,IF(AND(H22<=132,H22>=66),$H$15,IF(AND(H22<66,H22>13.2),$H$16,$H$17))) -> 50 | Q22: =IF(N22="P",I22*P22*ROUND(M22/60,2)*0.1,"--") -> 470.1823 | R22: =IF(AND(N22="F",O22="NO"),I22*P22,"--") -> -- | S22: =IF(N22="F",I22*P22*ROUND(M22/60,2),"--") -> -- | T22: =IF(N22="RF",I22*P22*ROUND(M22/60,2),"--") -> -- | U22: SI | V22: =IF(F22="","",SUM(Q22:T22)*IF(U22="SI",1,2)*IF(H22="500/220",0,1)) -> 470.1823
C23: 195 | D23: 303176 | E23: 2413 | F23: CHASCOMUS | G23: Alimentador a VILLA DEL SUR-GANDARA | H23: 33 | I23: 13.097 | J23: 2016-05-24T08:06:00 | K23: 2016-05-24T15:03:00 | L23: 6.95 | M23: 417 | N23: P | O23: =IF(F23="","",IF(OR(N23="P",N23="RP"),"--","NO")) -> -- | P23: 50 | Q23: 455.12075 | R23: -- | S23: -- | T23: -- | U23: SI | V23: 455.12075
C24: 196 | D24: 303187 | E24: 2412 | F24: CHASCOMUS | G24: Alimentador a LEZAMA | H24: 33 | I24: 13.097 | J24: 2016-05-26T09:48:00 | K24: 2016-05-26T17:16:00 | L24: 7.466666667 | M24: 448 | N24: P | O24: -- | P24: 50 | Q24: 489.17295 | R24: -- | S24: -- | T24: -- | U24: SI | V24: 489.17295
C25: 197 | D25: 303197 | E25: 2412 | F25: CHASCOMUS | G25: Alimentador a LEZAMA | H25: 33 | I25: 13.097 | J25: 2016-05-27T09:17:00 | K25: 2016-05-27T16:13:00 | L25: 6.933333333 | M25: 416 | N25: P | O25: -- | P25: 50 | Q25: 453.81105 | R25: -- | S25: -- | T25: -- | U25: SI | V25: 453.81105
C26: 198 | D26: 303250 | E26: 2117 | F26: ROJAS | G26: Alimentador a Coop. COLON | H26: 33 | I26: 13.097 | J26: 2016-05-31T08:39:00 | K26: 2016-05-31T09:04:00 | L26: 0.4166666666 | M26: 25 | N26: P | O26: -- | P26: 50 | Q26: 27.5037 | R26: -- | S26: -- | T26: -- | U26: SI | V26: 27.5037
I27: 13.097 | P27: 40 | Q27: -- | R27: -- | S27: -- | T27: -- | U27: =IF(F27="","","SI") -> 
I28: 13.097 | P28: 40 | Q28: -- | R28: -- | S28: -- | T28: --
I29: 13.097 | P29: 40 | Q29: -- | R29: -- | S29: -- | T29: --
I30: 13.097 | P30: 40 | Q30: -- | R30: -- | S30: -- | T30: --
I31: 13.097 | P31: 40 | Q31: -- | R31: -- | S31: -- | T31: --
I32: 13.097 | P32: 40 | Q32: -- | R32: -- | S32: -- | T32: --
I33: 13.097 | P33: 40 | Q33: -- | R33: -- | S33: -- | T33: --
I34: 13.097 | P34: 40 | Q34: -- | R34: -- | S34: -- | T34: --
I35: 13.097 | P35: 40 | Q35: -- | R35: -- | S35: -- | T35: --
I36: 13.097 | P36: 40 | Q36: -- | R36: -- | S36: -- | T36: --
I37: 13.097 | P37: 40 | Q37: -- | R37: -- | S37: -- | T37: --
I38: 13.097 | P38: 40 | Q38: -- | R38: -- | S38: -- | T38: --
I39: 13.097 | P39: 40 | Q39: -- | R39: -- | S39: -- | T39: --
I40: 13.097 | P40: 40 | Q40: -- | R40: -- | S40: -- | T40: --
I41: 13.097 | P41: 40 | Q41: -- | R41: -- | S41: -- | T41: --
C43: (²) | D43: P - PROGRAMADA | Q43: =SUM(Q20:Q42) -> 1895.79075 | R43: =SUM(R20:R42) -> 0 | S43: =SUM(S20:S42) -> 0 | T43: =SUM(T20:T42) -> 0 | V43: =ROUND(SUM(V20:V42),2) -> 13244.2

Sheet RE-05 (1)
B2: ='TOT-0516'!B2 -> ANEXO VI al Memorándum D.T.E.E. N° 243/2017
F8: SISTEMA DE TRANSPORTE DE ENERGÍA ELÉCTRICA POR DISTRIBUCIÓN TRONCAL - TRANSBA S.A.
F10: 3.- REACTIVA
F12: 3.1.1- Equipamiento propio Res. 01_03
B14: ='TOT-0516'!B14 -> Desde el 01 al 31 de mayo de 2016
F16: Coeficiente de penalización por salida forzada = | J16: =60*'TOT-0516'!B13 -> 60 | L16: =IF(J16=60," ",IF(J16=120," Coeficiente duplicado por tasa de falla >4 Sal. x año/100 km."," REVISAR COEFICIENTE")) -> 
C17: 3 | D17: 4 | E17: 5 | F17: 6 | G17: 7 | H17: 8 | I17: 9 | J17: 10 | K17: 11 | L17: 12 | M17: 13 | N17: 14 | O17: 15 | P17: 16 | Q17: 17 | R17: 18 | S17: 19 | T17: 20 | U17: 21 | V17: 22 | W17: 23 | X17: 24 | Y17: 25 | Z17: 26 | AA17: 27 | AB17: 28 | AC17: 29 | AD17: 30
C18: N° | D18: INDISP | E18: ID EQUIPO | F18: ESTACIÓN TRANSFORMADORA | G18: EQUIPO | H18: POT. [MVA] | I18: MVA $ = | J18: U [kV] | K18: $/h | L18: Salida | M18: Entrada | N18: Hs Indisp. | O18: Minutos. Indisp. | P18: Tipo Sal.(²) | Q18: AUT. | R18: C.R. % | S18: E.N.S. | T18: K (P y ENS) | U18: PENALIZ. PROGRAM. | V18: REDUCC. PROGRAM. | W18: PENALIZACIÓN FORZADA Por Salida hs. Restantes | Y18: REDUCC. FORZADA Por Salida hs. Restantes | AA18: RESTANTE FORZADA | AB18: REDUCC. RESTANTE | AC18: Informó en Térm. | AD18: TOTAL PENALIZAC.
K20: =H20*I20 -> 0 | N20: =IF(F20="","",(M20-L20)*24) ->  | O20: =IF(F20="","",ROUND((M20-L20)*24*60,0)) ->  | T20: =$J$16*IF(OR(P20="P",P20="RP"),0.1,1)*IF(S20="SI",1,0.1) -> 6 | U20: =IF(P20="P",K20*T20*ROUND(O20/60,2),"--") -> -- | V20: =IF(P20="RP",K20*T20*ROUND(O20/60,2)*R20/100,"--") -> -- | W20: =IF(AND(P20="F",Q20="NO"),K20*T20,"--") -> -- | X20: =IF(P20="F",K20*T20*ROUND(O20/60,2),"--") -> -- | Y20: =IF(AND(P20="R",Q20="NO"),K20*T20*R20/100,"--") -> -- | Z20: =IF(P20="R",K20*T20*ROUND(O20/60,2)*R20/100,"--") -> -- | AA20: =IF(P20="RF",K20*T20*ROUND(O20/60,2),"--") -> -- | AB20: =IF(P20="RR",K20*T20*ROUND(O20/60,2)*R20/100,"--") -> -- | AD20: =IF(F20="","",SUM(U20:AB20)*IF(AC20="SI",1,2)) -> 
C21: 199 | D21: 302681 | E21: 4450 | F21: MERCEDES | G21: CAP K1MD | H21: 1.5 | I21: 4.874 | J21: 13.8 | K21: =H21*I21 -> 7.311 | L21: 2016-05-10T10:35:00 | M21: 2016-05-10T11:57:00 | N21: 1.366666667 | O21: 82 | P21: P | Q21: 0,000 | R21: =IF(F21="","","--") -> -- | S21: =IF(F21="","","NO") -> NO | T21: 0.6 | U21: 6.009642 | V21: -- | W21: -- | X21: -- | Y21: -- | Z21: -- | AA21: -- | AB21: -- | AC21: SI | AD21: 6.009642
C22: 200 | D22: 302684 | E22: 4451 | F22: MERCEDES | G22: CAP K3MD | H22: 3 | I22: 4.874 | J22: 13.8 | K22: =H22*I22 -> 14.622 | L22: 2016-05-10T11:58:00 | M22: 2016-05-10T13:08:00 | N22: 1.166666667 | O22: 70 | P22: P | Q22: 0,000 | R22: =IF(F22="","","--") -> -- | S22: =IF(F22="","","NO") -> NO | T22: 0.6 | U22: 10.264644 | V22: -- | W22: -- | X22: -- | Y22: -- | Z22: -- | AA22: -- | AB22: -- | AC22: SI | AD22: 10.264644
K23: =H23*I23 -> 0 | Q23: =IF(F23="","",IF(OR(P23="P",P23="RP"),"--","NO")) ->  | T23: 6 | U23: -- | V23: -- | W23: -- | X23: -- | Y23: -- | Z23: -- | AA23: -- | AB23: -- | AC23: =IF(F23="","","SI") -> 
T24: 6 | U24: -- | V24: -- | W24: -- | X24: -- | Y24: -- | Z24: -- | AA24: -- | AB24: --
T25: 6 | U25: -- | V25: -- | W25: -- | X25: -- | Y25: -- | Z25: -- | AA25: -- | AB25: --
T26: 6 | U26: -- | V26: -- | W26: -- | X26: -- | Y26: -- | Z26: -- | AA26: -- | AB26: --
T27: 6 | U27: -- | V27: -- | W27: -- | X27: -- | Y27: -- | Z27: -- | AA27: -- | AB27: --
K28: =H28*I28 -> 0 | T28: 6 | U28: -- | V28: -- | W28: -- | X28: -- | Y28: -- | Z28: -- | AA28: -- | AB28: --
T29: 6 | U29: -- | V29: -- | W29: -- | X29: -- | Y29: -- | Z29: -- | AA29: -- | AB29: --
T30: 6 | U30: -- | V30: -- | W30: -- | X30: -- | Y30: -- | Z30: -- | AA30: -- | AB30: --
T31: 6 | U31: -- | V31: -- | W31: -- | X31: -- | Y31: -- | Z31: -- | AA31: -- | AB31: --
T32: 6 | U32: -- | V32: -- | W32: -- | X32: -- | Y32: -- | Z32: -- | AA32: -- | AB32: --
T33: 6 | U33: -- | V33: -- | W33: -- | X33: -- | Y33: -- | Z33: -- | AA33: -- | AB33: --
T34: 6 | U34: -- | V34: -- | W34: -- | X34: -- | Y34: -- | Z34: -- | AA34: -- | AB34: --
T35: 6 | U35: -- | V35: -- | W35: -- | X35: -- | Y35: -- | Z35: -- | AA35: -- | AB35: --
T36: 6 | U36: -- | V36: -- | W36: -- | X36: -- | Y36: -- | Z36: -- | AA36: -- | AB36: --
T37: 6 | U37: -- | V37: -- | W37: -- | X37: -- | Y37: -- | Z37: -- | AA37: -- | AB37: --
T38: 6 | U38: -- | V38: -- | W38: -- | X38: -- | Y38: -- | Z38: -- | AA38: -- | AB38: --
T39: 6 | U39: -- | V39: -- | W39: -- | X39: -- | Y39: -- | Z39: -- | AA39: -- | AB39: --
T40: 6 | U40: -- | V40: -- | W40: -- | X40: -- | Y40: -- | Z40: -- | AA40: -- | AB40: --
T41: 6 | U41: -- | V41: -- | W41: -- | X41: -- | Y41: -- | Z41: -- | AA41: -- | AB41: --
C43: (²) | D43: P - PROGRAMADA | U43: =SUM(U19:U42) -> 16.274286 | V43: =SUM(V19:V42) -> 0 | W43: =SUM(W19:W42) -> 0 | X43: =SUM(X21:X42) -> 0 | Y43: =SUM(Y19:Y42) -> 0 | Z43: =SUM(Z21:Z42) -> 0 | AA43: =SUM(AA19:AA42) -> 0 | AB43: =SUM(AB21:AB42) -> 0 | AD43: =ROUND(SUM(AD19:AD42),2) -> 16.27

Sheet TASA FALLA
B2: =+'TOT-0516'!B2 -> ANEXO VI al Memorándum D.T.E.E. N° 243/2017
B5: SISTEMA DE TRANSPORTE DE ENERGÍA ELÉCTRICA POR DISTRIBUCIÓN TRONCAL
B7: TRANSBA S.A.
B9: INDISPONIBILIDADES FORZADAS DE LÍNEAS - TASA DE FALLA
B12: Tasa de falla correspondiente al mes de Mayo de 2016
D14: Codigo | E14: LÍNEAS | F14: U [kV] | G14: Long. [km] | H14: CLASE | I14: =[1]BASE!HK$15 -> 2015-05-01 | J14: =[1]BASE!HL$15 -> 2015-06-01 | K14: =[1]BASE!HM$15 -> 2015-07-01 | L14: =[1]BASE!HN$15 -> 2015-08-01 | M14: =[1]BASE!HO$15 -> 2015-09-01 | N14: =[1]BASE!HP$15 -> 2015-10-01 | O14: =[1]BASE!HQ$15 -> 2015-11-01 | P14: =[1]BASE!HR$15 -> 2015-12-01 | Q14: =[1]BASE!HS$15 -> 2016-01-01 | R14: =[1]BASE!HT$15 -> 2016-02-01 | S14: =[1]BASE!HU$15 -> 2016-03-01 | T14: =[1]BASE!HV$15 -> 2016-04-01 | U14: =[1]BASE!HW$15 -> 2016-05-01
C16: =+[1]BASE!C17 -> 1 | D16: =+[1]BASE!D17 -> 1403 | E16: =+[1]BASE!E17 -> BRAGADO - HENDERSON | F16: =+[1]BASE!F17 -> 220 | G16: =+[1]BASE!G17 -> 177 | H16: =+[1]BASE!H17 -> A | I16: =IF([1]BASE!HK17="","",[1]BASE!HK17) ->  | J16: =IF([1]BASE!HL17="","",[1]BASE!HL17) ->  | K16: =IF([1]BASE!HM17="","",[1]BASE!HM17) ->  | L16: =IF([1]BASE!HN17="","",[1]BASE!HN17) ->  | M16: =IF([1]BASE!HO17="","",[1]BASE!HO17) ->  | N16: =IF([1]BASE!HP17="","",[1]BASE!HP17) ->  | O16: =IF([1]BASE!HQ17="","",[1]BASE!HQ17) ->  | P16: =IF([1]BASE!HR17="","",[1]BASE!HR17) ->  | Q16: =IF([1]BASE!HS17="","",[1]BASE!HS17) ->  | R16: =IF([1]BASE!HT17="","",[1]BASE!HT17) ->  | S16: =IF([1]BASE!HU17="","",[1]BASE!HU17) -> 1 | T16: =IF([1]BASE!HV17="","",[1]BASE!HV17) -> 
C17: =+[1]BASE!C18 -> 2 | D17: =+[1]BASE!D18 -> CE-000 | E17: =+[1]BASE!E18 -> AZUL - LAS FLORES | F17: =+[1]BASE!F18 -> 132 | G17: =+[1]BASE!G18 -> 107 | H17: =+[1]BASE!H18 -> C | I17: =IF([1]BASE!HK18="","",[1]BASE!HK18) -> XXXX | J17: =IF([1]BASE!HL18="","",[1]BASE!HL18) -> XXXX | K17: =IF([1]BASE!HM18="","",[1]BASE!HM18) -> XXXX | L17: =IF([1]BASE!HN18="","",[1]BASE!HN18) -> XXXX | M17: =IF([1]BASE!HO18="","",[1]BASE!HO18) -> XXXX | N17: =IF([1]BASE!HP18="","",[1]BASE!HP18) -> XXXX | O17: =IF([1]BASE!HQ18="","",[1]BASE!HQ18) -> XXXX | P17: =IF([1]BASE!HR18="","",[1]BASE!HR18) -> XXXX | Q17: =IF([1]BASE!HS18="","",[1]BASE!HS18) -> XXXX | R17: =IF([1]BASE!HT18="","",[1]BASE!HT18) -> XXXX | S17: =IF([1]BASE!HU18="","",[1]BASE!HU18) -> XXXX | T17: =IF([1]BASE!HV18="","",[1]BASE!HV18) -> XXXX
C18: =+[1]BASE!C19 -> 3 | D18: =+[1]BASE!D19 -> 1534 | E18: =+[1]BASE!E19 -> BAHIA BLANCA - NORTE II | F18: =+[1]BASE!F19 -> 132 | G18: =+[1]BASE!G19 -> 19 | H18: =+[1]BASE!H19 -> C | I18: =IF([1]BASE!HK19="","",[1]BASE!HK19) ->  | J18: =IF([1]BASE!HL19="","",[1]BASE!HL19) ->  | K18: =IF([1]BASE!HM19="","",[1]BASE!HM19) ->  | L18: =IF([1]BASE!HN19="","",[1]BASE!HN19) ->  | M18: =IF([1]BASE!HO19="","",[1]BASE!HO19) ->  | N18: =IF([1]BASE!HP19="","",[1]BASE!HP19) ->  | O18: =IF([1]BASE!HQ19="","",[1]BASE!HQ19) ->  | P18: =IF([1]BASE!HR19="","",[1]BASE!HR19) ->  | Q18: =IF([1]BASE!HS19="","",[1]BASE!HS19) ->  | R18: =IF([1]BASE!HT19="","",[1]BASE!HT19) ->  | S18: =IF([1]BASE!HU19="","",[1]BASE!HU19) ->  | T18: =IF([1]BASE!HV19="","",[1]BASE!HV19) -> 
C19: =+[1]BASE!C20 -> 4 | D19: =+[1]BASE!D20 -> 1532 | E19: =+[1]BASE!E20 -> BAHIA BLANCA - P. LURO | F19: =+[1]BASE!F20 -> 132 | G19: =+[1]BASE!G20 -> 141 | H19: =+[1]BASE!H20 -> B | I19: =IF([1]BASE!HK20="","",[1]BASE!HK20) ->  | J19: =IF([1]BASE!HL20="","",[1]BASE!HL20) ->  | K19: =IF([1]BASE!HM20="","",[1]BASE!HM20) ->  | L19: =IF([1]BASE!HN20="","",[1]BASE!HN20) ->  | M19: =IF([1]BASE!HO20="","",[1]BASE!HO20) ->  | N19: =IF([1]BASE!HP20="","",[1]BASE!HP20) ->  | O19: =IF([1]BASE!HQ20="","",[1]BASE!HQ20) -> 1 | P19: =IF([1]BASE!HR20="","",[1]BASE!HR20) ->  | Q19: =IF([1]BASE!HS20="","",[1]BASE!HS20) ->  | R19: =IF([1]BASE!HT20="","",[1]BASE!HT20) ->  | S19: =IF([1]BASE!HU20="","",[1]BASE!HU20) ->  | T19: =IF([1]BASE!HV20="","",[1]BASE!HV20) -> 
C20: =+[1]BASE!C21 -> 5 | D20: =+[1]BASE!D21 -> 1535 | E20: =+[1]BASE!E21 -> BAHIA BLANCA - PETROQ. BAHIA BLANCA 1 | F20: =+[1]BASE!F21 -> 132 | G20: =+[1]BASE!G21 -> 29.8 | H20: =+[1]BASE!H21 -> C | I20: =IF([1]BASE!HK21="","",[1]BASE!HK21) ->  | J20: =IF([1]BASE!HL21="","",[1]BASE!HL21) ->  | K20: =IF([1]BASE!HM21="","",[1]BASE!HM21) ->  | L20: =IF([1]BASE!HN21="","",[1]BASE!HN21) ->  | M20: =IF([1]BASE!HO21="","",[1]BASE!HO21) ->  | N20: =IF([1]BASE!HP21="","",[1]BASE!HP21) ->  | O20: =IF([1]BASE!HQ21="","",[1]BASE!HQ21) ->  | P20: =IF([1]BASE!HR21="","",[1]BASE!HR21) ->  | Q20: =IF([1]BASE!HS21="","",[1]BASE!HS21) ->  | R20: =IF([1]BASE!HT21="","",[1]BASE!HT21) ->  | S20: =IF([1]BASE!HU21="","",[1]BASE!HU21) ->  | T20: =IF([1]BASE!HV21="","",[1]BASE!HV21) -> 
C21: =+[1]BASE!C22 -> 6 | D21: =+[1]BASE!D22 -> 1531 | E21: =+[1]BASE!E22 -> BAHIA BLANCA - PRINGLES | F21: =+[1]BASE!F22 -> 132 | G21: =+[1]BASE!G22 -> 102.09 | H21: =+[1]BASE!H22 -> C | I21: =IF([1]BASE!HK22="","",[1]BASE!HK22) ->  | J21: =IF([1]BASE!HL22="","",[1]BASE!HL22) ->  | K21: =IF([1]BASE!HM22="","",[1]BASE!HM22) ->  | L21: =IF([1]BASE!HN22="","",[1]BASE!HN22) ->  | M21: =IF([1]BASE!HO22="","",[1]BASE!HO22) ->  | N21: =IF([1]BASE!HP22="","",[1]BASE!HP22) ->  | O21: =IF([1]BASE!HQ22="","",[1]BASE!HQ22) ->  | P21: =IF([1]BASE!HR22="","",[1]BASE!HR22) ->  | Q21: =IF([1]BASE!HS22="","",[1]BASE!HS22) ->  | R21: =IF([1]BASE!HT22="","",[1]BASE!HT22) ->  | S21: =IF([1]BASE!HU22="","",[1]BASE!HU22) ->  | T21: =IF([1]BASE!HV22="","",[1]BASE!HV22) -> 
C22: =+[1]BASE!C23 -> 7 | D22: =+[1]BASE!D23 -> 1522 | E22: =+[1]BASE!E23 -> BALCARCE - MAR DEL PLATA | F22: =+[1]BASE!F23 -> 132 | G22: =+[1]BASE!G23 -> 62.9 | H22: =+[1]BASE!H23 -> C | I22: =IF([1]BASE!HK23="","",[1]BASE!HK23) ->  | J22: =IF([1]BASE!HL23="","",[1]BASE!HL23) ->  | K22: =IF([1]BASE!HM23="","",[1]BASE!HM23) ->  | L22: =IF([1]BASE!HN23="","",[1]BASE!HN23) ->  | M22: =IF([1]BASE!HO23="","",[1]BASE!HO23) ->  | N22: =IF([1]BASE!HP23="","",[1]BASE!HP23) ->  | O22: =IF([1]BASE!HQ23="","",[1]BASE!HQ23) ->  | P22: =IF([1]BASE!HR23="","",[1]BASE!HR23) ->  | Q22: =IF([1]BASE!HS23="","",[1]BASE!HS23) -> 1 | R22: =IF([1]BASE!HT23="","",[1]BASE!HT23) ->  | S22: =IF([1]BASE!HU23="","",[1]BASE!HU23) ->  | T22: =IF([1]BASE!HV23="","",[1]BASE!HV23) -> 
C23: =+[1]BASE!C24 -> 8 | D23: =+[1]BASE!D24 -> 1406 | E23: =+[1]BASE!E24 -> BRAGADO - CHACABUCO | F23: =+[1]BASE!F24 -> 132 | G23: =+[1]BASE!G24 -> 60.6 | H23: =+[1]BASE!H24 -> B | I23: =IF([1]BASE!HK24="","",[1]BASE!HK24) ->  | J23: =IF([1]BASE!HL24="","",[1]BASE!HL24) ->  | K23: =IF([1]BASE!HM24="","",[1]BASE!HM24) -> 1 | L23: =IF([1]BASE!HN24="","",[1]BASE!HN24) ->  | M23: =IF([1]BASE!HO24="","",[1]BASE!HO24) ->  | N23: =IF([1]BASE!HP24="","",[1]BASE!HP24) -> 1 | O23: =IF([1]BASE!HQ24="","",[1]BASE!HQ24) ->  | P23: =IF([1]BASE!HR24="","",[1]BASE!HR24) ->  | Q23: =IF([1]BASE!HS24="","",[1]BASE!HS24) ->  | R23: =IF([1]BASE!HT24="","",[1]BASE!HT24) ->  | S23: =IF([1]BASE!HU24="","",[1]BASE!HU24) ->  | T23: =IF([1]BASE!HV24="","",[1]BASE!HV24) -> 
C24: =+[1]BASE!C25 -> 9 | D24: =+[1]BASE!D25 -> 1404 | E24: =+[1]BASE!E25 -> BRAGADO - CHIVILCOY | F24: =+[1]BASE!F25 -> 132 | G24: =+[1]BASE!G25 -> 49 | H24: =+[1]BASE!H25 -> B | I24: =IF([1]BASE!HK25="","",[1]BASE!HK25) ->  | J24: =IF([1]BASE!HL25="","",[1]BASE!HL25) ->  | K24: =IF([1]BASE!HM25="","",[1]BASE!HM25) -> 2 | L24: =IF([1]BASE!HN25="","",[1]BASE!HN25) -> 1 | M24: =IF([1]BASE!HO25="","",[1]BASE!HO25) ->  | N24: =IF([1]BASE!HP25="","",[1]BASE!HP25) ->  | O24: =IF([1]BASE!HQ25="","",[1]BASE!HQ25) ->  | P24: =IF([1]BASE!HR25="","",[1]BASE!HR25) ->  | Q24: =IF([1]BASE!HS25="","",[1]BASE!HS25) ->  | R24: =IF([1]BASE!HT25="","",[1]BASE!HT25) ->  | S24: =IF([1]BASE!HU25="","",[1]BASE!HU25) ->  | T24: =IF([1]BASE!HV25="","",[1]BASE!HV25) -> 
C25: =+[1]BASE!C26 -> 10 | D25: =+[1]BASE!D26 -> 1405 | E25: =+[1]BASE!E26 -> BRAGADO - SALADILLO | F25: =+[1]BASE!F26 -> 132 | G25: =+[1]BASE!G26 -> 83.8 | H25: =+[1]BASE!H26 -> B | I25: =IF([1]BASE!HK26="","",[1]BASE!HK26) ->  | J25: =IF([1]BASE!HL26="","",[1]BASE!HL26) ->  | K25: =IF([1]BASE!HM26="","",[1]BASE!HM26) ->  | L25: =IF([1]BASE!HN26="","",[1]BASE!HN26) ->  | M25: =IF([1]BASE!HO26="","",[1]BASE!HO26) ->  | N25: =IF([1]BASE!HP26="","",[1]BASE!HP26) ->  | O25: =IF([1]BASE!HQ26="","",[1]BASE!HQ26) ->  | P25: =IF([1]BASE!HR26="","",[1]BASE!HR26) ->  | Q25: =IF([1]BASE!HS26="","",[1]BASE!HS26) ->  | R25: =IF([1]BASE!HT26="","",[1]BASE!HT26) ->  | S25: =IF([1]BASE!HU26="","",[1]BASE!HU26) ->  | T25: =IF([1]BASE!HV26="","",[1]BASE!HV26) -> 
C26: =+[1]BASE!C27 -> 11 | D26: =+[1]BASE!D27 -> 1454 | E26: =+[1]BASE!E27 -> C. AVELLANEDA - OLAVARRIA VIEJA | F26: =+[1]BASE!F27 -> 132 | G26: =+[1]BASE!G27 -> 6.3 | H26: =+[1]BASE!H27 -> C | I26: =IF([1]BASE!HK27="","",[1]BASE!HK27) ->  | J26: =IF([1]BASE!HL27="","",[1]BASE!HL27) ->  | K26: =IF([1]BASE!HM27="","",[1]BASE!HM27) ->  | L26: =IF([1]BASE!HN27="","",[1]BASE!HN27) ->  | M26: =IF([1]BASE!HO27="","",[1]BASE!HO27) ->  | N26: =IF([1]BASE!HP27="","",[1]BASE!HP27) ->  | O26: =IF([1]BASE!HQ27="","",[1]BASE!HQ27) ->  | P26: =IF([1]BASE!HR27="","",[1]BASE!HR27) ->  | Q26: =IF([1]BASE!HS27="","",[1]BASE!HS27) ->  | R26: =IF([1]BASE!HT27="","",[1]BASE!HT27) ->  | S26: =IF([1]BASE!HU27="","",[1]BASE!HU27) ->  | T26: =IF([1]BASE!HV27="","",[1]BASE!HV27) -> 
C27: =+[1]BASE!C28 -> 12 | D27: =+[1]BASE!D28 -> 2617 | E27: =+[1]BASE!E28 -> C. PATAGONES - VIEDMA | F27: =+[1]BASE!F28 -> 132 | G27: =+[1]BASE!G28 -> 2.7 | H27: =+[1]BASE!H28 -> C | I27: =IF([1]BASE!HK28="","",[1]BASE!HK28) ->  | J27: =IF([1]BASE!HL28="","",[1]BASE!HL28) ->  | K27: =IF([1]BASE!HM28="","",[1]BASE!HM28) ->  | L27: =IF([1]BASE!HN28="","",[1]BASE!HN28) ->  | M27: =IF([1]BASE!HO28="","",[1]BASE!HO28) ->  | N27: =IF([1]BASE!HP28="","",[1]BASE!HP28) ->  | O27: =IF([1]BASE!HQ28="","",[1]BASE!HQ28) ->  | P27: =IF([1]BASE!HR28="","",[1]BASE!HR28) ->  | Q27: =IF([1]BASE!HS28="","",[1]BASE!HS28) ->  | R27: =IF([1]BASE!HT28="","",[1]BASE!HT28) ->  | S27: =IF([1]BASE!HU28="","",[1]BASE!HU28) ->  | T27: =IF([1]BASE!HV28="","",[1]BASE!HV28) -> 
C28: =+[1]BASE!C29 -> 13 | D28: =+[1]BASE!D29 -> CE-000 | E28: =+[1]BASE!E29 -> CAMPANA - NUEVA CAMPANA | F28: =+[1]BASE!F29 -> 132 | G28: =+[1]BASE!G29 -> 6.5 | H28: =+[1]BASE!H29 -> C | I28: =IF([1]BASE!HK29="","",[1]BASE!HK29) -> XXXX | J28: =IF([1]BASE!HL29="","",[1]BASE!HL29) -> XXXX | K28: =IF([1]BASE!HM29="","",[1]BASE!HM29) -> XXXX | L28: =IF([1]BASE!HN29="","",[1]BASE!HN29) -> XXXX | M28: =IF([1]BASE!HO29="","",[1]BASE!HO29) -> XXXX | N28: =IF([1]BASE!HP29="","",[1]BASE!HP29) -> XXXX | O28: =IF([1]BASE!HQ29="","",[1]BASE!HQ29) -> XXXX | P28: =IF([1]BASE!HR29="","",[1]BASE!HR29) -> XXXX | Q28: =IF([1]BASE!HS29="","",[1]BASE!HS29) -> XXXX | R28: =IF([1]BASE!HT29="","",[1]BASE!HT29) -> XXXX | S28: =IF([1]BASE!HU29="","",[1]BASE!HU29) -> XXXX | T28: =IF([1]BASE!HV29="","",[1]BASE!HV29) -> XXXX
C29: =+[1]BASE!C30 -> 14 | D29: =+[1]BASE!D30 -> 1432 | E29: =+[1]BASE!E30 -> CAMPANA - SIDERCA | F29: =+[1]BASE!F30 -> 132 | G29: =+[1]BASE!G30 -> 0.3 | H29: =+[1]BASE!H30 -> C | I29: =IF([1]BASE!HK30="","",[1]BASE!HK30) ->  | J29: =IF([1]BASE!HL30="","",[1]BASE!HL30) ->  | K29: =IF([1]BASE!HM30="","",[1]BASE!HM30) ->  | L29: =IF([1]BASE!HN30="","",[1]BASE!HN30) ->  | M29: =IF([1]BASE!HO30="","",[1]BASE!HO30) ->  | N29: =IF([1]BASE!HP30="","",[1]BASE!HP30) ->  | O29: =IF([1]BASE!HQ30="","",[1]BASE!HQ30) ->  | P29: =IF([1]BASE!HR30="","",[1]BASE!HR30) ->  | Q29: =IF([1]BASE!HS30="","",[1]BASE!HS30) ->  | R29: =IF([1]BASE!HT30="","",[1]BASE!HT30) ->  | S29: =IF([1]BASE!HU30="","",[1]BASE!HU30) ->  | T29: =IF([1]BASE!HV30="","",[1]BASE!HV30) -> 
C30: =+[1]BASE!C31 -> 15 | D30: =+[1]BASE!D31 -> 1428 | E30: =+[1]BASE!E31 -> CAMPANA - ZARATE | F30: =+[1]BASE!F31 -> 132 | G30: =+[1]BASE!G31 -> 9.4 | H30: =+[1]BASE!H31 -> C | I30: =IF([1]BASE!HK31="","",[1]BASE!HK31) ->  | J30: =IF([1]BASE!HL31="","",[1]BASE!HL31) ->  | K30: =IF([1]BASE!HM31="","",[1]BASE!HM31) ->  | L30: =IF([1]BASE!HN31="","",[1]BASE!HN31) ->  | M30: =IF([1]BASE!HO31="","",[1]BASE!HO31) ->  | N30: =IF([1]BASE!HP31="","",[1]BASE!HP31) ->  | O30: =IF([1]BASE!HQ31="","",[1]BASE!HQ31) ->  | P30: =IF([1]BASE!HR31="","",[1]BASE!HR31) ->  | Q30: =IF([1]BASE!HS31="","",[1]BASE!HS31) ->  | R30: =IF([1]BASE!HT31="","",[1]BASE!HT31) ->  | S30: =IF([1]BASE!HU31="","",[1]BASE!HU31) ->  | T30: =IF([1]BASE!HV31="","",[1]BASE!HV31) -> 
C31: =+[1]BASE!C32 -> 16 | D31: =+[1]BASE!D32 -> 1438 | E31: =+[1]BASE!E32 -> CHASCOMUS - VERONICA | F31: =+[1]BASE!F32 -> 132 | G31: =+[1]BASE!G32 -> 70.8 | H31: =+[1]BASE!H32 -> B | I31: =IF([1]BASE!HK32="","",[1]BASE!HK32) ->  | J31: =IF([1]BASE!HL32="","",[1]BASE!HL32) ->  | K31: =IF([1]BASE!HM32="","",[1]BASE!HM32) ->  | L31: =IF([1]BASE!HN32="","",[1]BASE!HN32) ->  | M31: =IF([1]BASE!HO32="","",[1]BASE!HO32) ->  | N31: =IF([1]BASE!HP32="","",[1]BASE!HP32) ->  | O31: =IF([1]BASE!HQ32="","",[1]BASE!HQ32) ->  | P31: =IF([1]BASE!HR32="","",[1]BASE!HR32) ->  | Q31: =IF([1]BASE!HS32="","",[1]BASE!HS32) ->  | R31: =IF([1]BASE!HT32="","",[1]BASE!HT32) ->  | S31: =IF([1]BASE!HU32="","",[1]BASE!HU32) -> 1 | T31: =IF([1]BASE!HV32="","",[1]BASE!HV32) -> 
C32: =+[1]BASE!C33 -> 17 | D32: =+[1]BASE!D33 -> 1409 | E32: =+[1]BASE!E33 -> CHIVILCOY - MERCEDES B.A. | F32: =+[1]BASE!F33 -> 132 | G32: =+[1]BASE!G33 -> 69.1 | H32: =+[1]BASE!H33 -> C | I32: =IF([1]BASE!HK33="","",[1]BASE!HK33) ->  | J32: =IF([1]BASE!HL33="","",[1]BASE!HL33) ->  | K32: =IF([1]BASE!HM33="","",[1]BASE!HM33) ->  | L32: =IF([1]BASE!HN33="","",[1]BASE!HN33) ->  | M32: =IF([1]BASE!HO33="","",[1]BASE!HO33) ->  | N32: =IF([1]BASE!HP33="","",[1]BASE!HP33) ->  | O32: =IF([1]BASE!HQ33="","",[1]BASE!HQ33) ->  | P32: =IF([1]BASE!HR33="","",[1]BASE!HR33) ->  | Q32: =IF([1]BASE!HS33="","",[1]BASE!HS33) ->  | R32: =IF([1]BASE!HT33="","",[1]BASE!HT33) ->  | S32: =IF([1]BASE!HU33="","",[1]BASE!HU33) ->  | T32: =IF([1]BASE!HV33="","",[1]BASE!HV33) -> 
C33: =+[1]BASE!C34 -> 18 | D33: =+[1]BASE!D34 -> 1539 | E33: =+[1]BASE!E34 -> CNEL. DORREGO - BAHIA BLANCA | F33: =+[1]BASE!F34 -> 132 | G33: =+[1]BASE!G34 -> 77.5 | H33: =+[1]BASE!H34 -> C | I33: =IF([1]BASE!HK34="","",[1]BASE!HK34) -> XXXX | J33: =IF([1]BASE!HL34="","",[1]BASE!HL34) -> XXXX | K33: =IF([1]BASE!HM34="","",[1]BASE!HM34) -> XXXX | L33: =IF([1]BASE!HN34="","",[1]BASE!HN34) -> XXXX | M33: =IF([1]BASE!HO34="","",[1]BASE!HO34) -> XXXX | N33: =IF([1]BASE!HP34="","",[1]BASE!HP34) -> XXXX | O33: =IF([1]BASE!HQ34="","",[1]BASE!HQ34) -> XXXX | P33: =IF([1]BASE!HR34="","",[1]BASE!HR34) -> XXXX | Q33: =IF([1]BASE!HS34="","",[1]BASE!HS34) -> XXXX | R33: =IF([1]BASE!HT34="","",[1]BASE!HT34) -> XXXX | S33: =IF([1]BASE!HU34="","",[1]BASE!HU34) -> XXXX | T33: =IF([1]BASE!HV34="","",[1]BASE!HV34) -> XXXX
C34: =+[1]BASE!C35 -> 19 | D34: =+[1]BASE!D35 -> 1538 | E34: =+[1]BASE!E35 -> CNEL. DORREGO - TRES ARROYOS | F34: =+[1]BASE!F35 -> 132 | G34: =+[1]BASE!G35 -> 99 | H34: =+[1]BASE!H35 -> C | I34: =IF([1]BASE!HK35="","",[1]BASE!HK35) ->  | J34: =IF([1]BASE!HL35="","",[1]BASE!HL35) ->  | K34: =IF([1]BASE!HM35="","",[1]BASE!HM35) ->  | L34: =IF([1]BASE!HN35="","",[1]BASE!HN35) -> 1 | M34: =IF([1]BASE!HO35="","",[1]BASE!HO35) ->  | N34: =IF([1]BASE!HP35="","",[1]BASE!HP35) ->  | O34: =IF([1]BASE!HQ35="","",[1]BASE!HQ35) ->  | P34: =IF([1]BASE!HR35="","",[1]BASE!HR35) ->  | Q34: =IF([1]BASE!HS35="","",[1]BASE!HS35) ->  | R34: =IF([1]BASE!HT35="","",[1]BASE!HT35) ->  | S34: =IF([1]BASE!HU35="","",[1]BASE!HU35) ->  | T34: =IF([1]BASE!HV35="","",[1]BASE!HV35) -> 
C35: =+[1]BASE!C36 -> 20 | D35: =+[1]BASE!D36 -> 1537 | E35: =+[1]BASE!E36 -> CNEL. SUAREZ - PIGUE | F35: =+[1]BASE!F36 -> 132 | G35: =+[1]BASE!G36 -> 47.6 | H35: =+[1]BASE!H36 -> C | I35: =IF([1]BASE!HK36="","",[1]BASE!HK36) ->  | J35: =IF([1]BASE!HL36="","",[1]BASE!HL36) ->  | K35: =IF([1]BASE!HM36="","",[1]BASE!HM36) ->  | L35: =IF([1]BASE!HN36="","",[1]BASE!HN36) ->  | M35: =IF([1]BASE!HO36="","",[1]BASE!HO36) ->  | N35: =IF([1]BASE!HP36="","",[1]BASE!HP36) ->  | O35: =IF([1]BASE!HQ36="","",[1]BASE!HQ36) ->  | P35: =IF([1]BASE!HR36="","",[1]BASE!HR36) -> 1 | Q35: =IF([1]BASE!HS36="","",[1]BASE!HS36) ->  | R35: =IF([1]BASE!HT36="","",[1]BASE!HT36) -> 1 | S35: =IF([1]BASE!HU36="","",[1]BASE!HU36) ->  | T35: =IF([1]BASE!HV36="","",[1]BASE!HV36) -> 
C36: =+[1]BASE!C37 -> 21 | D36: =+[1]BASE!D37 -> 1437 | E36: =+[1]BASE!E37 -> DOLORES - CHASCOMUS | F36: =+[1]BASE!F37 -> 132 | G36: =+[1]BASE!G37 -> 90.23 | H36: =+[1]BASE!H37 -> C | I36: =IF([1]BASE!HK37="","",[1]BASE!HK37) ->  | J36: =IF([1]BASE!HL37="","",[1]BASE!HL37) ->  | K36: =IF([1]BASE!HM37="","",[1]BASE!HM37) ->  | L36: =IF([1]BASE!HN37="","",[1]BASE!HN37) ->  | M36: =IF([1]BASE!HO37="","",[1]BASE!HO37) ->  | N36: =IF([1]BASE!HP37="","",[1]BASE!HP37) ->  | O36: =IF([1]BASE!HQ37="","",[1]BASE!HQ37) ->  | P36: =IF([1]BASE!HR37="","",[1]BASE!HR37) -> 1 | Q36: =IF([1]BASE!HS37="","",[1]BASE!HS37) -> 1 | R36: =IF([1]BASE!HT37="","",[1]BASE!HT37) ->  | S36: =IF([1]BASE!HU37="","",[1]BASE!HU37) ->  | T36: =IF([1]BASE!HV37="","",[1]BASE!HV37) -> 
C37: =+[1]BASE!C38 -> 22 | D37: =+[1]BASE!D38 -> CE-000 | E37: =+[1]BASE!E38 -> EASTMAN T - EASTMAN | F37: =+[1]BASE!F38 -> 132 | G37: =+[1]BASE!G38 -> 6.5 | H37: =+[1]BASE!H38 -> C | I37: =IF([1]BASE!HK38="","",[1]BASE!HK38) -> XXXX | J37: =IF([1]BASE!HL38="","",[1]BASE!HL38) -> XXXX | K37: =IF([1]BASE!HM38="","",[1]BASE!HM38) -> XXXX | L37: =IF([1]BASE!HN38="","",[1]BASE!HN38) -> XXXX | M37: =IF([1]BASE!HO38="","",[1]BASE!HO38) -> XXXX | N37: =IF([1]BASE!HP38="","",[1]BASE!HP38) -> XXXX | O37: =IF([1]BASE!HQ38="","",[1]BASE!HQ38) -> XXXX | P37: =IF([1]BASE!HR38="","",[1]BASE!HR38) -> XXXX | Q37: =IF([1]BASE!HS38="","",[1]BASE!HS38) -> XXXX | R37: =IF([1]BASE!HT38="","",[1]BASE!HT38) -> XXXX | S37: =IF([1]BASE!HU38="","",[1]BASE!HU38) -> XXXX | T37: =IF([1]BASE!HV38="","",[1]BASE!HV38) -> XXXX
C38: =+[1]BASE!C39 -> 23 | D38: =+[1]BASE!D39 -> 1516 | E38: =+[1]BASE!E39 -> GONZALEZ CHAVEZ - NECOCHEA | F38: =+[1]BASE!F39 -> 132 | G38: =+[1]BASE!G39 -> 138.86 | H38: =+[1]BASE!H39 -> A | I38: =IF([1]BASE!HK39="","",[1]BASE!HK39) ->  | J38: =IF([1]BASE!HL39="","",[1]BASE!HL39) ->  | K38: =IF([1]BASE!HM39="","",[1]BASE!HM39) ->  | L38: =IF([1]BASE!HN39="","",[1]BASE!HN39) ->  | M38: =IF([1]BASE!HO39="","",[1]BASE!HO39) ->  | N38: =IF([1]BASE!HP39="","",[1]BASE!HP39) ->  | O38: =IF([1]BASE!HQ39="","",[1]BASE!HQ39) ->  | P38: =IF([1]BASE!HR39="","",[1]BASE!HR39) ->  | Q38: =IF([1]BASE!HS39="","",[1]BASE!HS39) ->  | R38: =IF([1]BASE!HT39="","",[1]BASE!HT39) ->  | S38: =IF([1]BASE!HU39="","",[1]BASE!HU39) ->  | T38: =IF([1]BASE!HV39="","",[1]BASE!HV39) -> 
C39: =+[1]BASE!C40 -> 24 | D39: =+[1]BASE!D40 -> 1515 | E39: =+[1]BASE!E40 -> GONZALEZ CHAVEZ - TRES ARROYOS | F39: =+[1]BASE!F40 -> 132 | G39: =+[1]BASE!G40 -> 40.22 | H39: =+[1]BASE!H40 -> C | I39: =IF([1]BASE!HK40="","",[1]BASE!HK40) ->  | J39: =IF([1]BASE!HL40="","",[1]BASE!HL40) ->  | K39: =IF([1]BASE!HM40="","",[1]BASE!HM40) ->  | L39: =IF([1]BASE!HN40="","",[1]BASE!HN40) ->  | M39: =IF([1]BASE!HO40="","",[1]BASE!HO40) -> 1 | N39: =IF([1]BASE!HP40="","",[1]BASE!HP40) ->  | O39: =IF([1]BASE!HQ40="","",[1]BASE!HQ40) ->  | P39: =IF([1]BASE!HR40="","",[1]BASE!HR40) ->  | Q39: =IF([1]BASE!HS40="","",[1]BASE!HS40) ->  | R39: =IF([1]BASE!HT40="","",[1]BASE!HT40) -> 1 | S39: =IF([1]BASE!HU40="","",[1]BASE!HU40) ->  | T39: =IF([1]BASE!HV40="","",[1]BASE!HV40) -> 
C40: =+[1]BASE!C41 -> 25 | D40: =+[1]BASE!D41 -> 1444 | E40: =+[1]BASE!E41 -> GRAL. MADARIAGA - LAS ARMAS | F40: =+[1]BASE!F41 -> 132 | G40: =+[1]BASE!G41 -> 64.4 | H40: =+[1]BASE!H41 -> C | I40: =IF([1]BASE!HK41="","",[1]BASE!HK41) -> 1 | J40: =IF([1]BASE!HL41="","",[1]BASE!HL41) ->  | K40: =IF([1]BASE!HM41="","",[1]BASE!HM41) ->  | L40: =IF([1]BASE!HN41="","",[1]BASE!HN41) ->  | M40: =IF([1]BASE!HO41="","",[1]BASE!HO41) ->  | N40: =IF([1]BASE!HP41="","",[1]BASE!HP41) ->  | O40: =IF([1]BASE!HQ41="","",[1]BASE!HQ41) ->  | P40: =IF([1]BASE!HR41="","",[1]BASE!HR41) ->  | Q40: =IF([1]BASE!HS41="","",[1]BASE!HS41) ->  | R40: =IF([1]BASE!HT41="","",[1]BASE!HT41) ->  | S40: =IF([1]BASE!HU41="","",[1]BASE!HU41) ->  | T40: =IF([1]BASE!HV41="","",[1]BASE!HV41) -> 
C41: =+[1]BASE!C42 -> 26 | D41: =+[1]BASE!D42 -> 1401 | E41: =+[1]BASE!E42 -> HENDERSON - CNEL. SUAREZ | F41: =+[1]BASE!F42 -> 132 | G41: =+[1]BASE!G42 -> 126.9 | H41: =+[1]BASE!H42 -> C | I41: =IF([1]BASE!HK42="","",[1]BASE!HK42) ->  | J41: =IF([1]BASE!HL42="","",[1]BASE!HL42) ->  | K41: =IF([1]BASE!HM42="","",[1]BASE!HM42) ->  | L41: =IF([1]BASE!HN42="","",[1]BASE!HN42) ->  | M41: =IF([1]BASE!HO42="","",[1]BASE!HO42) ->  | N41: =IF([1]BASE!HP42="","",[1]BASE!HP42) ->  | O41: =IF([1]BASE!HQ42="","",[1]BASE!HQ42) ->  | P41: =IF([1]BASE!HR42="","",[1]BASE!HR42) ->  | Q41: =IF([1]BASE!HS42="","",[1]BASE!HS42) ->  | R41: =IF([1]BASE!HT42="","",[1]BASE!HT42) ->  | S41: =IF([1]BASE!HU42="","",[1]BASE!HU42) ->  | T41: =IF([1]BASE!HV42="","",[1]BASE!HV42) -> 
C42: =+[1]BASE!C43 -> 27 | D42: =+[1]BASE!D43 -> C-001 | E42: =+[1]BASE!E43 -> JUNIN - IMSA - LINCOLN | F42: =+[1]BASE!F43 -> 132 | G42: =+[1]BASE!G43 -> 70 | H42: =+[1]BASE!H43 -> B | I42: =IF([1]BASE!HK43="","",[1]BASE!HK43) ->  | J42: =IF([1]BASE!HL43="","",[1]BASE!HL43) -> 1 | K42: =IF([1]BASE!HM43="","",[1]BASE!HM43) ->  | L42: =IF([1]BASE!HN43="","",[1]BASE!HN43) -> 1 | M42: =IF([1]BASE!HO43="","",[1]BASE!HO43) ->  | N42: =IF([1]BASE!HP43="","",[1]BASE!HP43) ->  | O42: =IF([1]BASE!HQ43="","",[1]BASE!HQ43) ->  | P42: =IF([1]BASE!HR43="","",[1]BASE!HR43) ->  | Q42: =IF([1]BASE!HS43="","",[1]BASE!HS43) ->  | R42: =IF([1]BASE!HT43="","",[1]BASE!HT43) ->  | S42: =IF([1]BASE!HU43="","",[1]BASE!HU43) ->  | T42: =IF([1]BASE!HV43="","",[1]BASE!HV43) -> 1
C43: =+[1]BASE!C44 -> 28 | D43: =+[1]BASE!D44 -> 1456 | E43: =+[1]BASE!E44 -> LAPRIDA - PRINGLES | F43: =+[1]BASE!F44 -> 132 | G43: =+[1]BASE!G44 -> 71.5 | H43: =+[1]BASE!H44 -> C | I43: =IF([1]BASE!HK44="","",[1]BASE!HK44) ->  | J43: =IF([1]BASE!HL44="","",[1]BASE!HL44) ->  | K43: =IF([1]BASE!HM44="","",[1]BASE!HM44) ->  | L43: =IF([1]BASE!HN44="","",[1]BASE!HN44) ->  | M43: =IF([1]BASE!HO44="","",[1]BASE!HO44) ->  | N43: =IF([1]BASE!HP44="","",[1]BASE!HP44) ->  | O43: =IF([1]BASE!HQ44="","",[1]BASE!HQ44) ->  | P43: =IF([1]BASE!HR44="","",[1]BASE!HR44) ->  | Q43: =IF([1]BASE!HS44="","",[1]BASE!HS44) ->  | R43: =IF([1]BASE!HT44="","",[1]BASE!HT44) ->  | S43: =IF([1]BASE!HU44="","",[1]BASE!HU44) ->  | T43: =IF([1]BASE!HV44="","",[1]BASE!HV44) -> 
C44: =+[1]BASE!C45 -> 29 | D44: =+[1]BASE!D45 -> 1520 | E44: =+[1]BASE!E45 -> LAS ARMAS - DOLORES | F44: =+[1]BASE!F45 -> 132 | G44: =+[1]BASE!G45 -> 88.2 | H44: =+[1]BASE!H45 -> C | I44: =IF([1]BASE!HK45="","",[1]BASE!HK45) ->  | J44: =IF([1]BASE!HL45="","",[1]BASE!HL45) ->  | K44: =IF([1]BASE!HM45="","",[1]BASE!HM45) -> 1 | L44: =IF([1]BASE!HN45="","",[1]BASE!HN45) ->  | M44: =IF([1]BASE!HO45="","",[1]BASE!HO45) ->  | N44: =IF([1]BASE!HP45="","",[1]BASE!HP45) ->  | O44: =IF([1]BASE!HQ45="","",[1]BASE!HQ45) ->  | P44: =IF([1]BASE!HR45="","",[1]BASE!HR45) ->  | Q44: =IF([1]BASE!HS45="","",[1]BASE!HS45) -> 1 | R44: =IF([1]BASE!HT45="","",[1]BASE!HT45) ->  | S44: =IF([1]BASE!HU45="","",[1]BASE!HU45) ->  | T44: =IF([1]BASE!HV45="","",[1]BASE!HV45) -> 
C45: =+[1]BASE!C46 -> 30 | D45: =+[1]BASE!D46 -> 1521 | E45: =+[1]BASE!E46 -> LAS ARMAS - TANDIL | F45: =+[1]BASE!F46 -> 132 | G45: =+[1]BASE!G46 -> 122.2 | H45: =+[1]BASE!H46 -> C | I45: =IF([1]BASE!HK46="","",[1]BASE!HK46) ->  | J45: =IF([1]BASE!HL46="","",[1]BASE!HL46) ->  | K45: =IF([1]BASE!HM46="","",[1]BASE!HM46) ->  | L45: =IF([1]BASE!HN46="","",[1]BASE!HN46) ->  | M45: =IF([1]BASE!HO46="","",[1]BASE!HO46) ->  | N45: =IF([1]BASE!HP46="","",[1]BASE!HP46) ->  | O45: =IF([1]BASE!HQ46="","",[1]BASE!HQ46) ->  | P45: =IF([1]BASE!HR46="","",[1]BASE!HR46) ->  | Q45: =IF([1]BASE!HS46="","",[1]BASE!HS46) ->  | R45: =IF([1]BASE!HT46="","",[1]BASE!HT46) ->  | S45: =IF([1]BASE!HU46="","",[1]BASE!HU46) ->  | T45: =IF([1]BASE!HV46="","",[1]BASE!HV46) -> 
C46: =+[1]BASE!C47 -> 31 | D46: =+[1]BASE!D47 -> CE-000 | E46: =+[1]BASE!E47 -> LAS FLORES - MONTE | F46: =+[1]BASE!F47 -> 132 | G46: =+[1]BASE!G47 -> 86.8 | H46: =+[1]BASE!H47 -> C | I46: =IF([1]BASE!HK47="","",[1]BASE!HK47) -> XXXX | J46: =IF([1]BASE!HL47="","",[1]BASE!HL47) -> XXXX | K46: =IF([1]BASE!HM47="","",[1]BASE!HM47) -> XXXX | L46: =IF([1]BASE!HN47="","",[1]BASE!HN47) -> XXXX | M46: =IF([1]BASE!HO47="","",[1]BASE!HO47) -> XXXX | N46: =IF([1]BASE!HP47="","",[1]BASE!HP47) -> XXXX | O46: =IF([1]BASE!HQ47="","",[1]BASE!HQ47) -> XXXX | P46: =IF([1]BASE!HR47="","",[1]BASE!HR47) -> XXXX | Q46: =IF([1]BASE!HS47="","",[1]BASE!HS47) -> XXXX | R46: =IF([1]BASE!HT47="","",[1]BASE!HT47) -> XXXX | S46: =IF([1]BASE!HU47="","",[1]BASE!HU47) -> XXXX | T46: =IF([1]BASE!HV47="","",[1]BASE!HV47) -> XXXX
C47: =+[1]BASE!C48 -> 32 | D47: =+[1]BASE!D48 -> 1416 | E47: =+[1]BASE!E48 -> LINCOLN - BRAGADO | F47: =+[1]BASE!F48 -> 132 | G47: =+[1]BASE!G48 -> 109.4 | H47: =+[1]BASE!H48 -> C | I47: =IF([1]BASE!HK48="","",[1]BASE!HK48) ->  | J47: =IF([1]BASE!HL48="","",[1]BASE!HL48) ->  | K47: =IF([1]BASE!HM48="","",[1]BASE!HM48) ->  | L47: =IF([1]BASE!HN48="","",[1]BASE!HN48) ->  | M47: =IF([1]BASE!HO48="","",[1]BASE!HO48) ->  | N47: =IF([1]BASE!HP48="","",[1]BASE!HP48) -> 1 | O47: =IF([1]BASE!HQ48="","",[1]BASE!HQ48) ->  | P47: =IF([1]BASE!HR48="","",[1]BASE!HR48) ->  | Q47: =IF([1]BASE!HS48="","",[1]BASE!HS48) ->  | R47: =IF([1]BASE!HT48="","",[1]BASE!HT48) ->  | S47: =IF([1]BASE!HU48="","",[1]BASE!HU48) ->  | T47: =IF([1]BASE!HV48="","",[1]BASE!HV48) -> 
C48: =+[1]BASE!C49 -> 33 | D48: =+[1]BASE!D49 -> 1453 | E48: =+[1]BASE!E49 -> LOMA NEGRA - C. AVELLANEDA | F48: =+[1]BASE!F49 -> 132 | G48: =+[1]BASE!G49 -> 5.3 | H48: =+[1]BASE!H49 -> C | I48: =IF([1]BASE!HK49="","",[1]BASE!HK49) ->  | J48: =IF([1]BASE!HL49="","",[1]BASE!HL49) ->  | K48: =IF([1]BASE!HM49="","",[1]BASE!HM49) ->  | L48: =IF([1]BASE!HN49="","",[1]BASE!HN49) ->  | M48: =IF([1]BASE!HO49="","",[1]BASE!HO49) ->  | N48: =IF([1]BASE!HP49="","",[1]BASE!HP49) ->  | O48: =IF([1]BASE!HQ49="","",[1]BASE!HQ49) ->  | P48: =IF([1]BASE!HR49="","",[1]BASE!HR49) ->  | Q48: =IF([1]BASE!HS49="","",[1]BASE!HS49) ->  | R48: =IF([1]BASE!HT49="","",[1]BASE!HT49) ->  | S48: =IF([1]BASE!HU49="","",[1]BASE!HU49) ->  | T48: =IF([1]BASE!HV49="","",[1]BASE!HV49) -> 
C49: =+[1]BASE!C50 -> 34 | D49: =+[1]BASE!D50 -> 1452 | E49: =+[1]BASE!E50 -> LOMA NEGRA - OLAVARRIA | F49: =+[1]BASE!F50 -> 132 | G49: =+[1]BASE!G50 -> 51.51 | H49: =+[1]BASE!H50 -> C | I49: =IF([1]BASE!HK50="","",[1]BASE!HK50) ->  | J49: =IF([1]BASE!HL50="","",[1]BASE!HL50) ->  | K49: =IF([1]BASE!HM50="","",[1]BASE!HM50) ->  | L49: =IF([1]BASE!HN50="","",[1]BASE!HN50) ->  | M49: =IF([1]BASE!HO50="","",[1]BASE!HO50) ->  | N49: =IF([1]BASE!HP50="","",[1]BASE!HP50) ->  | O49: =IF([1]BASE!HQ50="","",[1]BASE!HQ50) ->  | P49: =IF([1]BASE!HR50="","",[1]BASE!HR50) ->  | Q49: =IF([1]BASE!HS50="","",[1]BASE!HS50) ->  | R49: =IF([1]BASE!HT50="","",[1]BASE!HT50) ->  | S49: =IF([1]BASE!HU50="","",[1]BASE!HU50) ->  | T49: =IF([1]BASE!HV50="","",[1]BASE!HV50) -> 
C50: =+[1]BASE!C51 -> 35 | D50: =+[1]BASE!D51 -> 2620 | E50: =+[1]BASE!E51 -> LUJAN - MALV.1 - CATONAS 1 - MORÓN 1 | F50: =+[1]BASE!F51 -> 132 | G50: =+[1]BASE!G51 -> 38.29 | H50: =+[1]BASE!H51 -> A | I50: =IF([1]BASE!HK51="","",[1]BASE!HK51) -> XXXX | J50: =IF([1]BASE!HL51="","",[1]BASE!HL51) -> XXXX | K50: =IF([1]BASE!HM51="","",[1]BASE!HM51) -> XXXX | L50: =IF([1]BASE!HN51="","",[1]BASE!HN51) -> XXXX | M50: =IF([1]BASE!HO51="","",[1]BASE!HO51) -> XXXX | N50: =IF([1]BASE!HP51="","",[1]BASE!HP51) -> XXXX | O50: =IF([1]BASE!HQ51="","",[1]BASE!HQ51) -> XXXX | P50: =IF([1]BASE!HR51="","",[1]BASE!HR51) -> XXXX | Q50: =IF([1]BASE!HS51="","",[1]BASE!HS51) -> XXXX | R50: =IF([1]BASE!HT51="","",[1]BASE!HT51) -> XXXX | S50: =IF([1]BASE!HU51="","",[1]BASE!HU51) -> XXXX | T50: =IF([1]BASE!HV51="","",[1]BASE!HV51) -> XXXX
C51: =+[1]BASE!C52 -> 36 | D51: =+[1]BASE!D52 -> 2621 | E51: =+[1]BASE!E52 -> LUJAN - MALV.2 - CATONAS 2 - MORÓN 2 | F51: =+[1]BASE!F52 -> 132 | G51: =+[1]BASE!G52 -> 44.56 | H51: =+[1]BASE!H52 -> A | I51: =IF([1]BASE!HK52="","",[1]BASE!HK52) ->  | J51: =IF([1]BASE!HL52="","",[1]BASE!HL52) ->  | K51: =IF([1]BASE!HM52="","",[1]BASE!HM52) -> 1 | L51: =IF([1]BASE!HN52="","",[1]BASE!HN52) -> 1 | M51: =IF([1]BASE!HO52="","",[1]BASE!HO52) ->  | N51: =IF([1]BASE!HP52="","",[1]BASE!HP52) ->  | O51: =IF([1]BASE!HQ52="","",[1]BASE!HQ52) ->  | P51: =IF([1]BASE!HR52="","",[1]BASE!HR52) -> 2 | Q51: =IF([1]BASE!HS52="","",[1]BASE!HS52) ->  | R51: =IF([1]BASE!HT52="","",[1]BASE!HT52) -> 1 | S51: =IF([1]BASE!HU52="","",[1]BASE!HU52) ->  | T51: =IF([1]BASE!HV52="","",[1]BASE!HV52) -> 
C52: =+[1]BASE!C53 -> 37 | D52: =+[1]BASE!D53 -> 1442 | E52: =+[1]BASE!E53 -> MAR DE AJO - PINAMAR | F52: =+[1]BASE!F53 -> 132 | G52: =+[1]BASE!G53 -> 46.4 | H52: =+[1]BASE!H53 -> C | I52: =IF([1]BASE!HK53="","",[1]BASE!HK53) ->  | J52: =IF([1]BASE!HL53="","",[1]BASE!HL53) ->  | K52: =IF([1]BASE!HM53="","",[1]BASE!HM53) ->  | L52: =IF([1]BASE!HN53="","",[1]BASE!HN53) ->  | M52: =IF([1]BASE!HO53="","",[1]BASE!HO53) ->  | N52: =IF([1]BASE!HP53="","",[1]BASE!HP53) ->  | O52: =IF([1]BASE!HQ53="","",[1]BASE!HQ53) ->  | P52: =IF([1]BASE!HR53="","",[1]BASE!HR53) ->  | Q52: =IF([1]BASE!HS53="","",[1]BASE!HS53) ->  | R52: =IF([1]BASE!HT53="","",[1]BASE!HT53) ->  | S52: =IF([1]BASE!HU53="","",[1]BASE!HU53) ->  | T52: =IF([1]BASE!HV53="","",[1]BASE!HV53) -> 
C53: =+[1]BASE!C54 -> 38 | D53: =+[1]BASE!D54 -> 1525 | E53: =+[1]BASE!E54 -> MAR DEL PLATA - MIRAMAR | F53: =+[1]BASE!F54 -> 132 | G53: =+[1]BASE!G54 -> 39.29 | H53: =+[1]BASE!H54 -> C | I53: =IF([1]BASE!HK54="","",[1]BASE!HK54) ->  | J53: =IF([1]BASE!HL54="","",[1]BASE!HL54) ->  | K53: =IF([1]BASE!HM54="","",[1]BASE!HM54) -> 1 | L53: =IF([1]BASE!HN54="","",[1]BASE!HN54) ->  | M53: =IF([1]BASE!HO54="","",[1]BASE!HO54) ->  | N53: =IF([1]BASE!HP54="","",[1]BASE!HP54) ->  | O53: =IF([1]BASE!HQ54="","",[1]BASE!HQ54) ->  | P53: =IF([1]BASE!HR54="","",[1]BASE!HR54) ->  | Q53: =IF([1]BASE!HS54="","",[1]BASE!HS54) ->  | R53: =IF([1]BASE!HT54="","",[1]BASE!HT54) -> 1 | S53: =IF([1]BASE!HU54="","",[1]BASE!HU54) ->  | T53: =IF([1]BASE!HV54="","",[1]BASE!HV54) -> 
C54: =+[1]BASE!C55 -> 39 | D54: =+[1]BASE!D55 -> CE-002 | E54: =+[1]BASE!E55 -> MAR DEL PLATA - QUEQUEN -NECOCHEA | F54: =+[1]BASE!F55 -> 132 | G54: =+[1]BASE!G55 -> 129 | H54: =+[1]BASE!H55 -> B | I54: =IF([1]BASE!HK55="","",[1]BASE!HK55) ->  | J54: =IF([1]BASE!HL55="","",[1]BASE!HL55) ->  | K54: =IF([1]BASE!HM55="","",[1]BASE!HM55) ->  | L54: =IF([1]BASE!HN55="","",[1]BASE!HN55) ->  | M54: =IF([1]BASE!HO55="","",[1]BASE!HO55) ->  | N54: =IF([1]BASE!HP55="","",[1]BASE!HP55) ->  | O54: =IF([1]BASE!HQ55="","",[1]BASE!HQ55) ->  | P54: =IF([1]BASE!HR55="","",[1]BASE!HR55) ->  | Q54: =IF([1]BASE!HS55="","",[1]BASE!HS55) ->  | R54: =IF([1]BASE!HT55="","",[1]BASE!HT55) ->  | S54: =IF([1]BASE!HU55="","",[1]BASE!HU55) ->  | T54: =IF([1]BASE!HV55="","",[1]BASE!HV55) -> 
C55: =+[1]BASE!C56 -> 40 | D55: =+[1]BASE!D56 -> 1410 | E55: =+[1]BASE!E56 -> MERCEDES B.A. - LUJAN | F55: =+[1]BASE!F56 -> 132 | G55: =+[1]BASE!G56 -> 41.3 | H55: =+[1]BASE!H56 -> B | I55: =IF([1]BASE!HK56="","",[1]BASE!HK56) ->  | J55: =IF([1]BASE!HL56="","",[1]BASE!HL56) -> 1 | K55: =IF([1]BASE!HM56="","",[1]BASE!HM56) ->  | L55: =IF([1]BASE!HN56="","",[1]BASE!HN56) ->  | M55: =IF([1]BASE!HO56="","",[1]BASE!HO56) ->  | N55: =IF([1]BASE!HP56="","",[1]BASE!HP56) ->  | O55: =IF([1]BASE!HQ56="","",[1]BASE!HQ56) ->  | P55: =IF([1]BASE!HR56="","",[1]BASE!HR56) -> 1 | Q55: =IF([1]BASE!HS56="","",[1]BASE!HS56) ->  | R55: =IF([1]BASE!HT56="","",[1]BASE!HT56) ->  | S55: =IF([1]BASE!HU56="","",[1]BASE!HU56) ->  | T55: =IF([1]BASE!HV56="","",[1]BASE!HV56) -> 
C56: =+[1]BASE!C57 -> 41 | D56: =+[1]BASE!D57 -> 1529 | E56: =+[1]BASE!E57 -> MIRAMAR - NECOCHEA | F56: =+[1]BASE!F57 -> 132 | G56: =+[1]BASE!G57 -> 103.29 | H56: =+[1]BASE!H57 -> A | I56: =IF([1]BASE!HK57="","",[1]BASE!HK57) ->  | J56: =IF([1]BASE!HL57="","",[1]BASE!HL57) ->  | K56: =IF([1]BASE!HM57="","",[1]BASE!HM57) ->  | L56: =IF([1]BASE!HN57="","",[1]BASE!HN57) ->  | M56: =IF([1]BASE!HO57="","",[1]BASE!HO57) ->  | N56: =IF([1]BASE!HP57="","",[1]BASE!HP57) ->  | O56: =IF([1]BASE!HQ57="","",[1]BASE!HQ57) ->  | P56: =IF([1]BASE!HR57="","",[1]BASE!HR57) ->  | Q56: =IF([1]BASE!HS57="","",[1]BASE!HS57) -> 1 | R56: =IF([1]BASE!HT57="","",[1]BASE!HT57) ->  | S56: =IF([1]BASE!HU57="","",[1]BASE!HU57) ->  | T56: =IF([1]BASE!HV57="","",[1]BASE!HV57) -> 
C57: =+[1]BASE!C58 -> 42 | D57: =+[1]BASE!D58 -> 1417 | E57: =+[1]BASE!E58 -> MONTE - CHASCOMUS | F57: =+[1]BASE!F58 -> 132 | G57: =+[1]BASE!G58 -> 114 | H57: =+[1]BASE!H58 -> C | I57: =IF([1]BASE!HK58="","",[1]BASE!HK58) ->  | J57: =IF([1]BASE!HL58="","",[1]BASE!HL58) ->  | K57: =IF([1]BASE!HM58="","",[1]BASE!HM58) ->  | L57: =IF([1]BASE!HN58="","",[1]BASE!HN58) ->  | M57: =IF([1]BASE!HO58="","",[1]BASE!HO58) ->  | N57: =IF([1]BASE!HP58="","",[1]BASE!HP58) ->  | O57: =IF([1]BASE!HQ58="","",[1]BASE!HQ58) ->  | P57: =IF([1]BASE!HR58="","",[1]BASE!HR58) ->  | Q57: =IF([1]BASE!HS58="","",[1]BASE!HS58) ->  | R57: =IF([1]BASE!HT58="","",[1]BASE!HT58) ->  | S57: =IF([1]BASE!HU58="","",[1]BASE!HU58) ->  | T57: =IF([1]BASE!HV58="","",[1]BASE!HV58) -> 
C58: =+[1]BASE!C59 -> 43 | D58: =+[1]BASE!D59 -> 1545 | E58: =+[1]BASE!E59 -> NORTE II - PETROQ. BAHIA BLANCA | F58: =+[1]BASE!F59 -> 132 | G58: =+[1]BASE!G59 -> 30 | H58: =+[1]BASE!H59 -> C | I58: =IF([1]BASE!HK59="","",[1]BASE!HK59) -> XXXX | J58: =IF([1]BASE!HL59="","",[1]BASE!HL59) -> XXXX | K58: =IF([1]BASE!HM59="","",[1]BASE!HM59) -> XXXX | L58: =IF([1]BASE!HN59="","",[1]BASE!HN59) -> XXXX | M58: =IF([1]BASE!HO59="","",[1]BASE!HO59) -> XXXX | N58: =IF([1]BASE!HP59="","",[1]BASE!HP59) -> XXXX | O58: =IF([1]BASE!HQ59="","",[1]BASE!HQ59) -> XXXX | P58: =IF([1]BASE!HR59="","",[1]BASE!HR59) -> XXXX | Q58: =IF([1]BASE!HS59="","",[1]BASE!HS59) -> XXXX | R58: =IF([1]BASE!HT59="","",[1]BASE!HT59) -> XXXX | S58: =IF([1]BASE!HU59="","",[1]BASE!HU59) -> XXXX | T58: =IF([1]BASE!HV59="","",[1]BASE!HV59) -> XXXX
C59: =+[1]BASE!C60 -> 44 | D59: =+[1]BASE!D60 -> 2648 | E59: =+[1]BASE!E60 -> NUEVA CAMPANA - SIDERCA 1 | F59: =+[1]BASE!F60 -> 132 | G59: =+[1]BASE!G60 -> 3.2 | H59: =+[1]BASE!H60 -> C | I59: =IF([1]BASE!HK60="","",[1]BASE!HK60) ->  | J59: =IF([1]BASE!HL60="","",[1]BASE!HL60) ->  | K59: =IF([1]BASE!HM60="","",[1]BASE!HM60) ->  | L59: =IF([1]BASE!HN60="","",[1]BASE!HN60) ->  | M59: =IF([1]BASE!HO60="","",[1]BASE!HO60) ->  | N59: =IF([1]BASE!HP60="","",[1]BASE!HP60) ->  | O59: =IF([1]BASE!HQ60="","",[1]BASE!HQ60) ->  | P59: =IF([1]BASE!HR60="","",[1]BASE!HR60) ->  | Q59: =IF([1]BASE!HS60="","",[1]BASE!HS60) ->  | R59: =IF([1]BASE!HT60="","",[1]BASE!HT60) ->  | S59: =IF([1]BASE!HU60="","",[1]BASE!HU60) ->  | T59: =IF([1]BASE!HV60="","",[1]BASE!HV60) -> 
C60: =+[1]BASE!C61 -> 45 | D60: =+[1]BASE!D61 -> CE-000 | E60: =+[1]BASE!E61 -> NUEVA CAMPANA - ZARATE | F60: =+[1]BASE!F61 -> 132 | G60: =+[1]BASE!G61 -> 10.6 | H60: =+[1]BASE!H61 -> C | I60: =IF([1]BASE!HK61="","",[1]BASE!HK61) -> XXXX | J60: =IF([1]BASE!HL61="","",[1]BASE!HL61) -> XXXX | K60: =IF([1]BASE!HM61="","",[1]BASE!HM61) -> XXXX | L60: =IF([1]BASE!HN61="","",[1]BASE!HN61) -> XXXX | M60: =IF([1]BASE!HO61="","",[1]BASE!HO61) -> XXXX | N60: =IF([1]BASE!HP61="","",[1]BASE!HP61) -> XXXX | O60: =IF([1]BASE!HQ61="","",[1]BASE!HQ61) -> XXXX | P60: =IF([1]BASE!HR61="","",[1]BASE!HR61) -> XXXX | Q60: =IF([1]BASE!HS61="","",[1]BASE!HS61) -> XXXX | R60: =IF([1]BASE!HT61="","",[1]BASE!HT61) -> XXXX | S60: =IF([1]BASE!HU61="","",[1]BASE!HU61) -> XXXX | T60: =IF([1]BASE!HV61="","",[1]BASE!HV61) -> XXXX
C61: =+[1]BASE!C62 -> 46 | D61: =+[1]BASE!D62 -> 1433 | E61: =+[1]BASE!E62 -> NUEVA CAMPANA - SIDERCA "0" | F61: =+[1]BASE!F62 -> 132 | G61: =+[1]BASE!G62 -> 2.2 | H61: =+[1]BASE!H62 -> C | I61: =IF([1]BASE!HK62="","",[1]BASE!HK62) ->  | J61: =IF([1]BASE!HL62="","",[1]BASE!HL62) ->  | K61: =IF([1]BASE!HM62="","",[1]BASE!HM62) ->  | L61: =IF([1]BASE!HN62="","",[1]BASE!HN62) ->  | M61: =IF([1]BASE!HO62="","",[1]BASE!HO62) ->  | N61: =IF([1]BASE!HP62="","",[1]BASE!HP62) ->  | O61: =IF([1]BASE!HQ62="","",[1]BASE!HQ62) ->  | P61: =IF([1]BASE!HR62="","",[1]BASE!HR62) ->  | Q61: =IF([1]BASE!HS62="","",[1]BASE!HS62) ->  | R61: =IF([1]BASE!HT62="","",[1]BASE!HT62) ->  | S61: =IF([1]BASE!HU62="","",[1]BASE!HU62) ->  | T61: =IF([1]BASE!HV62="","",[1]BASE!HV62) -> 
C62: =+[1]BASE!C63 -> 47 | D62: =+[1]BASE!D63 -> 1450 | E62: =+[1]BASE!E63 -> OLAVARRIA - AZUL | F62: =+[1]BASE!F63 -> 132 | G62: =+[1]BASE!G63 -> 51.4 | H62: =+[1]BASE!H63 -> C | I62: =IF([1]BASE!HK63="","",[1]BASE!HK63) ->  | J62: =IF([1]BASE!HL63="","",[1]BASE!HL63) ->  | K62: =IF([1]BASE!HM63="","",[1]BASE!HM63) ->  | L62: =IF([1]BASE!HN63="","",[1]BASE!HN63) ->  | M62: =IF([1]BASE!HO63="","",[1]BASE!HO63) ->  | N62: =IF([1]BASE!HP63="","",[1]BASE!HP63) ->  | O62: =IF([1]BASE!HQ63="","",[1]BASE!HQ63) ->  | P62: =IF([1]BASE!HR63="","",[1]BASE!HR63) ->  | Q62: =IF([1]BASE!HS63="","",[1]BASE!HS63) ->  | R62: =IF([1]BASE!HT63="","",[1]BASE!HT63) -> 1 | S62: =IF([1]BASE!HU63="","",[1]BASE!HU63) ->  | T62: =IF([1]BASE!HV63="","",[1]BASE!HV63) -> 
C63: =+[1]BASE!C64 -> 48 | D63: =+[1]BASE!D64 -> CE-000 | E63: =+[1]BASE!E64 -> OLAVARRIA - GONZALEZ CHAVEZ | F63: =+[1]BASE!F64 -> 132 | G63: =+[1]BASE!G64 -> 152 | H63: =+[1]BASE!H64 -> C | I63: =IF([1]BASE!HK64="","",[1]BASE!HK64) -> XXXX | J63: =IF([1]BASE!HL64="","",[1]BASE!HL64) -> XXXX | K63: =IF([1]BASE!HM64="","",[1]BASE!HM64) -> XXXX | L63: =IF([1]BASE!HN64="","",[1]BASE!HN64) -> XXXX | M63: =IF([1]BASE!HO64="","",[1]BASE!HO64) -> XXXX | N63: =IF([1]BASE!HP64="","",[1]BASE!HP64) -> XXXX | O63: =IF([1]BASE!HQ64="","",[1]BASE!HQ64) -> XXXX | P63: =IF([1]BASE!HR64="","",[1]BASE!HR64) -> XXXX | Q63: =IF([1]BASE!HS64="","",[1]BASE!HS64) -> XXXX | R63: =IF([1]BASE!HT64="","",[1]BASE!HT64) -> XXXX | S63: =IF([1]BASE!HU64="","",[1]BASE!HU64) -> XXXX | T63: =IF([1]BASE!HV64="","",[1]BASE!HV64) -> XXXX
C64: =+[1]BASE!C65 -> 49 | D64: =+[1]BASE!D65 -> 1446 | E64: =+[1]BASE!E65 -> OLAVARRIA - HENDERSON | F64: =+[1]BASE!F65 -> 132 | G64: =+[1]BASE!G65 -> 139.9 | H64: =+[1]BASE!H65 -> C | I64: =IF([1]BASE!HK65="","",[1]BASE!HK65) ->  | J64: =IF([1]BASE!HL65="","",[1]BASE!HL65) ->  | K64: =IF([1]BASE!HM65="","",[1]BASE!HM65) ->  | L64: =IF([1]BASE!HN65="","",[1]BASE!HN65) ->  | M64: =IF([1]BASE!HO65="","",[1]BASE!HO65) ->  | N64: =IF([1]BASE!HP65="","",[1]BASE!HP65) ->  | O64: =IF([1]BASE!HQ65="","",[1]BASE!HQ65) ->  | P64: =IF([1]BASE!HR65="","",[1]BASE!HR65) ->  | Q64: =IF([1]BASE!HS65="","",[1]BASE!HS65) ->  | R64: =IF([1]BASE!HT65="","",[1]BASE!HT65) ->  | S64: =IF([1]BASE!HU65="","",[1]BASE!HU65) ->  | T64: =IF([1]BASE!HV65="","",[1]BASE!HV65) -> 
C65: =+[1]BASE!C66 -> 50 | D65: =+[1]BASE!D66 -> CE-000 | E65: =+[1]BASE!E66 -> OLAVARRIA - LAPRIDA | F65: =+[1]BASE!F66 -> 132 | G65: =+[1]BASE!G66 -> 99.7 | H65: =+[1]BASE!H66 -> C | I65: =IF([1]BASE!HK66="","",[1]BASE!HK66) -> XXXX | J65: =IF([1]BASE!HL66="","",[1]BASE!HL66) -> XXXX | K65: =IF([1]BASE!HM66="","",[1]BASE!HM66) -> XXXX | L65: =IF([1]BASE!HN66="","",[1]BASE!HN66) -> XXXX | M65: =IF([1]BASE!HO66="","",[1]BASE!HO66) -> XXXX | N65: =IF([1]BASE!HP66="","",[1]BASE!HP66) -> XXXX | O65: =IF([1]BASE!HQ66="","",[1]BASE!HQ66) -> XXXX | P65: =IF([1]BASE!HR66="","",[1]BASE!HR66) -> XXXX | Q65: =IF([1]BASE!HS66="","",[1]BASE!HS66) -> XXXX | R65: =IF([1]BASE!HT66="","",[1]BASE!HT66) -> XXXX | S65: =IF([1]BASE!HU66="","",[1]BASE!HU66) -> XXXX | T65: =IF([1]BASE!HV66="","",[1]BASE!HV66) -> XXXX
C66: =+[1]BASE!C67 -> 51 | D66: =+[1]BASE!D67 -> 1449 | E66: =+[1]BASE!E67 -> OLAVARRIA - TANDIL | F66: =+[1]BASE!F67 -> 132 | G66: =+[1]BASE!G67 -> 133.2 | H66: =+[1]BASE!H67 -> A | I66: =IF([1]BASE!HK67="","",[1]BASE!HK67) -> 1 | J66: =IF([1]BASE!HL67="","",[1]BASE!HL67) ->  | K66: =IF([1]BASE!HM67="","",[1]BASE!HM67) ->  | L66: =IF([1]BASE!HN67="","",[1]BASE!HN67) ->  | M66: =IF([1]BASE!HO67="","",[1]BASE!HO67) ->  | N66: =IF([1]BASE!HP67="","",[1]BASE!HP67) ->  | O66: =IF([1]BASE!HQ67="","",[1]BASE!HQ67) ->  | P66: =IF([1]BASE!HR67="","",[1]BASE!HR67) ->  | Q66: =IF([1]BASE!HS67="","",[1]BASE!HS67) ->  | R66: =IF([1]BASE!HT67="","",[1]BASE!HT67) ->  | S66: =IF([1]BASE!HU67="","",[1]BASE!HU67) ->  | T66: =IF([1]BASE!HV67="","",[1]BASE!HV67) -> 
C67: =+[1]BASE!C68 -> 52 | D67: =+[1]BASE!D68 -> 1451 | E67: =+[1]BASE!E68 -> OLAVARRIA VIEJA - OLAVARRIA | F67: =+[1]BASE!F68 -> 132 | G67: =+[1]BASE!G68 -> 35.59 | H67: =+[1]BASE!H68 -> C | I67: =IF([1]BASE!HK68="","",[1]BASE!HK68) ->  | J67: =IF([1]BASE!HL68="","",[1]BASE!HL68) ->  | K67: =IF([1]BASE!HM68="","",[1]BASE!HM68) ->  | L67: =IF([1]BASE!HN68="","",[1]BASE!HN68) ->  | M67: =IF([1]BASE!HO68="","",[1]BASE!HO68) ->  | N67: =IF([1]BASE!HP68="","",[1]BASE!HP68) ->  | O67: =IF([1]BASE!HQ68="","",[1]BASE!HQ68) ->  | P67: =IF([1]BASE!HR68="","",[1]BASE!HR68) ->  | Q67: =IF([1]BASE!HS68="","",[1]BASE!HS68) ->  | R67: =IF([1]BASE!HT68="","",[1]BASE!HT68) ->  | S67: =IF([1]BASE!HU68="","",[1]BASE!HU68) ->  | T67: =IF([1]BASE!HV68="","",[1]BASE!HV68) -> 
C68: =+[1]BASE!C69 -> 53 | D68: =+[1]BASE!D69 -> 1533 | E68: =+[1]BASE!E69 -> P. LURO - C. PATAGONES | F68: =+[1]BASE!F69 -> 132 | G68: =+[1]BASE!G69 -> 151 | H68: =+[1]BASE!H69 -> C | I68: =IF([1]BASE!HK69="","",[1]BASE!HK69) ->  | J68: =IF([1]BASE!HL69="","",[1]BASE!HL69) ->  | K68: =IF([1]BASE!HM69="","",[1]BASE!HM69) ->  | L68: =IF([1]BASE!HN69="","",[1]BASE!HN69) ->  | M68: =IF([1]BASE!HO69="","",[1]BASE!HO69) ->  | N68: =IF([1]BASE!HP69="","",[1]BASE!HP69) ->  | O68: =IF([1]BASE!HQ69="","",[1]BASE!HQ69) ->  | P68: =IF([1]BASE!HR69="","",[1]BASE!HR69) ->  | Q68: =IF([1]BASE!HS69="","",[1]BASE!HS69) ->  | R68: =IF([1]BASE!HT69="","",[1]BASE!HT69) ->  | S68: =IF([1]BASE!HU69="","",[1]BASE!HU69) ->  | T68: =IF([1]BASE!HV69="","",[1]BASE!HV69) -> 
C69: =+[1]BASE!C70 -> 54 | D69: =+[1]BASE!D70 -> 2740 | E69: =+[1]BASE!E70 -> PERGAMINO - RAMALLO | F69: =+[1]BASE!F70 -> 132 | G69: =+[1]BASE!G70 -> 66.8 | H69: =+[1]BASE!H70 -> C | I69: =IF([1]BASE!HK70="","",[1]BASE!HK70) ->  | J69: =IF([1]BASE!HL70="","",[1]BASE!HL70) ->  | K69: =IF([1]BASE!HM70="","",[1]BASE!HM70) -> 1 | L69: =IF([1]BASE!HN70="","",[1]BASE!HN70) ->  | M69: =IF([1]BASE!HO70="","",[1]BASE!HO70) ->  | N69: =IF([1]BASE!HP70="","",[1]BASE!HP70) ->  | O69: =IF([1]BASE!HQ70="","",[1]BASE!HQ70) ->  | P69: =IF([1]BASE!HR70="","",[1]BASE!HR70) ->  | Q69: =IF([1]BASE!HS70="","",[1]BASE!HS70) ->  | R69: =IF([1]BASE!HT70="","",[1]BASE!HT70) ->  | S69: =IF([1]BASE!HU70="","",[1]BASE!HU70) ->  | T69: =IF([1]BASE!HV70="","",[1]BASE!HV70) -> 
C70: =+[1]BASE!C71 -> 55 | D70: =+[1]BASE!D71 -> 1420 | E70: =+[1]BASE!E71 -> PERGAMINO - ROJAS | F70: =+[1]BASE!F71 -> 132 | G70: =+[1]BASE!G71 -> 36 | H70: =+[1]BASE!H71 -> C | I70: =IF([1]BASE!HK71="","",[1]BASE!HK71) ->  | J70: =IF([1]BASE!HL71="","",[1]BASE!HL71) ->  | K70: =IF([1]BASE!HM71="","",[1]BASE!HM71) ->  | L70: =IF([1]BASE!HN71="","",[1]BASE!HN71) ->  | M70: =IF([1]BASE!HO71="","",[1]BASE!HO71) ->  | N70: =IF([1]BASE!HP71="","",[1]BASE!HP71) ->  | O70: =IF([1]BASE!HQ71="","",[1]BASE!HQ71) ->  | P70: =IF([1]BASE!HR71="","",[1]BASE!HR71) ->  | Q70: =IF([1]BASE!HS71="","",[1]BASE!HS71) ->  | R70: =IF([1]BASE!HT71="","",[1]BASE!HT71) ->  | S70: =IF([1]BASE!HU71="","",[1]BASE!HU71) ->  | T70: =IF([1]BASE!HV71="","",[1]BASE!HV71) -> 1
C71: =+[1]BASE!C72 -> 56 | D71: =+[1]BASE!D72 -> 1419 | E71: =+[1]BASE!E72 -> PERGAMINO - SAN NICOLAS | F71: =+[1]BASE!F72 -> 132 | G71: =+[1]BASE!G72 -> 70.8 | H71: =+[1]BASE!H72 -> C | I71: =IF([1]BASE!HK72="","",[1]BASE!HK72) -> 1 | J71: =IF([1]BASE!HL72="","",[1]BASE!HL72) ->  | K71: =IF([1]BASE!HM72="","",[1]BASE!HM72) ->  | L71: =IF([1]BASE!HN72="","",[1]BASE!HN72) ->  | M71: =IF([1]BASE!HO72="","",[1]BASE!HO72) ->  | N71: =IF([1]BASE!HP72="","",[1]BASE!HP72) ->  | O71: =IF([1]BASE!HQ72="","",[1]BASE!HQ72) ->  | P71: =IF([1]BASE!HR72="","",[1]BASE!HR72) ->  | Q71: =IF([1]BASE!HS72="","",[1]BASE!HS72) ->  | R71: =IF([1]BASE!HT72="","",[1]BASE!HT72) ->  | S71: =IF([1]BASE!HU72="","",[1]BASE!HU72) ->  | T71: =IF([1]BASE!HV72="","",[1]BASE!HV72) -> 
C72: =+[1]BASE!C73 -> 57 | D72: =+[1]BASE!D73 -> 1546 | E72: =+[1]BASE!E73 -> PETROQ. BAHIA BLANCA - URBANA BB | F72: =+[1]BASE!F73 -> 132 | G72: =+[1]BASE!G73 -> 3.2 | H72: =+[1]BASE!H73 -> C | I72: =IF([1]BASE!HK73="","",[1]BASE!HK73) ->  | J72: =IF([1]BASE!HL73="","",[1]BASE!HL73) ->  | K72: =IF([1]BASE!HM73="","",[1]BASE!HM73) ->  | L72: =IF([1]BASE!HN73="","",[1]BASE!HN73) ->  | M72: =IF([1]BASE!HO73="","",[1]BASE!HO73) ->  | N72: =IF([1]BASE!HP73="","",[1]BASE!HP73) ->  | O72: =IF([1]BASE!HQ73="","",[1]BASE!HQ73) ->  | P72: =IF([1]BASE!HR73="","",[1]BASE!HR73) ->  | Q72: =IF([1]BASE!HS73="","",[1]BASE!HS73) ->  | R72: =IF([1]BASE!HT73="","",[1]BASE!HT73) ->  | S72: =IF([1]BASE!HU73="","",[1]BASE!HU73) ->  | T72: =IF([1]BASE!HV73="","",[1]BASE!HV73) -> 
C73: =+[1]BASE!C74 -> 58 | E73: =+[1]BASE!E74 -> C. PIEDRABUENA - ING. WHITE | F73: =+[1]BASE!F74 -> 132 | G73: =+[1]BASE!G74 -> 1.1 | H73: =+[1]BASE!H74 -> C | I73: =IF([1]BASE!HK74="","",[1]BASE!HK74) ->  | J73: =IF([1]BASE!HL74="","",[1]BASE!HL74) ->  | K73: =IF([1]BASE!HM74="","",[1]BASE!HM74) ->  | L73: =IF([1]BASE!HN74="","",[1]BASE!HN74) ->  | M73: =IF([1]BASE!HO74="","",[1]BASE!HO74) ->  | N73: =IF([1]BASE!HP74="","",[1]BASE!HP74) ->  | O73: =IF([1]BASE!HQ74="","",[1]BASE!HQ74) ->  | P73: =IF([1]BASE!HR74="","",[1]BASE!HR74) ->  | Q73: =IF([1]BASE!HS74="","",[1]BASE!HS74) ->  | R73: =IF([1]BASE!HT74="","",[1]BASE!HT74) ->  | S73: =IF([1]BASE!HU74="","",[1]BASE!HU74) ->  | T73: =IF([1]BASE!HV74="","",[1]BASE!HV74) -> 
C74: =+[1]BASE!C75 -> 59 | D74: =+[1]BASE!D75 -> 2616 | E74: =+[1]BASE!E75 -> PIGUE - GUATRACHE | F74: =+[1]BASE!F75 -> 132 | G74: =+[1]BASE!G75 -> 102 | H74: =+[1]BASE!H75 -> C | I74: =IF([1]BASE!HK75="","",[1]BASE!HK75) -> 1 | J74: =IF([1]BASE!HL75="","",[1]BASE!HL75) ->  | K74: =IF([1]BASE!HM75="","",[1]BASE!HM75) ->  | L74: =IF([1]BASE!HN75="","",[1]BASE!HN75) ->  | M74: =IF([1]BASE!HO75="","",[1]BASE!HO75) ->  | N74: =IF([1]BASE!HP75="","",[1]BASE!HP75) ->  | O74: =IF([1]BASE!HQ75="","",[1]BASE!HQ75) ->  | P74: =IF([1]BASE!HR75="","",[1]BASE!HR75) ->  | Q74: =IF([1]BASE!HS75="","",[1]BASE!HS75) ->  | R74: =IF([1]BASE!HT75="","",[1]BASE!HT75) ->  | S74: =IF([1]BASE!HU75="","",[1]BASE!HU75) ->  | T74: =IF([1]BASE!HV75="","",[1]BASE!HV75) -> 
C75: =+[1]BASE!C76 -> 60 | D75: =+[1]BASE!D76 -> CE-004 | E75: =+[1]BASE!E76 -> PIGÜE - TORNQUIST - BAHIA BLANCA | F75: =+[1]BASE!F76 -> 132 | G75: =+[1]BASE!G76 -> 132.3 | H75: =+[1]BASE!H76 -> C | I75: =IF([1]BASE!HK76="","",[1]BASE!HK76) ->  | J75: =IF([1]BASE!HL76="","",[1]BASE!HL76) ->  | K75: =IF([1]BASE!HM76="","",[1]BASE!HM76) ->  | L75: =IF([1]BASE!HN76="","",[1]BASE!HN76) ->  | M75: =IF([1]BASE!HO76="","",[1]BASE!HO76) ->  | N75: =IF([1]BASE!HP76="","",[1]BASE!HP76) ->  | O75: =IF([1]BASE!HQ76="","",[1]BASE!HQ76) ->  | P75: =IF([1]BASE!HR76="","",[1]BASE!HR76) ->  | Q75: =IF([1]BASE!HS76="","",[1]BASE!HS76) ->  | R75: =IF([1]BASE!HT76="","",[1]BASE!HT76) ->  | S75: =IF([1]BASE!HU76="","",[1]BASE!HU76) -> 1 | T75: =IF([1]BASE!HV76="","",[1]BASE!HV76) -> 
C76: =+[1]BASE!C77 -> 61 | D76: =+[1]BASE!D77 -> 1443 | E76: =+[1]BASE!E77 -> PINAMAR - VILLA GESELL | F76: =+[1]BASE!F77 -> 132 | G76: =+[1]BASE!G77 -> 20.28 | H76: =+[1]BASE!H77 -> C | I76: =IF([1]BASE!HK77="","",[1]BASE!HK77) -> XXXX | J76: =IF([1]BASE!HL77="","",[1]BASE!HL77) -> XXXX | K76: =IF([1]BASE!HM77="","",[1]BASE!HM77) -> XXXX | L76: =IF([1]BASE!HN77="","",[1]BASE!HN77) -> XXXX | M76: =IF([1]BASE!HO77="","",[1]BASE!HO77) -> XXXX | N76: =IF([1]BASE!HP77="","",[1]BASE!HP77) -> XXXX | O76: =IF([1]BASE!HQ77="","",[1]BASE!HQ77) -> XXXX | P76: =IF([1]BASE!HR77="","",[1]BASE!HR77) -> XXXX | Q76: =IF([1]BASE!HS77="","",[1]BASE!HS77) -> XXXX | R76: =IF([1]BASE!HT77="","",[1]BASE!HT77) -> XXXX | S76: =IF([1]BASE!HU77="","",[1]BASE!HU77) -> XXXX | T76: =IF([1]BASE!HV77="","",[1]BASE!HV77) -> XXXX
C77: =+[1]BASE!C78 -> 62 | D77: =+[1]BASE!D78 -> 1543 | E77: =+[1]BASE!E78 -> PUNTA ALTA - BAHIA BLANCA | F77: =+[1]BASE!F78 -> 132 | G77: =+[1]BASE!G78 -> 24.1 | H77: =+[1]BASE!H78 -> C | I77: =IF([1]BASE!HK78="","",[1]BASE!HK78) ->  | J77: =IF([1]BASE!HL78="","",[1]BASE!HL78) ->  | K77: =IF([1]BASE!HM78="","",[1]BASE!HM78) ->  | L77: =IF([1]BASE!HN78="","",[1]BASE!HN78) -> 1 | M77: =IF([1]BASE!HO78="","",[1]BASE!HO78) ->  | N77: =IF([1]BASE!HP78="","",[1]BASE!HP78) ->  | O77: =IF([1]BASE!HQ78="","",[1]BASE!HQ78) ->  | P77: =IF([1]BASE!HR78="","",[1]BASE!HR78) ->  | Q77: =IF([1]BASE!HS78="","",[1]BASE!HS78) ->  | R77: =IF([1]BASE!HT78="","",[1]BASE!HT78) ->  | S77: =IF([1]BASE!HU78="","",[1]BASE!HU78) ->  | T77: =IF([1]BASE!HV78="","",[1]BASE!HV78) -> 
C78: =+[1]BASE!C79 -> 63 | D78: =+[1]BASE!D79 -> 1544 | E78: =+[1]BASE!E79 -> PUNTA ALTA - C. PIEDRABUENA | F78: =+[1]BASE!F79 -> 132 | G78: =+[1]BASE!G79 -> 25 | H78: =+[1]BASE!H79 -> C | I78: =IF([1]BASE!HK79="","",[1]BASE!HK79) ->  | J78: =IF([1]BASE!HL79="","",[1]BASE!HL79) ->  | K78: =IF([1]BASE!HM79="","",[1]BASE!HM79) ->  | L78: =IF([1]BASE!HN79="","",[1]BASE!HN79) ->  | M78: =IF([1]BASE!HO79="","",[1]BASE!HO79) ->  | N78: =IF([1]BASE!HP79="","",[1]BASE!HP79) ->  | O78: =IF([1]BASE!HQ79="","",[1]BASE!HQ79) ->  | P78: =IF([1]BASE!HR79="","",[1]BASE!HR79) -> 1 | Q78: =IF([1]BASE!HS79="","",[1]BASE!HS79) ->  | R78: =IF([1]BASE!HT79="","",[1]BASE!HT79) ->  | S78: =IF([1]BASE!HU79="","",[1]BASE!HU79) ->  | T78: =IF([1]BASE!HV79="","",[1]BASE!HV79) -> 
C79: =+[1]BASE!C80 -> 64 | D79: =+[1]BASE!D80 -> 2741 | E79: =+[1]BASE!E80 -> RAMALLO - URBANA SAN NICOLAS | F79: =+[1]BASE!F80 -> 132 | G79: =+[1]BASE!G80 -> 12.86 | H79: =+[1]BASE!H80 -> C | I79: =IF([1]BASE!HK80="","",[1]BASE!HK80) ->  | J79: =IF([1]BASE!HL80="","",[1]BASE!HL80) ->  | K79: =IF([1]BASE!HM80="","",[1]BASE!HM80) ->  | L79: =IF([1]BASE!HN80="","",[1]BASE!HN80) ->  | M79: =IF([1]BASE!HO80="","",[1]BASE!HO80) ->  | N79: =IF([1]BASE!HP80="","",[1]BASE!HP80) ->  | O79: =IF([1]BASE!HQ80="","",[1]BASE!HQ80) ->  | P79: =IF([1]BASE!HR80="","",[1]BASE!HR80) ->  | Q79: =IF([1]BASE!HS80="","",[1]BASE!HS80) ->  | R79: =IF([1]BASE!HT80="","",[1]BASE!HT80) ->  | S79: =IF([1]BASE!HU80="","",[1]BASE!HU80) ->  | T79: =IF([1]BASE!HV80="","",[1]BASE!HV80) -> 
C80: =+[1]BASE!C81 -> 65 | D80: =+[1]BASE!D81 -> 1418 | E80: =+[1]BASE!E81 -> ROJAS - JUNIN | F80: =+[1]BASE!F81 -> 132 | G80: =+[1]BASE!G81 -> 47.7 | H80: =+[1]BASE!H81 -> C | I80: =IF([1]BASE!HK81="","",[1]BASE!HK81) ->  | J80: =IF([1]BASE!HL81="","",[1]BASE!HL81) ->  | K80: =IF([1]BASE!HM81="","",[1]BASE!HM81) ->  | L80: =IF([1]BASE!HN81="","",[1]BASE!HN81) ->  | M80: =IF([1]BASE!HO81="","",[1]BASE!HO81) ->  | N80: =IF([1]BASE!HP81="","",[1]BASE!HP81) ->  | O80: =IF([1]BASE!HQ81="","",[1]BASE!HQ81) ->  | P80: =IF([1]BASE!HR81="","",[1]BASE!HR81) ->  | Q80: =IF([1]BASE!HS81="","",[1]BASE!HS81) ->  | R80: =IF([1]BASE!HT81="","",[1]BASE!HT81) ->  | S80: =IF([1]BASE!HU81="","",[1]BASE!HU81) ->  | T80: =IF([1]BASE!HV81="","",[1]BASE!HV81) -> 
C81: =+[1]BASE!C82 -> 66 | D81: =+[1]BASE!D82 -> 1407 | E81: =+[1]BASE!E82 -> SALADILLO - LAS FLORES | F81: =+[1]BASE!F82 -> 132 | G81: =+[1]BASE!G82 -> 76.3 | H81: =+[1]BASE!H82 -> C | I81: =IF([1]BASE!HK82="","",[1]BASE!HK82) ->  | J81: =IF([1]BASE!HL82="","",[1]BASE!HL82) ->  | K81: =IF([1]BASE!HM82="","",[1]BASE!HM82) ->  | L81: =IF([1]BASE!HN82="","",[1]BASE!HN82) ->  | M81: =IF([1]BASE!HO82="","",[1]BASE!HO82) ->  | N81: =IF([1]BASE!HP82="","",[1]BASE!HP82) ->  | O81: =IF([1]BASE!HQ82="","",[1]BASE!HQ82) ->  | P81: =IF([1]BASE!HR82="","",[1]BASE!HR82) -> 1 | Q81: =IF([1]BASE!HS82="","",[1]BASE!HS82) ->  | R81: =IF([1]BASE!HT82="","",[1]BASE!HT82) ->  | S81: =IF([1]BASE!HU82="","",[1]BASE!HU82) ->  | T81: =IF([1]BASE!HV82="","",[1]BASE!HV82) -> 
C82: =+[1]BASE!C83 -> 67 | D82: =+[1]BASE!D83 -> 1439 | E82: =+[1]BASE!E83 -> SAN CLEMENTE - DOLORES | F82: =+[1]BASE!F83 -> 132 | G82: =+[1]BASE!G83 -> 102.6 | H82: =+[1]BASE!H83 -> C | I82: =IF([1]BASE!HK83="","",[1]BASE!HK83) ->  | J82: =IF([1]BASE!HL83="","",[1]BASE!HL83) ->  | K82: =IF([1]BASE!HM83="","",[1]BASE!HM83) ->  | L82: =IF([1]BASE!HN83="","",[1]BASE!HN83) ->  | M82: =IF([1]BASE!HO83="","",[1]BASE!HO83) ->  | N82: =IF([1]BASE!HP83="","",[1]BASE!HP83) ->  | O82: =IF([1]BASE!HQ83="","",[1]BASE!HQ83) ->  | P82: =IF([1]BASE!HR83="","",[1]BASE!HR83) ->  | Q82: =IF([1]BASE!HS83="","",[1]BASE!HS83) -> 1 | R82: =IF([1]BASE!HT83="","",[1]BASE!HT83) ->  | S82: =IF([1]BASE!HU83="","",[1]BASE!HU83) ->  | T82: =IF([1]BASE!HV83="","",[1]BASE!HV83) -> 
C83: =+[1]BASE!C84 -> 68 | D83: =+[1]BASE!D84 -> C-000 | E83: =+[1]BASE!E84 -> SAN CLEMENTE - MAR DEL TUYÚ - MAR DE AJÓ | F83: =+[1]BASE!F84 -> 132 | G83: =+[1]BASE!G84 -> 39 | H83: =+[1]BASE!H84 -> B | I83: =IF([1]BASE!HK84="","",[1]BASE!HK84) -> XXXX | J83: =IF([1]BASE!HL84="","",[1]BASE!HL84) -> XXXX | K83: =IF([1]BASE!HM84="","",[1]BASE!HM84) -> XXXX | L83: =IF([1]BASE!HN84="","",[1]BASE!HN84) -> XXXX | M83: =IF([1]BASE!HO84="","",[1]BASE!HO84) -> XXXX | N83: =IF([1]BASE!HP84="","",[1]BASE!HP84) -> XXXX | O83: =IF([1]BASE!HQ84="","",[1]BASE!HQ84) -> XXXX | P83: =IF([1]BASE!HR84="","",[1]BASE!HR84) -> XXXX | Q83: =IF([1]BASE!HS84="","",[1]BASE!HS84) -> XXXX | R83: =IF([1]BASE!HT84="","",[1]BASE!HT84) -> XXXX | S83: =IF([1]BASE!HU84="","",[1]BASE!HU84) -> XXXX | T83: =IF([1]BASE!HV84="","",[1]BASE!HV84) -> XXXX
C84: =+[1]BASE!C85 -> 69 | D84: =+[1]BASE!D85 -> 4293 | E84: =+[1]BASE!E85 -> SAN CLEMENTE - LAS TONINAS | F84: =+[1]BASE!F85 -> 132 | G84: =+[1]BASE!G85 -> 14.6 | H84: =+[1]BASE!H85 -> B | I84: =IF([1]BASE!HK85="","",[1]BASE!HK85) ->  | J84: =IF([1]BASE!HL85="","",[1]BASE!HL85) ->  | K84: =IF([1]BASE!HM85="","",[1]BASE!HM85) ->  | L84: =IF([1]BASE!HN85="","",[1]BASE!HN85) ->  | M84: =IF([1]BASE!HO85="","",[1]BASE!HO85) ->  | N84: =IF([1]BASE!HP85="","",[1]BASE!HP85) ->  | O84: =IF([1]BASE!HQ85="","",[1]BASE!HQ85) ->  | P84: =IF([1]BASE!HR85="","",[1]BASE!HR85) ->  | Q84: =IF([1]BASE!HS85="","",[1]BASE!HS85) ->  | R84: =IF([1]BASE!HT85="","",[1]BASE!HT85) ->  | S84: =IF([1]BASE!HU85="","",[1]BASE!HU85) ->  | T84: =IF([1]BASE!HV85="","",[1]BASE!HV85) -> 
C85: =+[1]BASE!C86 -> 70 | D85: =+[1]BASE!D86 -> CE-003 | E85: =+[1]BASE!E86 -> LAS TONINAS-MAR DEL TUYU-MAR DE AJO | F85: =+[1]BASE!F86 -> 132 | G85: =+[1]BASE!G86 -> 29.57 | H85: =+[1]BASE!H86 -> B | I85: =IF([1]BASE!HK86="","",[1]BASE!HK86) ->  | J85: =IF([1]BASE!HL86="","",[1]BASE!HL86) ->  | K85: =IF([1]BASE!HM86="","",[1]BASE!HM86) ->  | L85: =IF([1]BASE!HN86="","",[1]BASE!HN86) ->  | M85: =IF([1]BASE!HO86="","",[1]BASE!HO86) ->  | N85: =IF([1]BASE!HP86="","",[1]BASE!HP86) ->  | O85: =IF([1]BASE!HQ86="","",[1]BASE!HQ86) ->  | P85: =IF([1]BASE!HR86="","",[1]BASE!HR86) -> 1 | Q85: =IF([1]BASE!HS86="","",[1]BASE!HS86) ->  | R85: =IF([1]BASE!HT86="","",[1]BASE!HT86) ->  | S85: =IF([1]BASE!HU86="","",[1]BASE!HU86) ->  | T85: =IF([1]BASE!HV86="","",[1]BASE!HV86) -> 
C86: =+[1]BASE!C87 -> 71 | D86: =+[1]BASE!D87 -> 1999 | E86: =+[1]BASE!E87 -> SAN NICOLÁS - VILLA CONSTITUCIÓN IND. | F86: =+[1]BASE!F87 -> 132 | G86: =+[1]BASE!G87 -> 14.7 | H86: =+[1]BASE!H87 -> C | I86: =IF([1]BASE!HK87="","",[1]BASE!HK87) ->  | J86: =IF([1]BASE!HL87="","",[1]BASE!HL87) ->  | K86: =IF([1]BASE!HM87="","",[1]BASE!HM87) ->  | L86: =IF([1]BASE!HN87="","",[1]BASE!HN87) ->  | M86: =IF([1]BASE!HO87="","",[1]BASE!HO87) ->  | N86: =IF([1]BASE!HP87="","",[1]BASE!HP87) -> 1 | O86: =IF([1]BASE!HQ87="","",[1]BASE!HQ87) ->  | P86: =IF([1]BASE!HR87="","",[1]BASE!HR87) ->  | Q86: =IF([1]BASE!HS87="","",[1]BASE!HS87) ->  | R86: =IF([1]BASE!HT87="","",[1]BASE!HT87) -> 1 | S86: =IF([1]BASE!HU87="","",[1]BASE!HU87) ->  | T86: =IF([1]BASE!HV87="","",[1]BASE!HV87) -> 
C87: =+[1]BASE!C88 -> 72 | D87: =+[1]BASE!D88 -> 1997 | E87: =+[1]BASE!E88 -> SAN NICOLÁS - VILLA CONSTITUCIÓN RES. | F87: =+[1]BASE!F88 -> 132 | G87: =+[1]BASE!G88 -> 13.6 | H87: =+[1]BASE!H88 -> B | I87: =IF([1]BASE!HK88="","",[1]BASE!HK88) ->  | J87: =IF([1]BASE!HL88="","",[1]BASE!HL88) ->  | K87: =IF([1]BASE!HM88="","",[1]BASE!HM88) ->  | L87: =IF([1]BASE!HN88="","",[1]BASE!HN88) ->  | M87: =IF([1]BASE!HO88="","",[1]BASE!HO88) ->  | N87: =IF([1]BASE!HP88="","",[1]BASE!HP88) ->  | O87: =IF([1]BASE!HQ88="","",[1]BASE!HQ88) ->  | P87: =IF([1]BASE!HR88="","",[1]BASE!HR88) ->  | Q87: =IF([1]BASE!HS88="","",[1]BASE!HS88) ->  | R87: =IF([1]BASE!HT88="","",[1]BASE!HT88) ->  | S87: =IF([1]BASE!HU88="","",[1]BASE!HU88) ->  | T87: =IF([1]BASE!HV88="","",[1]BASE!HV88) -> 
C88: =+[1]BASE!C89 -> 73 | D88: =+[1]BASE!D89 -> CE-000 | E88: =+[1]BASE!E89 -> SAN NICOLAS EXTG - SAN NICOLAS | F88: =+[1]BASE!F89 -> 132 | G88: =+[1]BASE!G89 -> 0.4 | H88: =+[1]BASE!H89 -> C | I88: =IF([1]BASE!HK89="","",[1]BASE!HK89) -> XXXX | J88: =IF([1]BASE!HL89="","",[1]BASE!HL89) -> XXXX | K88: =IF([1]BASE!HM89="","",[1]BASE!HM89) -> XXXX | L88: =IF([1]BASE!HN89="","",[1]BASE!HN89) -> XXXX | M88: =IF([1]BASE!HO89="","",[1]BASE!HO89) -> XXXX | N88: =IF([1]BASE!HP89="","",[1]BASE!HP89) -> XXXX | O88: =IF([1]BASE!HQ89="","",[1]BASE!HQ89) -> XXXX | P88: =IF([1]BASE!HR89="","",[1]BASE!HR89) -> XXXX | Q88: =IF([1]BASE!HS89="","",[1]BASE!HS89) -> XXXX | R88: =IF([1]BASE!HT89="","",[1]BASE!HT89) -> XXXX | S88: =IF([1]BASE!HU89="","",[1]BASE!HU89) -> XXXX | T88: =IF([1]BASE!HV89="","",[1]BASE!HV89) -> XXXX
C89: =+[1]BASE!C90 -> 74 | D89: =+[1]BASE!D90 -> 2957 | E89: =+[1]BASE!E90 -> SAN PEDRO - EASTMAN T | F89: =+[1]BASE!F90 -> 132 | G89: =+[1]BASE!G90 -> 63.1 | H89: =+[1]BASE!H90 -> C | I89: =IF([1]BASE!HK90="","",[1]BASE!HK90) -> XXXX | J89: =IF([1]BASE!HL90="","",[1]BASE!HL90) -> XXXX | K89: =IF([1]BASE!HM90="","",[1]BASE!HM90) -> XXXX | L89: =IF([1]BASE!HN90="","",[1]BASE!HN90) -> XXXX | M89: =IF([1]BASE!HO90="","",[1]BASE!HO90) -> XXXX | N89: =IF([1]BASE!HP90="","",[1]BASE!HP90) -> XXXX | O89: =IF([1]BASE!HQ90="","",[1]BASE!HQ90) -> XXXX | P89: =IF([1]BASE!HR90="","",[1]BASE!HR90) -> XXXX | Q89: =IF([1]BASE!HS90="","",[1]BASE!HS90) -> XXXX | R89: =IF([1]BASE!HT90="","",[1]BASE!HT90) -> XXXX | S89: =IF([1]BASE!HU90="","",[1]BASE!HU90) -> XXXX | T89: =IF([1]BASE!HV90="","",[1]BASE!HV90) -> XXXX
C90: =+[1]BASE!C91 -> 75 | D90: =+[1]BASE!D91 -> 1427 | E90: =+[1]BASE!E91 -> SAN PEDRO - PAPEL PRENSA | F90: =+[1]BASE!F91 -> 132 | G90: =+[1]BASE!G91 -> 10.9 | H90: =+[1]BASE!H91 -> B | I90: =IF([1]BASE!HK91="","",[1]BASE!HK91) ->  | J90: =IF([1]BASE!HL91="","",[1]BASE!HL91) ->  | K90: =IF([1]BASE!HM91="","",[1]BASE!HM91) ->  | L90: =IF([1]BASE!HN91="","",[1]BASE!HN91) ->  | M90: =IF([1]BASE!HO91="","",[1]BASE!HO91) ->  | N90: =IF([1]BASE!HP91="","",[1]BASE!HP91) ->  | O90: =IF([1]BASE!HQ91="","",[1]BASE!HQ91) ->  | P90: =IF([1]BASE!HR91="","",[1]BASE!HR91) ->  | Q90: =IF([1]BASE!HS91="","",[1]BASE!HS91) ->  | R90: =IF([1]BASE!HT91="","",[1]BASE!HT91) ->  | S90: =IF([1]BASE!HU91="","",[1]BASE!HU91) ->  | T90: =IF([1]BASE!HV91="","",[1]BASE!HV91) -> 
C91: =+[1]BASE!C92 -> 76 | D91: =+[1]BASE!D92 -> CE-000 | E91: =+[1]BASE!E92 -> SAN PEDRO - SAN NICOLÁS | F91: =+[1]BASE!F92 -> 132 | G91: =+[1]BASE!G92 -> 65 | H91: =+[1]BASE!H92 -> C | I91: =IF([1]BASE!HK92="","",[1]BASE!HK92) -> XXXX | J91: =IF([1]BASE!HL92="","",[1]BASE!HL92) -> XXXX | K91: =IF([1]BASE!HM92="","",[1]BASE!HM92) -> XXXX | L91: =IF([1]BASE!HN92="","",[1]BASE!HN92) -> XXXX | M91: =IF([1]BASE!HO92="","",[1]BASE!HO92) -> XXXX | N91: =IF([1]BASE!HP92="","",[1]BASE!HP92) -> XXXX | O91: =IF([1]BASE!HQ92="","",[1]BASE!HQ92) -> XXXX | P91: =IF([1]BASE!HR92="","",[1]BASE!HR92) -> XXXX | Q91: =IF([1]BASE!HS92="","",[1]BASE!HS92) -> XXXX | R91: =IF([1]BASE!HT92="","",[1]BASE!HT92) -> XXXX | S91: =IF([1]BASE!HU92="","",[1]BASE!HU92) -> XXXX | T91: =IF([1]BASE!HV92="","",[1]BASE!HV92) -> XXXX
C92: =+[1]BASE!C93 -> 77 | D92: =+[1]BASE!D93 -> 4277 | E92: =+[1]BASE!E93 -> SAN PEDRO - RAMALLO INDUSTRIAL | F92: =+[1]BASE!F93 -> 132 | G92: =+[1]BASE!G93 -> 58 | H92: =+[1]BASE!H93 -> C | I92: =IF([1]BASE!HK93="","",[1]BASE!HK93) ->  | J92: =IF([1]BASE!HL93="","",[1]BASE!HL93) ->  | K92: =IF([1]BASE!HM93="","",[1]BASE!HM93) ->  | L92: =IF([1]BASE!HN93="","",[1]BASE!HN93) ->  | M92: =IF([1]BASE!HO93="","",[1]BASE!HO93) ->  | N92: =IF([1]BASE!HP93="","",[1]BASE!HP93) ->  | O92: =IF([1]BASE!HQ93="","",[1]BASE!HQ93) ->  | P92: =IF([1]BASE!HR93="","",[1]BASE!HR93) ->  | Q92: =IF([1]BASE!HS93="","",[1]BASE!HS93) ->  | R92: =IF([1]BASE!HT93="","",[1]BASE!HT93) ->  | S92: =IF([1]BASE!HU93="","",[1]BASE!HU93) ->  | T92: =IF([1]BASE!HV93="","",[1]BASE!HV93) -> 
C93: =+[1]BASE!C94 -> 78 | D93: =+[1]BASE!D94 -> 4278 | E93: =+[1]BASE!E94 -> SAN NICOLÁS - RAMALLO INDUSTRIAL | F93: =+[1]BASE!F94 -> 132 | G93: =+[1]BASE!G94 -> 23.52 | H93: =+[1]BASE!H94 -> C | I93: =IF([1]BASE!HK94="","",[1]BASE!HK94) -> XXXX | J93: =IF([1]BASE!HL94="","",[1]BASE!HL94) -> XXXX | K93: =IF([1]BASE!HM94="","",[1]BASE!HM94) -> XXXX | L93: =IF([1]BASE!HN94="","",[1]BASE!HN94) -> XXXX | M93: =IF([1]BASE!HO94="","",[1]BASE!HO94) -> XXXX | N93: =IF([1]BASE!HP94="","",[1]BASE!HP94) -> XXXX | O93: =IF([1]BASE!HQ94="","",[1]BASE!HQ94) -> XXXX | P93: =IF([1]BASE!HR94="","",[1]BASE!HR94) -> XXXX | Q93: =IF([1]BASE!HS94="","",[1]BASE!HS94) -> XXXX | R93: =IF([1]BASE!HT94="","",[1]BASE!HT94) -> XXXX | S93: =IF([1]BASE!HU94="","",[1]BASE!HU94) -> XXXX | T93: =IF([1]BASE!HV94="","",[1]BASE!HV94) -> XXXX
C94: =+[1]BASE!C95 -> 79 | D94: =+[1]BASE!D95 -> 1517 | E94: =+[1]BASE!E95 -> TANDIL - BALCARCE | F94: =+[1]BASE!F95 -> 132 | G94: =+[1]BASE!G95 -> 103.6 | H94: =+[1]BASE!H95 -> C | I94: =IF([1]BASE!HK95="","",[1]BASE!HK95) ->  | J94: =IF([1]BASE!HL95="","",[1]BASE!HL95) ->  | K94: =IF([1]BASE!HM95="","",[1]BASE!HM95) ->  | L94: =IF([1]BASE!HN95="","",[1]BASE!HN95) ->  | M94: =IF([1]BASE!HO95="","",[1]BASE!HO95) ->  | N94: =IF([1]BASE!HP95="","",[1]BASE!HP95) ->  | O94: =IF([1]BASE!HQ95="","",[1]BASE!HQ95) ->  | P94: =IF([1]BASE!HR95="","",[1]BASE!HR95) ->  | Q94: =IF([1]BASE!HS95="","",[1]BASE!HS95) ->  | R94: =IF([1]BASE!HT95="","",[1]BASE!HT95) ->  | S94: =IF([1]BASE!HU95="","",[1]BASE!HU95) ->  | T94: =IF([1]BASE!HV95="","",[1]BASE!HV95) -> 
C95: =+[1]BASE!C96 -> 80 | D95: =+[1]BASE!D96 -> 1519 | E95: =+[1]BASE!E96 -> TANDIL - NECOCHEA | F95: =+[1]BASE!F96 -> 132 | G95: =+[1]BASE!G96 -> 149.2 | H95: =+[1]BASE!H96 -> C | I95: =IF([1]BASE!HK96="","",[1]BASE!HK96) ->  | J95: =IF([1]BASE!HL96="","",[1]BASE!HL96) ->  | K95: =IF([1]BASE!HM96="","",[1]BASE!HM96) -> 1 | L95: =IF([1]BASE!HN96="","",[1]BASE!HN96) ->  | M95: =IF([1]BASE!HO96="","",[1]BASE!HO96) ->  | N95: =IF([1]BASE!HP96="","",[1]BASE!HP96) ->  | O95: =IF([1]BASE!HQ96="","",[1]BASE!HQ96) ->  | P95: =IF([1]BASE!HR96="","",[1]BASE!HR96) ->  | Q95: =IF([1]BASE!HS96="","",[1]BASE!HS96) ->  | R95: =IF([1]BASE!HT96="","",[1]BASE!HT96) ->  | S95: =IF([1]BASE!HU96="","",[1]BASE!HU96) ->  | T95: =IF([1]BASE!HV96="","",[1]BASE!HV96) -> 
C96: =+[1]BASE!C97 -> 81 | D96: =+[1]BASE!D97 -> 1518 | E96: =+[1]BASE!E97 -> TANDIL - BARKER | F96: =+[1]BASE!F97 -> 132 | G96: =+[1]BASE!G97 -> 47.7 | H96: =+[1]BASE!H97 -> C | I96: =IF([1]BASE!HK97="","",[1]BASE!HK97) ->  | J96: =IF([1]BASE!HL97="","",[1]BASE!HL97) ->  | K96: =IF([1]BASE!HM97="","",[1]BASE!HM97) ->  | L96: =IF([1]BASE!HN97="","",[1]BASE!HN97) ->  | M96: =IF([1]BASE!HO97="","",[1]BASE!HO97) ->  | N96: =IF([1]BASE!HP97="","",[1]BASE!HP97) ->  | O96: =IF([1]BASE!HQ97="","",[1]BASE!HQ97) ->  | P96: =IF([1]BASE!HR97="","",[1]BASE!HR97) ->  | Q96: =IF([1]BASE!HS97="","",[1]BASE!HS97) ->  | R96: =IF([1]BASE!HT97="","",[1]BASE!HT97) ->  | S96: =IF([1]BASE!HU97="","",[1]BASE!HU97) ->  | T96: =IF([1]BASE!HV97="","",[1]BASE!HV97) -> 
C97: =+[1]BASE!C98 -> 82 | D97: =+[1]BASE!D98 -> 2712 | E97: =+[1]BASE!E98 -> TRENQUE LAUQUEN - GRAL. PICO | F97: =+[1]BASE!F98 -> 132 | G97: =+[1]BASE!G98 -> 77 | H97: =+[1]BASE!H98 -> C | I97: =IF([1]BASE!HK98="","",[1]BASE!HK98) ->  | J97: =IF([1]BASE!HL98="","",[1]BASE!HL98) ->  | K97: =IF([1]BASE!HM98="","",[1]BASE!HM98) ->  | L97: =IF([1]BASE!HN98="","",[1]BASE!HN98) ->  | M97: =IF([1]BASE!HO98="","",[1]BASE!HO98) ->  | N97: =IF([1]BASE!HP98="","",[1]BASE!HP98) ->  | O97: =IF([1]BASE!HQ98="","",[1]BASE!HQ98) ->  | P97: =IF([1]BASE!HR98="","",[1]BASE!HR98) ->  | Q97: =IF([1]BASE!HS98="","",[1]BASE!HS98) ->  | R97: =IF([1]BASE!HT98="","",[1]BASE!HT98) ->  | S97: =IF([1]BASE!HU98="","",[1]BASE!HU98) ->  | T97: =IF([1]BASE!HV98="","",[1]BASE!HV98) -> 
C98: =+[1]BASE!C99 -> 83 | D98: =+[1]BASE!D99 -> 1402 | E98: =+[1]BASE!E99 -> TRENQUE LAUQUEN - HENDERSON | F98: =+[1]BASE!F99 -> 132 | G98: =+[1]BASE!G99 -> 105.4 | H98: =+[1]BASE!H99 -> A | I98: =IF([1]BASE!HK99="","",[1]BASE!HK99) ->  | J98: =IF([1]BASE!HL99="","",[1]BASE!HL99) ->  | K98: =IF([1]BASE!HM99="","",[1]BASE!HM99) ->  | L98: =IF([1]BASE!HN99="","",[1]BASE!HN99) -> 1 | M98: =IF([1]BASE!HO99="","",[1]BASE!HO99) ->  | N98: =IF([1]BASE!HP99="","",[1]BASE!HP99) -> 1 | O98: =IF([1]BASE!HQ99="","",[1]BASE!HQ99) ->  | P98: =IF([1]BASE!HR99="","",[1]BASE!HR99) ->  | Q98: =IF([1]BASE!HS99="","",[1]BASE!HS99) ->  | R98: =IF([1]BASE!HT99="","",[1]BASE!HT99) ->  | S98: =IF([1]BASE!HU99="","",[1]BASE!HU99) ->  | T98: =IF([1]BASE!HV99="","",[1]BASE!HV99) -> 
C99: =+[1]BASE!C100 -> 84 | D99: =+[1]BASE!D100 -> 1382 | E99: =+[1]BASE!E100 -> URBANA SAN NICOLÁS - SAN NICOLAS | F99: =+[1]BASE!F100 -> 132 | G99: =+[1]BASE!G100 -> 6.5 | H99: =+[1]BASE!H100 -> C | I99: =IF([1]BASE!HK100="","",[1]BASE!HK100) ->  | J99: =IF([1]BASE!HL100="","",[1]BASE!HL100) ->  | K99: =IF([1]BASE!HM100="","",[1]BASE!HM100) ->  | L99: =IF([1]BASE!HN100="","",[1]BASE!HN100) ->  | M99: =IF([1]BASE!HO100="","",[1]BASE!HO100) ->  | N99: =IF([1]BASE!HP100="","",[1]BASE!HP100) ->  | O99: =IF([1]BASE!HQ100="","",[1]BASE!HQ100) ->  | P99: =IF([1]BASE!HR100="","",[1]BASE!HR100) ->  | Q99: =IF([1]BASE!HS100="","",[1]BASE!HS100) ->  | R99: =IF([1]BASE!HT100="","",[1]BASE!HT100) ->  | S99: =IF([1]BASE!HU100="","",[1]BASE!HU100) ->  | T99: =IF([1]BASE!HV100="","",[1]BASE!HV100) -> 
C100: =+[1]BASE!C101 -> 85 | D100: =+[1]BASE!D101 -> 1547 | E100: =+[1]BASE!E101 -> URBANA BB - C. PIEDRABUENA | F100: =+[1]BASE!F101 -> 132 | G100: =+[1]BASE!G101 -> 1.9 | H100: =+[1]BASE!H101 -> C | I100: =IF([1]BASE!HK101="","",[1]BASE!HK101) ->  | J100: =IF([1]BASE!HL101="","",[1]BASE!HL101) ->  | K100: =IF([1]BASE!HM101="","",[1]BASE!HM101) ->  | L100: =IF([1]BASE!HN101="","",[1]BASE!HN101) ->  | M100: =IF([1]BASE!HO101="","",[1]BASE!HO101) ->  | N100: =IF([1]BASE!HP101="","",[1]BASE!HP101) ->  | O100: =IF([1]BASE!HQ101="","",[1]BASE!HQ101) ->  | P100: =IF([1]BASE!HR101="","",[1]BASE!HR101) ->  | Q100: =IF([1]BASE!HS101="","",[1]BASE!HS101) ->  | R100: =IF([1]BASE!HT101="","",[1]BASE!HT101) ->  | S100: =IF([1]BASE!HU101="","",[1]BASE!HU101) ->  | T100: =IF([1]BASE!HV101="","",[1]BASE!HV101) -> 
C101: =+[1]BASE!C102 -> 86 | D101: =+[1]BASE!D102 -> 1445 | E101: =+[1]BASE!E102 -> VILLA GESELL - GRAL. MADARIAGA | F101: =+[1]BASE!F102 -> 132 | G101: =+[1]BASE!G102 -> 35 | H101: =+[1]BASE!H102 -> C | I101: =IF([1]BASE!HK102="","",[1]BASE!HK102) ->  | J101: =IF([1]BASE!HL102="","",[1]BASE!HL102) ->  | K101: =IF([1]BASE!HM102="","",[1]BASE!HM102) ->  | L101: =IF([1]BASE!HN102="","",[1]BASE!HN102) ->  | M101: =IF([1]BASE!HO102="","",[1]BASE!HO102) ->  | N101: =IF([1]BASE!HP102="","",[1]BASE!HP102) ->  | O101: =IF([1]BASE!HQ102="","",[1]BASE!HQ102) ->  | P101: =IF([1]BASE!HR102="","",[1]BASE!HR102) -> 1 | Q101: =IF([1]BASE!HS102="","",[1]BASE!HS102) ->  | R101: =IF([1]BASE!HT102="","",[1]BASE!HT102) ->  | S101: =IF([1]BASE!HU102="","",[1]BASE!HU102) ->  | T101: =IF([1]BASE!HV102="","",[1]BASE!HV102) -> 
C102: =+[1]BASE!C103 -> 87 | D102: =+[1]BASE!D103 -> 2715 | E102: =+[1]BASE!E103 -> VILLA LIA "T" - ANTONIO DE ARECO | F102: =+[1]BASE!F103 -> 132 | G102: =+[1]BASE!G103 -> 18.4 | H102: =+[1]BASE!H103 -> C | I102: =IF([1]BASE!HK103="","",[1]BASE!HK103) ->  | J102: =IF([1]BASE!HL103="","",[1]BASE!HL103) ->  | K102: =IF([1]BASE!HM103="","",[1]BASE!HM103) ->  | L102: =IF([1]BASE!HN103="","",[1]BASE!HN103) ->  | M102: =IF([1]BASE!HO103="","",[1]BASE!HO103) ->  | N102: =IF([1]BASE!HP103="","",[1]BASE!HP103) ->  | O102: =IF([1]BASE!HQ103="","",[1]BASE!HQ103) -> 1 | P102: =IF([1]BASE!HR103="","",[1]BASE!HR103) ->  | Q102: =IF([1]BASE!HS103="","",[1]BASE!HS103) ->  | R102: =IF([1]BASE!HT103="","",[1]BASE!HT103) ->  | S102: =IF([1]BASE!HU103="","",[1]BASE!HU103) ->  | T102: =IF([1]BASE!HV103="","",[1]BASE!HV103) -> 
C103: =+[1]BASE!C104 -> 88 | D103: =+[1]BASE!D104 -> 2714 | E103: =+[1]BASE!E104 -> VILLA LIA "T" - NUEVA CAMPANA | F103: =+[1]BASE!F104 -> 132 | G103: =+[1]BASE!G104 -> 35 | H103: =+[1]BASE!H104 -> C | I103: =IF([1]BASE!HK104="","",[1]BASE!HK104) ->  | J103: =IF([1]BASE!HL104="","",[1]BASE!HL104) ->  | K103: =IF([1]BASE!HM104="","",[1]BASE!HM104) ->  | L103: =IF([1]BASE!HN104="","",[1]BASE!HN104) ->  | M103: =IF([1]BASE!HO104="","",[1]BASE!HO104) ->  | N103: =IF([1]BASE!HP104="","",[1]BASE!HP104) -> 1 | O103: =IF([1]BASE!HQ104="","",[1]BASE!HQ104) ->  | P103: =IF([1]BASE!HR104="","",[1]BASE!HR104) ->  | Q103: =IF([1]BASE!HS104="","",[1]BASE!HS104) ->  | R103: =IF([1]BASE!HT104="","",[1]BASE!HT104) ->  | S103: =IF([1]BASE!HU104="","",[1]BASE!HU104) ->  | T103: =IF([1]BASE!HV104="","",[1]BASE!HV104) -> 
C104: =+[1]BASE!C105 -> 89 | D104: =+[1]BASE!D105 -> 2713 | E104: =+[1]BASE!E105 -> VILLA LIA "T" - VILLA LIA | F104: =+[1]BASE!F105 -> 132 | G104: =+[1]BASE!G105 -> 8 | H104: =+[1]BASE!H105 -> C | I104: =IF([1]BASE!HK105="","",[1]BASE!HK105) ->  | J104: =IF([1]BASE!HL105="","",[1]BASE!HL105) ->  | K104: =IF([1]BASE!HM105="","",[1]BASE!HM105) ->  | L104: =IF([1]BASE!HN105="","",[1]BASE!HN105) ->  | M104: =IF([1]BASE!HO105="","",[1]BASE!HO105) ->  | N104: =IF([1]BASE!HP105="","",[1]BASE!HP105) ->  | O104: =IF([1]BASE!HQ105="","",[1]BASE!HQ105) ->  | P104: =IF([1]BASE!HR105="","",[1]BASE!HR105) ->  | Q104: =IF([1]BASE!HS105="","",[1]BASE!HS105) ->  | R104: =IF([1]BASE!HT105="","",[1]BASE!HT105) ->  | S104: =IF([1]BASE!HU105="","",[1]BASE!HU105) ->  | T104: =IF([1]BASE!HV105="","",[1]BASE!HV105) -> 
C105: =+[1]BASE!C106 -> 90 | D105: =+[1]BASE!D106 -> 1424 | E105: =+[1]BASE!E106 -> ZARATE - ATUCHA I | F105: =+[1]BASE!F106 -> 132 | G105: =+[1]BASE!G106 -> 22.1 | H105: =+[1]BASE!H106 -> C | I105: =IF([1]BASE!HK106="","",[1]BASE!HK106) ->  | J105: =IF([1]BASE!HL106="","",[1]BASE!HL106) ->  | K105: =IF([1]BASE!HM106="","",[1]BASE!HM106) ->  | L105: =IF([1]BASE!HN106="","",[1]BASE!HN106) -> 1 | M105: =IF([1]BASE!HO106="","",[1]BASE!HO106) ->  | N105: =IF([1]BASE!HP106="","",[1]BASE!HP106) ->  | O105: =IF([1]BASE!HQ106="","",[1]BASE!HQ106) ->  | P105: =IF([1]BASE!HR106="","",[1]BASE!HR106) ->  | Q105: =IF([1]BASE!HS106="","",[1]BASE!HS106) ->  | R105: =IF([1]BASE!HT106="","",[1]BASE!HT106) ->  | S105: =IF([1]BASE!HU106="","",[1]BASE!HU106) ->  | T105: =IF([1]BASE!HV106="","",[1]BASE!HV106) -> 
C106: =+[1]BASE!C107 -> 91 | D106: =+[1]BASE!D107 -> 2955 | E106: =+[1]BASE!E107 -> ZARATE - EASTMAN T | F106: =+[1]BASE!F107 -> 132 | G106: =+[1]BASE!G107 -> 11 | H106: =+[1]BASE!H107 -> C | I106: =IF([1]BASE!HK107="","",[1]BASE!HK107) -> XXXX | J106: =IF([1]BASE!HL107="","",[1]BASE!HL107) -> XXXX | K106: =IF([1]BASE!HM107="","",[1]BASE!HM107) -> XXXX | L106: =IF([1]BASE!HN107="","",[1]BASE!HN107) -> XXXX | M106: =IF([1]BASE!HO107="","",[1]BASE!HO107) -> XXXX | N106: =IF([1]BASE!HP107="","",[1]BASE!HP107) -> XXXX | O106: =IF([1]BASE!HQ107="","",[1]BASE!HQ107) -> XXXX | P106: =IF([1]BASE!HR107="","",[1]BASE!HR107) -> XXXX | Q106: =IF([1]BASE!HS107="","",[1]BASE!HS107) -> XXXX | R106: =IF([1]BASE!HT107="","",[1]BASE!HT107) -> XXXX | S106: =IF([1]BASE!HU107="","",[1]BASE!HU107) -> XXXX | T106: =IF([1]BASE!HV107="","",[1]BASE!HV107) -> XXXX
C107: =+[1]BASE!C108 -> 92 | D107: =+[1]BASE!D108 -> 1423 | E107: =+[1]BASE!E108 -> ZARATE - MATHEU | F107: =+[1]BASE!F108 -> 132 | G107: =+[1]BASE!G108 -> 37.7 | H107: =+[1]BASE!H108 -> C | I107: =IF([1]BASE!HK108="","",[1]BASE!HK108) -> XXXX | J107: =IF([1]BASE!HL108="","",[1]BASE!HL108) -> XXXX | K107: =IF([1]BASE!HM108="","",[1]BASE!HM108) -> XXXX | L107: =IF([1]BASE!HN108="","",[1]BASE!HN108) -> XXXX | M107: =IF([1]BASE!HO108="","",[1]BASE!HO108) -> XXXX | N107: =IF([1]BASE!HP108="","",[1]BASE!HP108) -> XXXX | O107: =IF([1]BASE!HQ108="","",[1]BASE!HQ108) -> XXXX | P107: =IF([1]BASE!HR108="","",[1]BASE!HR108) -> XXXX | Q107: =IF([1]BASE!HS108="","",[1]BASE!HS108) -> XXXX | R107: =IF([1]BASE!HT108="","",[1]BASE!HT108) -> XXXX | S107: =IF([1]BASE!HU108="","",[1]BASE!HU108) -> XXXX | T107: =IF([1]BASE!HV108="","",[1]BASE!HV108) -> XXXX
C108: =+[1]BASE!C109 -> 93 | D108: =+[1]BASE!D109 -> 1434 | E108: =+[1]BASE!E109 -> 9 DE JULIO 66 - BRAGADO | F108: =+[1]BASE!F109 -> 66 | G108: =+[1]BASE!G109 -> 60.94 | H108: =+[1]BASE!H109 -> C | I108: =IF([1]BASE!HK109="","",[1]BASE!HK109) -> XXXX | J108: =IF([1]BASE!HL109="","",[1]BASE!HL109) -> XXXX | K108: =IF([1]BASE!HM109="","",[1]BASE!HM109) -> XXXX | L108: =IF([1]BASE!HN109="","",[1]BASE!HN109) -> XXXX | M108: =IF([1]BASE!HO109="","",[1]BASE!HO109) -> XXXX | N108: =IF([1]BASE!HP109="","",[1]BASE!HP109) -> XXXX | O108: =IF([1]BASE!HQ109="","",[1]BASE!HQ109) -> XXXX | P108: =IF([1]BASE!HR109="","",[1]BASE!HR109) -> XXXX | Q108: =IF([1]BASE!HS109="","",[1]BASE!HS109) -> XXXX | R108: =IF([1]BASE!HT109="","",[1]BASE!HT109) -> XXXX | S108: =IF([1]BASE!HU109="","",[1]BASE!HU109) -> XXXX | T108: =IF([1]BASE!HV109="","",[1]BASE!HV109) -> XXXX
C109: =+[1]BASE!C110 -> 94 | D109: =+[1]BASE!D110 -> CE-000 | E109: =+[1]BASE!E110 -> CAP. SARMIENTO - ANTONIO DE ARECO - LUJAN | F109: =+[1]BASE!F110 -> 66 | G109: =+[1]BASE!G110 -> 81.3 | H109: =+[1]BASE!H110 -> C | I109: =IF([1]BASE!HK110="","",[1]BASE!HK110) -> XXXX | J109: =IF([1]BASE!HL110="","",[1]BASE!HL110) -> XXXX | K109: =IF([1]BASE!HM110="","",[1]BASE!HM110) -> XXXX | L109: =IF([1]BASE!HN110="","",[1]BASE!HN110) -> XXXX | M109: =IF([1]BASE!HO110="","",[1]BASE!HO110) -> XXXX | N109: =IF([1]BASE!HP110="","",[1]BASE!HP110) -> XXXX | O109: =IF([1]BASE!HQ110="","",[1]BASE!HQ110) -> XXXX | P109: =IF([1]BASE!HR110="","",[1]BASE!HR110) -> XXXX | Q109: =IF([1]BASE!HS110="","",[1]BASE!HS110) -> XXXX | R109: =IF([1]BASE!HT110="","",[1]BASE!HT110) -> XXXX | S109: =IF([1]BASE!HU110="","",[1]BASE!HU110) -> XXXX | T109: =IF([1]BASE!HV110="","",[1]BASE!HV110) -> XXXX
C110: =+[1]BASE!C111 -> 95 | D110: =+[1]BASE!D111 -> 1421 | E110: =+[1]BASE!E111 -> ARRECIFES - CAP. SARMIENTO | F110: =+[1]BASE!F111 -> 66 | G110: =+[1]BASE!G111 -> 31.9 | H110: =+[1]BASE!H111 -> C | I110: =IF([1]BASE!HK111="","",[1]BASE!HK111) ->  | J110: =IF([1]BASE!HL111="","",[1]BASE!HL111) ->  | K110: =IF([1]BASE!HM111="","",[1]BASE!HM111) ->  | L110: =IF([1]BASE!HN111="","",[1]BASE!HN111) ->  | M110: =IF([1]BASE!HO111="","",[1]BASE!HO111) ->  | N110: =IF([1]BASE!HP111="","",[1]BASE!HP111) ->  | O110: =IF([1]BASE!HQ111="","",[1]BASE!HQ111) ->  | P110: =IF([1]BASE!HR111="","",[1]BASE!HR111) ->  | Q110: =IF([1]BASE!HS111="","",[1]BASE!HS111) -> 1 | R110: =IF([1]BASE!HT111="","",[1]BASE!HT111) ->  | S110: =IF([1]BASE!HU111="","",[1]BASE!HU111) ->  | T110: =IF([1]BASE!HV111="","",[1]BASE!HV111) -> 
C111: =+[1]BASE!C112 -> 96 | D111: =+[1]BASE!D112 -> 1536 | E111: =+[1]BASE!E112 -> CARLOS CASARES - 9 DE JULIO 66 | F111: =+[1]BASE!F112 -> 66 | G111: =+[1]BASE!G112 -> 46.8 | H111: =+[1]BASE!H112 -> C | I111: =IF([1]BASE!HK112="","",[1]BASE!HK112) ->  | J111: =IF([1]BASE!HL112="","",[1]BASE!HL112) ->  | K111: =IF([1]BASE!HM112="","",[1]BASE!HM112) -> 1 | L111: =IF([1]BASE!HN112="","",[1]BASE!HN112) -> 2 | M111: =IF([1]BASE!HO112="","",[1]BASE!HO112) ->  | N111: =IF([1]BASE!HP112="","",[1]BASE!HP112) ->  | O111: =IF([1]BASE!HQ112="","",[1]BASE!HQ112) ->  | P111: =IF([1]BASE!HR112="","",[1]BASE!HR112) -> 1 | Q111: =IF([1]BASE!HS112="","",[1]BASE!HS112) ->  | R111: =IF([1]BASE!HT112="","",[1]BASE!HT112) ->  | S111: =IF([1]BASE!HU112="","",[1]BASE!HU112) ->  | T111: =IF([1]BASE!HV112="","",[1]BASE!HV112) -> 
C112: =+[1]BASE!C113 -> 97 | D112: =+[1]BASE!D113 -> 1530 | E112: =+[1]BASE!E113 -> PEHUAJO - CARLOS CASARES | F112: =+[1]BASE!F113 -> 66 | G112: =+[1]BASE!G113 -> 53.1 | H112: =+[1]BASE!H113 -> C | I112: =IF([1]BASE!HK113="","",[1]BASE!HK113) ->  | J112: =IF([1]BASE!HL113="","",[1]BASE!HL113) ->  | K112: =IF([1]BASE!HM113="","",[1]BASE!HM113) ->  | L112: =IF([1]BASE!HN113="","",[1]BASE!HN113) ->  | M112: =IF([1]BASE!HO113="","",[1]BASE!HO113) ->  | N112: =IF([1]BASE!HP113="","",[1]BASE!HP113) ->  | O112: =IF([1]BASE!HQ113="","",[1]BASE!HQ113) ->  | P112: =IF([1]BASE!HR113="","",[1]BASE!HR113) ->  | Q112: =IF([1]BASE!HS113="","",[1]BASE!HS113) ->  | R112: =IF([1]BASE!HT113="","",[1]BASE!HT113) ->  | S112: =IF([1]BASE!HU113="","",[1]BASE!HU113) ->  | T112: =IF([1]BASE!HV113="","",[1]BASE!HV113) -> 
C113: =+[1]BASE!C114 -> 98 | D113: =+[1]BASE!D114 -> 1441 | E113: =+[1]BASE!E114 -> PERGAMINO - ARRECIFES | F113: =+[1]BASE!F114 -> 66 | G113: =+[1]BASE!G114 -> 43.8 | H113: =+[1]BASE!H114 -> B | I113: =IF([1]BASE!HK114="","",[1]BASE!HK114) ->  | J113: =IF([1]BASE!HL114="","",[1]BASE!HL114) ->  | K113: =IF([1]BASE!HM114="","",[1]BASE!HM114) -> 1 | L113: =IF([1]BASE!HN114="","",[1]BASE!HN114) -> 1 | M113: =IF([1]BASE!HO114="","",[1]BASE!HO114) ->  | N113: =IF([1]BASE!HP114="","",[1]BASE!HP114) ->  | O113: =IF([1]BASE!HQ114="","",[1]BASE!HQ114) ->  | P113: =IF([1]BASE!HR114="","",[1]BASE!HR114) ->  | Q113: =IF([1]BASE!HS114="","",[1]BASE!HS114) ->  | R113: =IF([1]BASE!HT114="","",[1]BASE!HT114) ->  | S113: =IF([1]BASE!HU114="","",[1]BASE!HU114) ->  | T113: =IF([1]BASE!HV114="","",[1]BASE!HV114) -> 
C114: =+[1]BASE!C115 -> 99 | D114: =+[1]BASE!D115 -> 1436 | E114: =+[1]BASE!E115 -> TRENQUE LAUQUEN - PEHUAJO | F114: =+[1]BASE!F115 -> 66 | G114: =+[1]BASE!G115 -> 80.1 | H114: =+[1]BASE!H115 -> B | I114: =IF([1]BASE!HK115="","",[1]BASE!HK115) ->  | J114: =IF([1]BASE!HL115="","",[1]BASE!HL115) ->  | K114: =IF([1]BASE!HM115="","",[1]BASE!HM115) ->  | L114: =IF([1]BASE!HN115="","",[1]BASE!HN115) ->  | M114: =IF([1]BASE!HO115="","",[1]BASE!HO115) ->  | N114: =IF([1]BASE!HP115="","",[1]BASE!HP115) ->  | O114: =IF([1]BASE!HQ115="","",[1]BASE!HQ115) ->  | P114: =IF([1]BASE!HR115="","",[1]BASE!HR115) ->  | Q114: =IF([1]BASE!HS115="","",[1]BASE!HS115) ->  | R114: =IF([1]BASE!HT115="","",[1]BASE!HT115) ->  | S114: =IF([1]BASE!HU115="","",[1]BASE!HU115) ->  | T114: =IF([1]BASE!HV115="","",[1]BASE!HV115) -> 1
C115: =+[1]BASE!C116 -> 100 | D115: =+[1]BASE!D116 -> 3556 | E115: =+[1]BASE!E116 -> NUEVA CAMPANA - MINETTI (CORCEMAR) | F115: =+[1]BASE!F116 -> 132 | G115: =+[1]BASE!G116 -> 5 | H115: =+[1]BASE!H116 -> C | I115: =IF([1]BASE!HK116="","",[1]BASE!HK116) ->  | J115: =IF([1]BASE!HL116="","",[1]BASE!HL116) ->  | K115: =IF([1]BASE!HM116="","",[1]BASE!HM116) ->  | L115: =IF([1]BASE!HN116="","",[1]BASE!HN116) ->  | M115: =IF([1]BASE!HO116="","",[1]BASE!HO116) ->  | N115: =IF([1]BASE!HP116="","",[1]BASE!HP116) ->  | O115: =IF([1]BASE!HQ116="","",[1]BASE!HQ116) ->  | P115: =IF([1]BASE!HR116="","",[1]BASE!HR116) ->  | Q115: =IF([1]BASE!HS116="","",[1]BASE!HS116) ->  | R115: =IF([1]BASE!HT116="","",[1]BASE!HT116) ->  | S115: =IF([1]BASE!HU116="","",[1]BASE!HU116) ->  | T115: =IF([1]BASE!HV116="","",[1]BASE!HV116) -> 
C116: =+[1]BASE!C117 -> 101 | D116: =+[1]BASE!D117 -> 3557 | E116: =+[1]BASE!E117 -> (CORCEMAR) MINETTI - ZARATE | F116: =+[1]BASE!F117 -> 132 | G116: =+[1]BASE!G117 -> 7 | H116: =+[1]BASE!H117 -> C | I116: =IF([1]BASE!HK117="","",[1]BASE!HK117) ->  | J116: =IF([1]BASE!HL117="","",[1]BASE!HL117) ->  | K116: =IF([1]BASE!HM117="","",[1]BASE!HM117) ->  | L116: =IF([1]BASE!HN117="","",[1]BASE!HN117) ->  | M116: =IF([1]BASE!HO117="","",[1]BASE!HO117) ->  | N116: =IF([1]BASE!HP117="","",[1]BASE!HP117) ->  | O116: =IF([1]BASE!HQ117="","",[1]BASE!HQ117) ->  | P116: =IF([1]BASE!HR117="","",[1]BASE!HR117) ->  | Q116: =IF([1]BASE!HS117="","",[1]BASE!HS117) ->  | R116: =IF([1]BASE!HT117="","",[1]BASE!HT117) ->  | S116: =IF([1]BASE!HU117="","",[1]BASE!HU117) ->  | T116: =IF([1]BASE!HV117="","",[1]BASE!HV117) -> 
C117: =+[1]BASE!C118 -> 102 | D117: =+[1]BASE!D118 -> 3285 | E117: =+[1]BASE!E118 -> EASTMAN T - PROTISA | F117: =+[1]BASE!F118 -> 132 | G117: =+[1]BASE!G118 -> 5.5 | H117: =+[1]BASE!H118 -> C | I117: =IF([1]BASE!HK118="","",[1]BASE!HK118) -> XXXX | J117: =IF([1]BASE!HL118="","",[1]BASE!HL118) -> XXXX | K117: =IF([1]BASE!HM118="","",[1]BASE!HM118) -> XXXX | L117: =IF([1]BASE!HN118="","",[1]BASE!HN118) -> XXXX | M117: =IF([1]BASE!HO118="","",[1]BASE!HO118) -> XXXX | N117: =IF([1]BASE!HP118="","",[1]BASE!HP118) -> XXXX | O117: =IF([1]BASE!HQ118="","",[1]BASE!HQ118) -> XXXX | P117: =IF([1]BASE!HR118="","",[1]BASE!HR118) -> XXXX | Q117: =IF([1]BASE!HS118="","",[1]BASE!HS118) -> XXXX | R117: =IF([1]BASE!HT118="","",[1]BASE!HT118) -> XXXX | S117: =IF([1]BASE!HU118="","",[1]BASE!HU118) -> XXXX | T117: =IF([1]BASE!HV118="","",[1]BASE!HV118) -> XXXX
C118: =+[1]BASE!C119 -> 103 | D118: =+[1]BASE!D119 -> 3286 | E118: =+[1]BASE!E119 -> PROTISA - EASTMAN | F118: =+[1]BASE!F119 -> 132 | G118: =+[1]BASE!G119 -> 1 | H118: =+[1]BASE!H119 -> C | I118: =IF([1]BASE!HK119="","",[1]BASE!HK119) ->  | J118: =IF([1]BASE!HL119="","",[1]BASE!HL119) ->  | K118: =IF([1]BASE!HM119="","",[1]BASE!HM119) ->  | L118: =IF([1]BASE!HN119="","",[1]BASE!HN119) ->  | M118: =IF([1]BASE!HO119="","",[1]BASE!HO119) ->  | N118: =IF([1]BASE!HP119="","",[1]BASE!HP119) ->  | O118: =IF([1]BASE!HQ119="","",[1]BASE!HQ119) ->  | P118: =IF([1]BASE!HR119="","",[1]BASE!HR119) ->  | Q118: =IF([1]BASE!HS119="","",[1]BASE!HS119) ->  | R118: =IF([1]BASE!HT119="","",[1]BASE!HT119) ->  | S118: =IF([1]BASE!HU119="","",[1]BASE!HU119) ->  | T118: =IF([1]BASE!HV119="","",[1]BASE!HV119) -> 
C119: =+[1]BASE!C120 -> 104 | D119: =+[1]BASE!D120 -> 3482 | E119: =+[1]BASE!E120 -> BAHIA BLANCA - PETROQ. BAHIA BLANCA 2 | F119: =+[1]BASE!F120 -> 132 | G119: =+[1]BASE!G120 -> 29.8 | H119: =+[1]BASE!H120 -> C | I119: =IF([1]BASE!HK120="","",[1]BASE!HK120) ->  | J119: =IF([1]BASE!HL120="","",[1]BASE!HL120) ->  | K119: =IF([1]BASE!HM120="","",[1]BASE!HM120) ->  | L119: =IF([1]BASE!HN120="","",[1]BASE!HN120) ->  | M119: =IF([1]BASE!HO120="","",[1]BASE!HO120) ->  | N119: =IF([1]BASE!HP120="","",[1]BASE!HP120) ->  | O119: =IF([1]BASE!HQ120="","",[1]BASE!HQ120) ->  | P119: =IF([1]BASE!HR120="","",[1]BASE!HR120) ->  | Q119: =IF([1]BASE!HS120="","",[1]BASE!HS120) ->  | R119: =IF([1]BASE!HT120="","",[1]BASE!HT120) ->  | S119: =IF([1]BASE!HU120="","",[1]BASE!HU120) ->  | T119: =IF([1]BASE!HV120="","",[1]BASE!HV120) -> 
C120: =+[1]BASE!C121 -> 105 | D120: =+[1]BASE!D121 -> 3483 | E120: =+[1]BASE!E121 -> BAHIA BLANCA - PETROQ. BAHIA BLANCA 3 | F120: =+[1]BASE!F121 -> 132 | G120: =+[1]BASE!G121 -> 29.8 | H120: =+[1]BASE!H121 -> C | I120: =IF([1]BASE!HK121="","",[1]BASE!HK121) ->  | J120: =IF([1]BASE!HL121="","",[1]BASE!HL121) ->  | K120: =IF([1]BASE!HM121="","",[1]BASE!HM121) ->  | L120: =IF([1]BASE!HN121="","",[1]BASE!HN121) ->  | M120: =IF([1]BASE!HO121="","",[1]BASE!HO121) ->  | N120: =IF([1]BASE!HP121="","",[1]BASE!HP121) ->  | O120: =IF([1]BASE!HQ121="","",[1]BASE!HQ121) ->  | P120: =IF([1]BASE!HR121="","",[1]BASE!HR121) ->  | Q120: =IF([1]BASE!HS121="","",[1]BASE!HS121) ->  | R120: =IF([1]BASE!HT121="","",[1]BASE!HT121) ->  | S120: =IF([1]BASE!HU121="","",[1]BASE!HU121) ->  | T120: =IF([1]BASE!HV121="","",[1]BASE!HV121) -> 
C121: =+[1]BASE!C122 -> 106 | D121: =+[1]BASE!D122 -> 3541 | E121: =+[1]BASE!E122 -> PETROQ. BAHIA BLANCA - PROFERTIL | F121: =+[1]BASE!F122 -> 132 | G121: =+[1]BASE!G122 -> 1.8 | H121: =+[1]BASE!H122 -> C | I121: =IF([1]BASE!HK122="","",[1]BASE!HK122) ->  | J121: =IF([1]BASE!HL122="","",[1]BASE!HL122) ->  | K121: =IF([1]BASE!HM122="","",[1]BASE!HM122) ->  | L121: =IF([1]BASE!HN122="","",[1]BASE!HN122) ->  | M121: =IF([1]BASE!HO122="","",[1]BASE!HO122) ->  | N121: =IF([1]BASE!HP122="","",[1]BASE!HP122) ->  | O121: =IF([1]BASE!HQ122="","",[1]BASE!HQ122) ->  | P121: =IF([1]BASE!HR122="","",[1]BASE!HR122) ->  | Q121: =IF([1]BASE!HS122="","",[1]BASE!HS122) ->  | R121: =IF([1]BASE!HT122="","",[1]BASE!HT122) ->  | S121: =IF([1]BASE!HU122="","",[1]BASE!HU122) ->  | T121: =IF([1]BASE!HV122="","",[1]BASE!HV122) -> 
C122: =+[1]BASE!C123 -> 107 | D122: =+[1]BASE!D123 -> 3575 | E122: =+[1]BASE!E123 -> NUEVA CAMPANA - PRAXAIR | F122: =+[1]BASE!F123 -> 132 | G122: =+[1]BASE!G123 -> 6.1 | H122: =+[1]BASE!H123 -> C | I122: =IF([1]BASE!HK123="","",[1]BASE!HK123) ->  | J122: =IF([1]BASE!HL123="","",[1]BASE!HL123) ->  | K122: =IF([1]BASE!HM123="","",[1]BASE!HM123) ->  | L122: =IF([1]BASE!HN123="","",[1]BASE!HN123) ->  | M122: =IF([1]BASE!HO123="","",[1]BASE!HO123) ->  | N122: =IF([1]BASE!HP123="","",[1]BASE!HP123) ->  | O122: =IF([1]BASE!HQ123="","",[1]BASE!HQ123) ->  | P122: =IF([1]BASE!HR123="","",[1]BASE!HR123) ->  | Q122: =IF([1]BASE!HS123="","",[1]BASE!HS123) ->  | R122: =IF([1]BASE!HT123="","",[1]BASE!HT123) ->  | S122: =IF([1]BASE!HU123="","",[1]BASE!HU123) ->  | T122: =IF([1]BASE!HV123="","",[1]BASE!HV123) -> 
C123: =+[1]BASE!C124 -> 108 | D123: =+[1]BASE!D124 -> 3576 | E123: =+[1]BASE!E124 -> PRAXAIR - CAMPANA | F123: =+[1]BASE!F124 -> 132 | G123: =+[1]BASE!G124 -> 1.1 | H123: =+[1]BASE!H124 -> C | I123: =IF([1]BASE!HK124="","",[1]BASE!HK124) ->  | J123: =IF([1]BASE!HL124="","",[1]BASE!HL124) ->  | K123: =IF([1]BASE!HM124="","",[1]BASE!HM124) ->  | L123: =IF([1]BASE!HN124="","",[1]BASE!HN124) ->  | M123: =IF([1]BASE!HO124="","",[1]BASE!HO124) ->  | N123: =IF([1]BASE!HP124="","",[1]BASE!HP124) ->  | O123: =IF([1]BASE!HQ124="","",[1]BASE!HQ124) ->  | P123: =IF([1]BASE!HR124="","",[1]BASE!HR124) ->  | Q123: =IF([1]BASE!HS124="","",[1]BASE!HS124) ->  | R123: =IF([1]BASE!HT124="","",[1]BASE!HT124) ->  | S123: =IF([1]BASE!HU124="","",[1]BASE!HU124) ->  | T123: =IF([1]BASE!HV124="","",[1]BASE!HV124) -> 
C124: =+[1]BASE!C125 -> 109 | D124: =+[1]BASE!D125 -> 3596 | E124: =+[1]BASE!E125 -> PUNTA ALTA - CORONEL ROSALES | F124: =+[1]BASE!F125 -> 132 | G124: =+[1]BASE!G125 -> 4.1 | H124: =+[1]BASE!H125 -> C | I124: =IF([1]BASE!HK125="","",[1]BASE!HK125) ->  | J124: =IF([1]BASE!HL125="","",[1]BASE!HL125) ->  | K124: =IF([1]BASE!HM125="","",[1]BASE!HM125) ->  | L124: =IF([1]BASE!HN125="","",[1]BASE!HN125) ->  | M124: =IF([1]BASE!HO125="","",[1]BASE!HO125) ->  | N124: =IF([1]BASE!HP125="","",[1]BASE!HP125) ->  | O124: =IF([1]BASE!HQ125="","",[1]BASE!HQ125) ->  | P124: =IF([1]BASE!HR125="","",[1]BASE!HR125) ->  | Q124: =IF([1]BASE!HS125="","",[1]BASE!HS125) ->  | R124: =IF([1]BASE!HT125="","",[1]BASE!HT125) ->  | S124: =IF([1]BASE!HU125="","",[1]BASE!HU125) ->  | T124: =IF([1]BASE!HV125="","",[1]BASE!HV125) -> 
C125: =+[1]BASE!C126 -> 110 | D125: =+[1]BASE!D126 -> 3535 | E125: =+[1]BASE!E126 -> PAPEL PRENSA - BARADERO | F125: =+[1]BASE!F126 -> 132 | G125: =+[1]BASE!G126 -> 24 | H125: =+[1]BASE!H126 -> C | I125: =IF([1]BASE!HK126="","",[1]BASE!HK126) ->  | J125: =IF([1]BASE!HL126="","",[1]BASE!HL126) ->  | K125: =IF([1]BASE!HM126="","",[1]BASE!HM126) ->  | L125: =IF([1]BASE!HN126="","",[1]BASE!HN126) ->  | M125: =IF([1]BASE!HO126="","",[1]BASE!HO126) ->  | N125: =IF([1]BASE!HP126="","",[1]BASE!HP126) ->  | O125: =IF([1]BASE!HQ126="","",[1]BASE!HQ126) ->  | P125: =IF([1]BASE!HR126="","",[1]BASE!HR126) ->  | Q125: =IF([1]BASE!HS126="","",[1]BASE!HS126) -> 1 | R125: =IF([1]BASE!HT126="","",[1]BASE!HT126) ->  | S125: =IF([1]BASE!HU126="","",[1]BASE!HU126) ->  | T125: =IF([1]BASE!HV126="","",[1]BASE!HV126) -> 
C126: =+[1]BASE!C127 -> 111 | D126: =+[1]BASE!D127 -> 3715 | E126: =+[1]BASE!E127 -> SALTO BA - CHACABUCO | F126: =+[1]BASE!F127 -> 132 | G126: =+[1]BASE!G127 -> 60.1 | H126: =+[1]BASE!H127 -> C | I126: =IF([1]BASE!HK127="","",[1]BASE!HK127) -> XXXX | J126: =IF([1]BASE!HL127="","",[1]BASE!HL127) -> XXXX | K126: =IF([1]BASE!HM127="","",[1]BASE!HM127) -> XXXX | L126: =IF([1]BASE!HN127="","",[1]BASE!HN127) -> XXXX | M126: =IF([1]BASE!HO127="","",[1]BASE!HO127) -> XXXX | N126: =IF([1]BASE!HP127="","",[1]BASE!HP127) -> XXXX | O126: =IF([1]BASE!HQ127="","",[1]BASE!HQ127) -> XXXX | P126: =IF([1]BASE!HR127="","",[1]BASE!HR127) -> XXXX | Q126: =IF([1]BASE!HS127="","",[1]BASE!HS127) -> XXXX | R126: =IF([1]BASE!HT127="","",[1]BASE!HT127) -> XXXX | S126: =IF([1]BASE!HU127="","",[1]BASE!HU127) -> XXXX | T126: =IF([1]BASE!HV127="","",[1]BASE!HV127) -> XXXX
C127: =+[1]BASE!C128 -> 112 | D127: =+[1]BASE!D128 -> 3689 | E127: =+[1]BASE!E128 -> LA PAMPITA - LAPRIDA | F127: =+[1]BASE!F128 -> 132 | G127: =+[1]BASE!G128 -> 72.2 | H127: =+[1]BASE!H128 -> C | I127: =IF([1]BASE!HK128="","",[1]BASE!HK128) ->  | J127: =IF([1]BASE!HL128="","",[1]BASE!HL128) ->  | K127: =IF([1]BASE!HM128="","",[1]BASE!HM128) ->  | L127: =IF([1]BASE!HN128="","",[1]BASE!HN128) ->  | M127: =IF([1]BASE!HO128="","",[1]BASE!HO128) ->  | N127: =IF([1]BASE!HP128="","",[1]BASE!HP128) ->  | O127: =IF([1]BASE!HQ128="","",[1]BASE!HQ128) ->  | P127: =IF([1]BASE!HR128="","",[1]BASE!HR128) ->  | Q127: =IF([1]BASE!HS128="","",[1]BASE!HS128) -> 1 | R127: =IF([1]BASE!HT128="","",[1]BASE!HT128) ->  | S127: =IF([1]BASE!HU128="","",[1]BASE!HU128) ->  | T127: =IF([1]BASE!HV128="","",[1]BASE!HV128) -> 
C128: =+[1]BASE!C129 -> 113 | D128: =+[1]BASE!D129 -> 3690 | E128: =+[1]BASE!E129 -> OLAVARRIA - LA PAMPITA | F128: =+[1]BASE!F129 -> 132 | G128: =+[1]BASE!G129 -> 27.5 | H128: =+[1]BASE!H129 -> C | I128: =IF([1]BASE!HK129="","",[1]BASE!HK129) ->  | J128: =IF([1]BASE!HL129="","",[1]BASE!HL129) ->  | K128: =IF([1]BASE!HM129="","",[1]BASE!HM129) ->  | L128: =IF([1]BASE!HN129="","",[1]BASE!HN129) ->  | M128: =IF([1]BASE!HO129="","",[1]BASE!HO129) ->  | N128: =IF([1]BASE!HP129="","",[1]BASE!HP129) ->  | O128: =IF([1]BASE!HQ129="","",[1]BASE!HQ129) ->  | P128: =IF([1]BASE!HR129="","",[1]BASE!HR129) ->  | Q128: =IF([1]BASE!HS129="","",[1]BASE!HS129) ->  | R128: =IF([1]BASE!HT129="","",[1]BASE!HT129) ->  | S128: =IF([1]BASE!HU129="","",[1]BASE!HU129) ->  | T128: =IF([1]BASE!HV129="","",[1]BASE!HV129) -> 
C129: =+[1]BASE!C130 -> 114 | D129: =+[1]BASE!D130 -> 3796 | E129: =+[1]BASE!E130 -> C. SARMIENTO - S.A. DE ARECO | F129: =+[1]BASE!F130 -> 66 | G129: =+[1]BASE!G130 -> 31.5 | H129: =+[1]BASE!H130 -> C | I129: =IF([1]BASE!HK130="","",[1]BASE!HK130) ->  | J129: =IF([1]BASE!HL130="","",[1]BASE!HL130) -> 1 | K129: =IF([1]BASE!HM130="","",[1]BASE!HM130) ->  | L129: =IF([1]BASE!HN130="","",[1]BASE!HN130) ->  | M129: =IF([1]BASE!HO130="","",[1]BASE!HO130) ->  | N129: =IF([1]BASE!HP130="","",[1]BASE!HP130) ->  | O129: =IF([1]BASE!HQ130="","",[1]BASE!HQ130) ->  | P129: =IF([1]BASE!HR130="","",[1]BASE!HR130) ->  | Q129: =IF([1]BASE!HS130="","",[1]BASE!HS130) ->  | R129: =IF([1]BASE!HT130="","",[1]BASE!HT130) ->  | S129: =IF([1]BASE!HU130="","",[1]BASE!HU130) ->  | T129: =IF([1]BASE!HV130="","",[1]BASE!HV130) -> 
C130: =+[1]BASE!C131 -> 115 | D130: =+[1]BASE!D131 -> 3797 | E130: =+[1]BASE!E131 -> S.A. DE ARECO - LUJAN BAS | F130: =+[1]BASE!F131 -> 66 | G130: =+[1]BASE!G131 -> 49.8 | H130: =+[1]BASE!H131 -> C | I130: =IF([1]BASE!HK131="","",[1]BASE!HK131) ->  | J130: =IF([1]BASE!HL131="","",[1]BASE!HL131) ->  | K130: =IF([1]BASE!HM131="","",[1]BASE!HM131) -> 1 | L130: =IF([1]BASE!HN131="","",[1]BASE!HN131) ->  | M130: =IF([1]BASE!HO131="","",[1]BASE!HO131) ->  | N130: =IF([1]BASE!HP131="","",[1]BASE!HP131) ->  | O130: =IF([1]BASE!HQ131="","",[1]BASE!HQ131) ->  | P130: =IF([1]BASE!HR131="","",[1]BASE!HR131) ->  | Q130: =IF([1]BASE!HS131="","",[1]BASE!HS131) ->  | R130: =IF([1]BASE!HT131="","",[1]BASE!HT131) -> 1 | S130: =IF([1]BASE!HU131="","",[1]BASE!HU131) ->  | T130: =IF([1]BASE!HV131="","",[1]BASE!HV131) -> 
C131: =+[1]BASE!C132 -> 116 | D131: =+[1]BASE!D132 -> 3829 | E131: =+[1]BASE!E132 -> OLAVARRIA - BARKER | F131: =+[1]BASE!F132 -> 132 | G131: =+[1]BASE!G132 -> 139.4 | H131: =+[1]BASE!H132 -> C | I131: =IF([1]BASE!HK132="","",[1]BASE!HK132) ->  | J131: =IF([1]BASE!HL132="","",[1]BASE!HL132) -> 1 | K131: =IF([1]BASE!HM132="","",[1]BASE!HM132) ->  | L131: =IF([1]BASE!HN132="","",[1]BASE!HN132) ->  | M131: =IF([1]BASE!HO132="","",[1]BASE!HO132) ->  | N131: =IF([1]BASE!HP132="","",[1]BASE!HP132) ->  | O131: =IF([1]BASE!HQ132="","",[1]BASE!HQ132) ->  | P131: =IF([1]BASE!HR132="","",[1]BASE!HR132) -> 1 | Q131: =IF([1]BASE!HS132="","",[1]BASE!HS132) ->  | R131: =IF([1]BASE!HT132="","",[1]BASE!HT132) ->  | S131: =IF([1]BASE!HU132="","",[1]BASE!HU132) ->  | T131: =IF([1]BASE!HV132="","",[1]BASE!HV132) -> 
C132: =+[1]BASE!C133 -> 117 | D132: =+[1]BASE!D133 -> 4067 | E132: =+[1]BASE!E133 -> CHILLAR - OLAVARRIA | F132: =+[1]BASE!F133 -> 132 | G132: =+[1]BASE!G133 -> 73.43 | H132: =+[1]BASE!H133 -> C | I132: =IF([1]BASE!HK133="","",[1]BASE!HK133) ->  | J132: =IF([1]BASE!HL133="","",[1]BASE!HL133) ->  | K132: =IF([1]BASE!HM133="","",[1]BASE!HM133) ->  | L132: =IF([1]BASE!HN133="","",[1]BASE!HN133) ->  | M132: =IF([1]BASE!HO133="","",[1]BASE!HO133) ->  | N132: =IF([1]BASE!HP133="","",[1]BASE!HP133) ->  | O132: =IF([1]BASE!HQ133="","",[1]BASE!HQ133) ->  | P132: =IF([1]BASE!HR133="","",[1]BASE!HR133) ->  | Q132: =IF([1]BASE!HS133="","",[1]BASE!HS133) ->  | R132: =IF([1]BASE!HT133="","",[1]BASE!HT133) ->  | S132: =IF([1]BASE!HU133="","",[1]BASE!HU133) ->  | T132: =IF([1]BASE!HV133="","",[1]BASE!HV133) -> 
C133: =+[1]BASE!C134 -> 118 | D133: =+[1]BASE!D134 -> 4070 | E133: =+[1]BASE!E134 -> CHILLAR - GONZALEZ CHAVES | F133: =+[1]BASE!F134 -> 132 | G133: =+[1]BASE!G134 -> 89.14 | H133: =+[1]BASE!H134 -> C | I133: =IF([1]BASE!HK134="","",[1]BASE!HK134) ->  | J133: =IF([1]BASE!HL134="","",[1]BASE!HL134) ->  | K133: =IF([1]BASE!HM134="","",[1]BASE!HM134) ->  | L133: =IF([1]BASE!HN134="","",[1]BASE!HN134) ->  | M133: =IF([1]BASE!HO134="","",[1]BASE!HO134) ->  | N133: =IF([1]BASE!HP134="","",[1]BASE!HP134) ->  | O133: =IF([1]BASE!HQ134="","",[1]BASE!HQ134) ->  | P133: =IF([1]BASE!HR134="","",[1]BASE!HR134) ->  | Q133: =IF([1]BASE!HS134="","",[1]BASE!HS134) ->  | R133: =IF([1]BASE!HT134="","",[1]BASE!HT134) ->  | S133: =IF([1]BASE!HU134="","",[1]BASE!HU134) ->  | T133: =IF([1]BASE!HV134="","",[1]BASE!HV134) -> 
C134: =+[1]BASE!C135 -> 119 | D134: =+[1]BASE!D135 -> 4077 | E134: =+[1]BASE!E135 -> CACHARI - RAUCH | F134: =+[1]BASE!F135 -> 132 | G134: =+[1]BASE!G135 -> 19.6 | H134: =+[1]BASE!H135 -> C | I134: =IF([1]BASE!HK135="","",[1]BASE!HK135) ->  | J134: =IF([1]BASE!HL135="","",[1]BASE!HL135) ->  | K134: =IF([1]BASE!HM135="","",[1]BASE!HM135) ->  | L134: =IF([1]BASE!HN135="","",[1]BASE!HN135) -> 1 | M134: =IF([1]BASE!HO135="","",[1]BASE!HO135) ->  | N134: =IF([1]BASE!HP135="","",[1]BASE!HP135) ->  | O134: =IF([1]BASE!HQ135="","",[1]BASE!HQ135) ->  | P134: =IF([1]BASE!HR135="","",[1]BASE!HR135) ->  | Q134: =IF([1]BASE!HS135="","",[1]BASE!HS135) ->  | R134: =IF([1]BASE!HT135="","",[1]BASE!HT135) ->  | S134: =IF([1]BASE!HU135="","",[1]BASE!HU135) ->  | T134: =IF([1]BASE!HV135="","",[1]BASE!HV135) -> 
C135: =+[1]BASE!C136 -> 120 | D135: =+[1]BASE!D136 -> 4075 | E135: =+[1]BASE!E136 -> AZUL - CACHARI | F135: =+[1]BASE!F136 -> 132 | G135: =+[1]BASE!G136 -> 55.7 | H135: =+[1]BASE!H136 -> C | I135: =IF([1]BASE!HK136="","",[1]BASE!HK136) ->  | J135: =IF([1]BASE!HL136="","",[1]BASE!HL136) -> 1 | K135: =IF([1]BASE!HM136="","",[1]BASE!HM136) ->  | L135: =IF([1]BASE!HN136="","",[1]BASE!HN136) ->  | M135: =IF([1]BASE!HO136="","",[1]BASE!HO136) ->  | N135: =IF([1]BASE!HP136="","",[1]BASE!HP136) ->  | O135: =IF([1]BASE!HQ136="","",[1]BASE!HQ136) ->  | P135: =IF([1]BASE!HR136="","",[1]BASE!HR136) ->  | Q135: =IF([1]BASE!HS136="","",[1]BASE!HS136) ->  | R135: =IF([1]BASE!HT136="","",[1]BASE!HT136) ->  | S135: =IF([1]BASE!HU136="","",[1]BASE!HU136) -> 1 | T135: =IF([1]BASE!HV136="","",[1]BASE!HV136) -> 
C136: =+[1]BASE!C137 -> 121 | D136: =+[1]BASE!D137 -> 4076 | E136: =+[1]BASE!E137 -> CACHARI - LAS FLORES | F136: =+[1]BASE!F137 -> 132 | G136: =+[1]BASE!G137 -> 51.3 | H136: =+[1]BASE!H137 -> C | I136: =IF([1]BASE!HK137="","",[1]BASE!HK137) ->  | J136: =IF([1]BASE!HL137="","",[1]BASE!HL137) ->  | K136: =IF([1]BASE!HM137="","",[1]BASE!HM137) ->  | L136: =IF([1]BASE!HN137="","",[1]BASE!HN137) ->  | M136: =IF([1]BASE!HO137="","",[1]BASE!HO137) ->  | N136: =IF([1]BASE!HP137="","",[1]BASE!HP137) ->  | O136: =IF([1]BASE!HQ137="","",[1]BASE!HQ137) ->  | P136: =IF([1]BASE!HR137="","",[1]BASE!HR137) ->  | Q136: =IF([1]BASE!HS137="","",[1]BASE!HS137) ->  | R136: =IF([1]BASE!HT137="","",[1]BASE!HT137) ->  | S136: =IF([1]BASE!HU137="","",[1]BASE!HU137) ->  | T136: =IF([1]BASE!HV137="","",[1]BASE!HV137) -> 
C137: =+[1]BASE!C138 -> 122 | D137: =+[1]BASE!D138 -> 4074 | E137: =+[1]BASE!E138 -> INDIO RICO - PRINGLES | F137: =+[1]BASE!F138 -> 132 | G137: =+[1]BASE!G138 -> 44.4 | H137: =+[1]BASE!H138 -> C | I137: =IF([1]BASE!HK138="","",[1]BASE!HK138) ->  | J137: =IF([1]BASE!HL138="","",[1]BASE!HL138) ->  | K137: =IF([1]BASE!HM138="","",[1]BASE!HM138) ->  | L137: =IF([1]BASE!HN138="","",[1]BASE!HN138) ->  | M137: =IF([1]BASE!HO138="","",[1]BASE!HO138) ->  | N137: =IF([1]BASE!HP138="","",[1]BASE!HP138) ->  | O137: =IF([1]BASE!HQ138="","",[1]BASE!HQ138) ->  | P137: =IF([1]BASE!HR138="","",[1]BASE!HR138) ->  | Q137: =IF([1]BASE!HS138="","",[1]BASE!HS138) ->  | R137: =IF([1]BASE!HT138="","",[1]BASE!HT138) ->  | S137: =IF([1]BASE!HU138="","",[1]BASE!HU138) ->  | T137: =IF([1]BASE!HV138="","",[1]BASE!HV138) -> 
C138: =+[1]BASE!C139 -> 123 | D138: =+[1]BASE!D139 -> 4096 | E138: =+[1]BASE!E139 -> MONTE - ROSAS | F138: =+[1]BASE!F139 -> 132 | G138: =+[1]BASE!G139 -> 58.4 | H138: =+[1]BASE!H139 -> C | I138: =IF([1]BASE!HK139="","",[1]BASE!HK139) ->  | J138: =IF([1]BASE!HL139="","",[1]BASE!HL139) ->  | K138: =IF([1]BASE!HM139="","",[1]BASE!HM139) -> 1 | L138: =IF([1]BASE!HN139="","",[1]BASE!HN139) -> 1 | M138: =IF([1]BASE!HO139="","",[1]BASE!HO139) ->  | N138: =IF([1]BASE!HP139="","",[1]BASE!HP139) ->  | O138: =IF([1]BASE!HQ139="","",[1]BASE!HQ139) ->  | P138: =IF([1]BASE!HR139="","",[1]BASE!HR139) ->  | Q138: =IF([1]BASE!HS139="","",[1]BASE!HS139) ->  | R138: =IF([1]BASE!HT139="","",[1]BASE!HT139) ->  | S138: =IF([1]BASE!HU139="","",[1]BASE!HU139) ->  | T138: =IF([1]BASE!HV139="","",[1]BASE!HV139) -> 
C139: =+[1]BASE!C140 -> 124 | D139: =+[1]BASE!D140 -> 4097 | E139: =+[1]BASE!E140 -> ROSAS - NEWTON | F139: =+[1]BASE!F140 -> 132 | G139: =+[1]BASE!G140 -> 11 | H139: =+[1]BASE!H140 -> C | I139: =IF([1]BASE!HK140="","",[1]BASE!HK140) ->  | J139: =IF([1]BASE!HL140="","",[1]BASE!HL140) ->  | K139: =IF([1]BASE!HM140="","",[1]BASE!HM140) ->  | L139: =IF([1]BASE!HN140="","",[1]BASE!HN140) ->  | M139: =IF([1]BASE!HO140="","",[1]BASE!HO140) ->  | N139: =IF([1]BASE!HP140="","",[1]BASE!HP140) ->  | O139: =IF([1]BASE!HQ140="","",[1]BASE!HQ140) ->  | P139: =IF([1]BASE!HR140="","",[1]BASE!HR140) ->  | Q139: =IF([1]BASE!HS140="","",[1]BASE!HS140) ->  | R139: =IF([1]BASE!HT140="","",[1]BASE!HT140) ->  | S139: =IF([1]BASE!HU140="","",[1]BASE!HU140) ->  | T139: =IF([1]BASE!HV140="","",[1]BASE!HV140) -> 
C140: =+[1]BASE!C141 -> 125 | D140: =+[1]BASE!D141 -> 4095 | E140: =+[1]BASE!E141 -> LAS FLORES - ROSAS | F140: =+[1]BASE!F141 -> 132 | G140: =+[1]BASE!G141 -> 28.4 | H140: =+[1]BASE!H141 -> C | I140: =IF([1]BASE!HK141="","",[1]BASE!HK141) ->  | J140: =IF([1]BASE!HL141="","",[1]BASE!HL141) ->  | K140: =IF([1]BASE!HM141="","",[1]BASE!HM141) ->  | L140: =IF([1]BASE!HN141="","",[1]BASE!HN141) ->  | M140: =IF([1]BASE!HO141="","",[1]BASE!HO141) ->  | N140: =IF([1]BASE!HP141="","",[1]BASE!HP141) ->  | O140: =IF([1]BASE!HQ141="","",[1]BASE!HQ141) ->  | P140: =IF([1]BASE!HR141="","",[1]BASE!HR141) ->  | Q140: =IF([1]BASE!HS141="","",[1]BASE!HS141) ->  | R140: =IF([1]BASE!HT141="","",[1]BASE!HT141) ->  | S140: =IF([1]BASE!HU141="","",[1]BASE!HU141) ->  | T140: =IF([1]BASE!HV141="","",[1]BASE!HV141) -> 
C141: =+[1]BASE!C142 -> 126 | D141: =+[1]BASE!D142 -> 4830 | E141: =+[1]BASE!E142 -> LOS CHAÑARES - PTQ. BAHIA BLANCA | F141: =+[1]BASE!F142 -> 132 | G141: =+[1]BASE!G142 -> 15.701 | H141: =+[1]BASE!H142 -> C | I141: =IF([1]BASE!HK142="","",[1]BASE!HK142) ->  | J141: =IF([1]BASE!HL142="","",[1]BASE!HL142) ->  | K141: =IF([1]BASE!HM142="","",[1]BASE!HM142) -> 1 | L141: =IF([1]BASE!HN142="","",[1]BASE!HN142) ->  | M141: =IF([1]BASE!HO142="","",[1]BASE!HO142) ->  | N141: =IF([1]BASE!HP142="","",[1]BASE!HP142) ->  | O141: =IF([1]BASE!HQ142="","",[1]BASE!HQ142) ->  | P141: =IF([1]BASE!HR142="","",[1]BASE!HR142) ->  | Q141: =IF([1]BASE!HS142="","",[1]BASE!HS142) ->  | R141: =IF([1]BASE!HT142="","",[1]BASE!HT142) ->  | S141: =IF([1]BASE!HU142="","",[1]BASE!HU142) ->  | T141: =IF([1]BASE!HV142="","",[1]BASE!HV142) -> 
C142: =+[1]BASE!C143 -> 127 | D142: =+[1]BASE!D143 -> 4831 | E142: =+[1]BASE!E143 -> NORTE II - LOS CHAÑARES | F142: =+[1]BASE!F143 -> 132 | G142: =+[1]BASE!G143 -> 15.725 | H142: =+[1]BASE!H143 -> C | I142: =IF([1]BASE!HK143="","",[1]BASE!HK143) ->  | J142: =IF([1]BASE!HL143="","",[1]BASE!HL143) ->  | K142: =IF([1]BASE!HM143="","",[1]BASE!HM143) ->  | L142: =IF([1]BASE!HN143="","",[1]BASE!HN143) ->  | M142: =IF([1]BASE!HO143="","",[1]BASE!HO143) ->  | N142: =IF([1]BASE!HP143="","",[1]BASE!HP143) -> 1 | O142: =IF([1]BASE!HQ143="","",[1]BASE!HQ143) ->  | P142: =IF([1]BASE!HR143="","",[1]BASE!HR143) ->  | Q142: =IF([1]BASE!HS143="","",[1]BASE!HS143) ->  | R142: =IF([1]BASE!HT143="","",[1]BASE!HT143) ->  | S142: =IF([1]BASE!HU143="","",[1]BASE!HU143) ->  | T142: =IF([1]BASE!HV143="","",[1]BASE!HV143) -> 
C143: =+[1]BASE!C144 -> 128 | D143: =+[1]BASE!D144 -> 4701 | E143: =+[1]BASE!E144 -> CHACABUCO - CHACABUCO IND. | F143: =+[1]BASE!F144 -> 132 | G143: =+[1]BASE!G144 -> 15.9 | H143: =+[1]BASE!H144 -> C | I143: =IF([1]BASE!HK144="","",[1]BASE!HK144) ->  | J143: =IF([1]BASE!HL144="","",[1]BASE!HL144) ->  | K143: =IF([1]BASE!HM144="","",[1]BASE!HM144) ->  | L143: =IF([1]BASE!HN144="","",[1]BASE!HN144) ->  | M143: =IF([1]BASE!HO144="","",[1]BASE!HO144) ->  | N143: =IF([1]BASE!HP144="","",[1]BASE!HP144) ->  | O143: =IF([1]BASE!HQ144="","",[1]BASE!HQ144) ->  | P143: =IF([1]BASE!HR144="","",[1]BASE!HR144) ->  | Q143: =IF([1]BASE!HS144="","",[1]BASE!HS144) ->  | R143: =IF([1]BASE!HT144="","",[1]BASE!HT144) ->  | S143: =IF([1]BASE!HU144="","",[1]BASE!HU144) ->  | T143: =IF([1]BASE!HV144="","",[1]BASE!HV144) -> 
C144: =+[1]BASE!C145 -> 129 | D144: =+[1]BASE!D145 -> 4702 | E144: =+[1]BASE!E145 -> CHACABUCO IND. - SALTO BA | F144: =+[1]BASE!F145 -> 132 | G144: =+[1]BASE!G145 -> 48.6 | H144: =+[1]BASE!H145 -> C | I144: =IF([1]BASE!HK145="","",[1]BASE!HK145) ->  | J144: =IF([1]BASE!HL145="","",[1]BASE!HL145) ->  | K144: =IF([1]BASE!HM145="","",[1]BASE!HM145) ->  | L144: =IF([1]BASE!HN145="","",[1]BASE!HN145) ->  | M144: =IF([1]BASE!HO145="","",[1]BASE!HO145) ->  | N144: =IF([1]BASE!HP145="","",[1]BASE!HP145) ->  | O144: =IF([1]BASE!HQ145="","",[1]BASE!HQ145) ->  | P144: =IF([1]BASE!HR145="","",[1]BASE!HR145) ->  | Q144: =IF([1]BASE!HS145="","",[1]BASE!HS145) ->  | R144: =IF([1]BASE!HT145="","",[1]BASE!HT145) ->  | S144: =IF([1]BASE!HU145="","",[1]BASE!HU145) ->  | T144: =IF([1]BASE!HV145="","",[1]BASE!HV145) -> 1
C145: =+[1]BASE!C146 -> 130 | D145: =+[1]BASE!D146 -> 4935 | E145: =+[1]BASE!E146 -> LAS PALMAS - SAN PEDRO | F145: =+[1]BASE!F146 -> 132 | G145: =+[1]BASE!G146 -> 67.3 | H145: =+[1]BASE!H146 -> C | I145: =IF([1]BASE!HK146="","",[1]BASE!HK146) ->  | J145: =IF([1]BASE!HL146="","",[1]BASE!HL146) ->  | K145: =IF([1]BASE!HM146="","",[1]BASE!HM146) ->  | L145: =IF([1]BASE!HN146="","",[1]BASE!HN146) ->  | M145: =IF([1]BASE!HO146="","",[1]BASE!HO146) ->  | N145: =IF([1]BASE!HP146="","",[1]BASE!HP146) ->  | O145: =IF([1]BASE!HQ146="","",[1]BASE!HQ146) ->  | P145: =IF([1]BASE!HR146="","",[1]BASE!HR146) ->  | Q145: =IF([1]BASE!HS146="","",[1]BASE!HS146) ->  | R145: =IF([1]BASE!HT146="","",[1]BASE!HT146) ->  | S145: =IF([1]BASE!HU146="","",[1]BASE!HU146) ->  | T145: =IF([1]BASE!HV146="","",[1]BASE!HV146) -> 1
C146: =+[1]BASE!C147 -> 131 | D146: =+[1]BASE!D147 -> 4933 | E146: =+[1]BASE!E147 -> ZARATE - LAS PALMAS | F146: =+[1]BASE!F147 -> 132 | G146: =+[1]BASE!G147 -> 8.7 | H146: =+[1]BASE!H147 -> C | I146: =IF([1]BASE!HK147="","",[1]BASE!HK147) ->  | J146: =IF([1]BASE!HL147="","",[1]BASE!HL147) ->  | K146: =IF([1]BASE!HM147="","",[1]BASE!HM147) ->  | L146: =IF([1]BASE!HN147="","",[1]BASE!HN147) ->  | M146: =IF([1]BASE!HO147="","",[1]BASE!HO147) ->  | N146: =IF([1]BASE!HP147="","",[1]BASE!HP147) ->  | O146: =IF([1]BASE!HQ147="","",[1]BASE!HQ147) ->  | P146: =IF([1]BASE!HR147="","",[1]BASE!HR147) ->  | Q146: =IF([1]BASE!HS147="","",[1]BASE!HS147) ->  | R146: =IF([1]BASE!HT147="","",[1]BASE!HT147) ->  | S146: =IF([1]BASE!HU147="","",[1]BASE!HU147) ->  | T146: =IF([1]BASE!HV147="","",[1]BASE!HV147) -> 
C147: =+[1]BASE!C148 -> 132 | E147: =+[1]BASE!E148 -> LAS PALMAS - PROTISA | F147: =+[1]BASE!F148 -> 132 | G147: =+[1]BASE!G148 -> 4.4 | H147: =+[1]BASE!H148 -> C | I147: =IF([1]BASE!HK148="","",[1]BASE!HK148) ->  | J147: =IF([1]BASE!HL148="","",[1]BASE!HL148) ->  | K147: =IF([1]BASE!HM148="","",[1]BASE!HM148) ->  | L147: =IF([1]BASE!HN148="","",[1]BASE!HN148) ->  | M147: =IF([1]BASE!HO148="","",[1]BASE!HO148) ->  | N147: =IF([1]BASE!HP148="","",[1]BASE!HP148) ->  | O147: =IF([1]BASE!HQ148="","",[1]BASE!HQ148) ->  | P147: =IF([1]BASE!HR148="","",[1]BASE!HR148) ->  | Q147: =IF([1]BASE!HS148="","",[1]BASE!HS148) ->  | R147: =IF([1]BASE!HT148="","",[1]BASE!HT148) ->  | S147: =IF([1]BASE!HU148="","",[1]BASE!HU148) ->  | T147: =IF([1]BASE!HV148="","",[1]BASE!HV148) -> 
C148: =+[1]BASE!C149 -> 133 | D148: =+[1]BASE!D149 -> 4671 | E148: =+[1]BASE!E149 -> PERGAMINO - COLON | F148: =+[1]BASE!F149 -> 132 | G148: =+[1]BASE!G149 -> 52.7 | H148: =+[1]BASE!H149 -> C | I148: =IF([1]BASE!HK149="","",[1]BASE!HK149) ->  | J148: =IF([1]BASE!HL149="","",[1]BASE!HL149) ->  | K148: =IF([1]BASE!HM149="","",[1]BASE!HM149) ->  | L148: =IF([1]BASE!HN149="","",[1]BASE!HN149) ->  | M148: =IF([1]BASE!HO149="","",[1]BASE!HO149) ->  | N148: =IF([1]BASE!HP149="","",[1]BASE!HP149) ->  | O148: =IF([1]BASE!HQ149="","",[1]BASE!HQ149) ->  | P148: =IF([1]BASE!HR149="","",[1]BASE!HR149) ->  | Q148: =IF([1]BASE!HS149="","",[1]BASE!HS149) ->  | R148: =IF([1]BASE!HT149="","",[1]BASE!HT149) ->  | S148: =IF([1]BASE!HU149="","",[1]BASE!HU149) ->  | T148: =IF([1]BASE!HV149="","",[1]BASE!HV149) -> 
C149: =+[1]BASE!C150 -> 134 | D149: =+[1]BASE!D150 -> 1434 | E149: =+[1]BASE!E150 -> 9 DE JULIO 66 - BRAGADO | F149: =+[1]BASE!F150 -> 66 | G149: =+[1]BASE!G150 -> 60.94 | H149: =+[1]BASE!H150 -> C | I149: =IF([1]BASE!HK150="","",[1]BASE!HK150) ->  | J149: =IF([1]BASE!HL150="","",[1]BASE!HL150) ->  | K149: =IF([1]BASE!HM150="","",[1]BASE!HM150) ->  | L149: =IF([1]BASE!HN150="","",[1]BASE!HN150) ->  | M149: =IF([1]BASE!HO150="","",[1]BASE!HO150) ->  | N149: =IF([1]BASE!HP150="","",[1]BASE!HP150) ->  | O149: =IF([1]BASE!HQ150="","",[1]BASE!HQ150) ->  | P149: =IF([1]BASE!HR150="","",[1]BASE!HR150) ->  | Q149: =IF([1]BASE!HS150="","",[1]BASE!HS150) ->  | R149: =IF([1]BASE!HT150="","",[1]BASE!HT150) -> 2 | S149: =IF([1]BASE!HU150="","",[1]BASE!HU150) ->  | T149: =IF([1]BASE!HV150="","",[1]BASE!HV150) -> 
C150: =+[1]BASE!C151 -> 135 | D150: =+[1]BASE!D151 -> 4715 | E150: =+[1]BASE!E151 -> LUJAN GBA - LUJAN II GBA | F150: =+[1]BASE!F151 -> 132 | G150: =+[1]BASE!G151 -> 9.02 | H150: =+[1]BASE!H151 -> C | I150: =IF([1]BASE!HK151="","",[1]BASE!HK151) ->  | J150: =IF([1]BASE!HL151="","",[1]BASE!HL151) ->  | K150: =IF([1]BASE!HM151="","",[1]BASE!HM151) ->  | L150: =IF([1]BASE!HN151="","",[1]BASE!HN151) ->  | M150: =IF([1]BASE!HO151="","",[1]BASE!HO151) ->  | N150: =IF([1]BASE!HP151="","",[1]BASE!HP151) ->  | O150: =IF([1]BASE!HQ151="","",[1]BASE!HQ151) ->  | P150: =IF([1]BASE!HR151="","",[1]BASE!HR151) -> 1 | Q150: =IF([1]BASE!HS151="","",[1]BASE!HS151) ->  | R150: =IF([1]BASE!HT151="","",[1]BASE!HT151) ->  | S150: =IF([1]BASE!HU151="","",[1]BASE!HU151) ->  | T150: =IF([1]BASE!HV151="","",[1]BASE!HV151) -> 
C151: =+[1]BASE!C152 -> 136 | D151: =+[1]BASE!D152 -> 4716 | E151: =+[1]BASE!E152 -> LUJAN II - MALV.1- CATONAS 1 - MORON 1 | F151: =+[1]BASE!F152 -> 132 | G151: =+[1]BASE!G152 -> 38.29 | H151: =+[1]BASE!H152 -> A | I151: =IF([1]BASE!HK152="","",[1]BASE!HK152) ->  | J151: =IF([1]BASE!HL152="","",[1]BASE!HL152) ->  | K151: =IF([1]BASE!HM152="","",[1]BASE!HM152) ->  | L151: =IF([1]BASE!HN152="","",[1]BASE!HN152) ->  | M151: =IF([1]BASE!HO152="","",[1]BASE!HO152) ->  | N151: =IF([1]BASE!HP152="","",[1]BASE!HP152) ->  | O151: =IF([1]BASE!HQ152="","",[1]BASE!HQ152) ->  | P151: =IF([1]BASE!HR152="","",[1]BASE!HR152) -> 1 | Q151: =IF([1]BASE!HS152="","",[1]BASE!HS152) ->  | R151: =IF([1]BASE!HT152="","",[1]BASE!HT152) ->  | S151: =IF([1]BASE!HU152="","",[1]BASE!HU152) ->  | T151: =IF([1]BASE!HV152="","",[1]BASE!HV152) -> 
C152: =+[1]BASE!C153 -> 137 | D152: =+[1]BASE!D153 -> 4888 | E152: =+[1]BASE!E153 -> ZARATE -CAMPANA III | F152: =+[1]BASE!F153 -> 132 | G152: =+[1]BASE!G153 -> 16.8 | H152: =+[1]BASE!H153 -> C | I152: =IF([1]BASE!HK153="","",[1]BASE!HK153) ->  | J152: =IF([1]BASE!HL153="","",[1]BASE!HL153) ->  | K152: =IF([1]BASE!HM153="","",[1]BASE!HM153) ->  | L152: =IF([1]BASE!HN153="","",[1]BASE!HN153) ->  | M152: =IF([1]BASE!HO153="","",[1]BASE!HO153) ->  | N152: =IF([1]BASE!HP153="","",[1]BASE!HP153) ->  | O152: =IF([1]BASE!HQ153="","",[1]BASE!HQ153) ->  | P152: =IF([1]BASE!HR153="","",[1]BASE!HR153) ->  | Q152: =IF([1]BASE!HS153="","",[1]BASE!HS153) ->  | R152: =IF([1]BASE!HT153="","",[1]BASE!HT153) ->  | S152: =IF([1]BASE!HU153="","",[1]BASE!HU153) ->  | T152: =IF([1]BASE!HV153="","",[1]BASE!HV153) -> 
C153: =+[1]BASE!C154 -> 138 | D153: =+[1]BASE!D154 -> 4889 | E153: =+[1]BASE!E154 -> CAMPANBA III - MATHEU | F153: =+[1]BASE!F154 -> 132 | G153: =+[1]BASE!G154 -> 24.7 | H153: =+[1]BASE!H154 -> C | I153: =IF([1]BASE!HK154="","",[1]BASE!HK154) ->  | J153: =IF([1]BASE!HL154="","",[1]BASE!HL154) ->  | K153: =IF([1]BASE!HM154="","",[1]BASE!HM154) ->  | L153: =IF([1]BASE!HN154="","",[1]BASE!HN154) ->  | M153: =IF([1]BASE!HO154="","",[1]BASE!HO154) ->  | N153: =IF([1]BASE!HP154="","",[1]BASE!HP154) ->  | O153: =IF([1]BASE!HQ154="","",[1]BASE!HQ154) ->  | P153: =IF([1]BASE!HR154="","",[1]BASE!HR154) ->  | Q153: =IF([1]BASE!HS154="","",[1]BASE!HS154) ->  | R153: =IF([1]BASE!HT154="","",[1]BASE!HT154) ->  | S153: =IF([1]BASE!HU154="","",[1]BASE!HU154) ->  | T153: =IF([1]BASE!HV154="","",[1]BASE!HV154) -> 
C154: =+[1]BASE!C155 -> 139 | D154: =+[1]BASE!D155 -> 4914 | E154: =+[1]BASE!E155 -> RAMALLO - SIDERAR | F154: =+[1]BASE!F155 -> 132 | G154: =+[1]BASE!G155 -> 6.75 | H154: =+[1]BASE!H155 -> C | I154: =IF([1]BASE!HK155="","",[1]BASE!HK155) ->  | J154: =IF([1]BASE!HL155="","",[1]BASE!HL155) ->  | K154: =IF([1]BASE!HM155="","",[1]BASE!HM155) ->  | L154: =IF([1]BASE!HN155="","",[1]BASE!HN155) ->  | M154: =IF([1]BASE!HO155="","",[1]BASE!HO155) ->  | N154: =IF([1]BASE!HP155="","",[1]BASE!HP155) ->  | O154: =IF([1]BASE!HQ155="","",[1]BASE!HQ155) ->  | P154: =IF([1]BASE!HR155="","",[1]BASE!HR155) ->  | Q154: =IF([1]BASE!HS155="","",[1]BASE!HS155) ->  | R154: =IF([1]BASE!HT155="","",[1]BASE!HT155) ->  | S154: =IF([1]BASE!HU155="","",[1]BASE!HU155) ->  | T154: =IF([1]BASE!HV155="","",[1]BASE!HV155) -> 
C155: =+[1]BASE!C156 -> 140 | D155: =+[1]BASE!D156 -> 4915 | E155: =+[1]BASE!E156 -> SIDERAR - SAN NICOLÁS | F155: =+[1]BASE!F156 -> 132 | G155: =+[1]BASE!G156 -> 1.31 | H155: =+[1]BASE!H156 -> C | I155: =IF([1]BASE!HK156="","",[1]BASE!HK156) ->  | J155: =IF([1]BASE!HL156="","",[1]BASE!HL156) ->  | K155: =IF([1]BASE!HM156="","",[1]BASE!HM156) ->  | L155: =IF([1]BASE!HN156="","",[1]BASE!HN156) ->  | M155: =IF([1]BASE!HO156="","",[1]BASE!HO156) ->  | N155: =IF([1]BASE!HP156="","",[1]BASE!HP156) ->  | O155: =IF([1]BASE!HQ156="","",[1]BASE!HQ156) ->  | P155: =IF([1]BASE!HR156="","",[1]BASE!HR156) ->  | Q155: =IF([1]BASE!HS156="","",[1]BASE!HS156) ->  | R155: =IF([1]BASE!HT156="","",[1]BASE!HT156) ->  | S155: =IF([1]BASE!HU156="","",[1]BASE!HU156) ->  | T155: =IF([1]BASE!HV156="","",[1]BASE!HV156) -> 
C156: =+[1]BASE!C157 -> 141 | E156: =+[1]BASE!E157 -> RAMALLO IND - RAMALLO | F156: =+[1]BASE!F157 -> 132 | G156: =+[1]BASE!G157 -> 17.66 | H156: =+[1]BASE!H157 -> C | I156: =IF([1]BASE!HK157="","",[1]BASE!HK157) ->  | J156: =IF([1]BASE!HL157="","",[1]BASE!HL157) ->  | K156: =IF([1]BASE!HM157="","",[1]BASE!HM157) ->  | L156: =IF([1]BASE!HN157="","",[1]BASE!HN157) ->  | M156: =IF([1]BASE!HO157="","",[1]BASE!HO157) ->  | N156: =IF([1]BASE!HP157="","",[1]BASE!HP157) ->  | O156: =IF([1]BASE!HQ157="","",[1]BASE!HQ157) ->  | P156: =IF([1]BASE!HR157="","",[1]BASE!HR157) ->  | Q156: =IF([1]BASE!HS157="","",[1]BASE!HS157) ->  | R156: =IF([1]BASE!HT157="","",[1]BASE!HT157) ->  | S156: =IF([1]BASE!HU157="","",[1]BASE!HU157) ->  | T156: =IF([1]BASE!HV157="","",[1]BASE!HV157) -> 
C157: =+[1]BASE!C158 -> 142 | D157: =+[1]BASE!D158 -> 4964 | E157: =+[1]BASE!E158 -> PINAMAR - VALERIA DEL MAR | F157: =+[1]BASE!F158 -> 132 | G157: =+[1]BASE!G158 -> 6 | H157: =+[1]BASE!H158 -> C | I157: =IF([1]BASE!HK158="","",[1]BASE!HK158) ->  | J157: =IF([1]BASE!HL158="","",[1]BASE!HL158) ->  | K157: =IF([1]BASE!HM158="","",[1]BASE!HM158) ->  | L157: =IF([1]BASE!HN158="","",[1]BASE!HN158) ->  | M157: =IF([1]BASE!HO158="","",[1]BASE!HO158) ->  | N157: =IF([1]BASE!HP158="","",[1]BASE!HP158) ->  | O157: =IF([1]BASE!HQ158="","",[1]BASE!HQ158) ->  | P157: =IF([1]BASE!HR158="","",[1]BASE!HR158) ->  | Q157: =IF([1]BASE!HS158="","",[1]BASE!HS158) ->  | R157: =IF([1]BASE!HT158="","",[1]BASE!HT158) ->  | S157: =IF([1]BASE!HU158="","",[1]BASE!HU158) ->  | T157: =IF([1]BASE!HV158="","",[1]BASE!HV158) -> 
C158: =+[1]BASE!C159 -> 143 | D158: =+[1]BASE!D159 -> 4965 | E158: =+[1]BASE!E159 -> VALERIA DEL MAR - VILLA GESELL | F158: =+[1]BASE!F159 -> 132 | G158: =+[1]BASE!G159 -> 14.28 | H158: =+[1]BASE!H159 -> C | I158: =IF([1]BASE!HK159="","",[1]BASE!HK159) ->  | J158: =IF([1]BASE!HL159="","",[1]BASE!HL159) ->  | K158: =IF([1]BASE!HM159="","",[1]BASE!HM159) ->  | L158: =IF([1]BASE!HN159="","",[1]BASE!HN159) ->  | M158: =IF([1]BASE!HO159="","",[1]BASE!HO159) ->  | N158: =IF([1]BASE!HP159="","",[1]BASE!HP159) ->  | O158: =IF([1]BASE!HQ159="","",[1]BASE!HQ159) ->  | P158: =IF([1]BASE!HR159="","",[1]BASE!HR159) ->  | Q158: =IF([1]BASE!HS159="","",[1]BASE!HS159) -> 1 | R158: =IF([1]BASE!HT159="","",[1]BASE!HT159) ->  | S158: =IF([1]BASE!HU159="","",[1]BASE!HU159) ->  | T158: =IF([1]BASE!HV159="","",[1]BASE!HV159) -> 
C159: =+[1]BASE!C160 -> 144 | E159: =+[1]BASE!E160 -> BAHIA BLANCA - MONTE HERMOSO | F159: =+[1]BASE!F160 -> 132 | G159: =+[1]BASE!G160 -> 90 | H159: =+[1]BASE!H160 -> C | I159: =IF([1]BASE!HK160="","",[1]BASE!HK160) ->  | J159: =IF([1]BASE!HL160="","",[1]BASE!HL160) ->  | K159: =IF([1]BASE!HM160="","",[1]BASE!HM160) -> 1 | L159: =IF([1]BASE!HN160="","",[1]BASE!HN160) ->  | M159: =IF([1]BASE!HO160="","",[1]BASE!HO160) ->  | N159: =IF([1]BASE!HP160="","",[1]BASE!HP160) ->  | O159: =IF([1]BASE!HQ160="","",[1]BASE!HQ160) ->  | P159: =IF([1]BASE!HR160="","",[1]BASE!HR160) ->  | Q159: =IF([1]BASE!HS160="","",[1]BASE!HS160) ->  | R159: =IF([1]BASE!HT160="","",[1]BASE!HT160) ->  | S159: =IF([1]BASE!HU160="","",[1]BASE!HU160) ->  | T159: =IF([1]BASE!HV160="","",[1]BASE!HV160) -> 
C160: =+[1]BASE!C161 -> 145 | E160: =+[1]BASE!E161 -> MONTE HERMOSO - CORONEL DORREGO | F160: =+[1]BASE!F161 -> 132 | G160: =+[1]BASE!G161 -> 35.4 | H160: =+[1]BASE!H161 -> 0 | I160: =IF([1]BASE!HK161="","",[1]BASE!HK161) ->  | J160: =IF([1]BASE!HL161="","",[1]BASE!HL161) ->  | K160: =IF([1]BASE!HM161="","",[1]BASE!HM161) ->  | L160: =IF([1]BASE!HN161="","",[1]BASE!HN161) ->  | M160: =IF([1]BASE!HO161="","",[1]BASE!HO161) ->  | N160: =IF([1]BASE!HP161="","",[1]BASE!HP161) -> 1 | O160: =IF([1]BASE!HQ161="","",[1]BASE!HQ161) ->  | P160: =IF([1]BASE!HR161="","",[1]BASE!HR161) ->  | Q160: =IF([1]BASE!HS161="","",[1]BASE!HS161) ->  | R160: =IF([1]BASE!HT161="","",[1]BASE!HT161) ->  | S160: =IF([1]BASE!HU161="","",[1]BASE!HU161) ->  | T160: =IF([1]BASE!HV161="","",[1]BASE!HV161) -> 
E163: Longitud Total | F163: =ROUND(SUM($G$16:$G$162)-SUMIF(T16:T162,"XXXX",$G$16:$G$162),2) -> 6162.72 | G163: km
G164: Indisponibilidades Forzadas | I164: =SUM(I16:I162) -> 4 | J164: 5 | K164: 14 | L164: 12 | M164: 1 | N164: 7 | O164: 2 | P164: 13 | Q164: 9 | R164: 9 | S164: 4 | T164: 5
G165: TASA DE FALLA | I165: =+[1]BASE!HK166 -> 1.14 | J165: =+[1]BASE!HL166 -> 1.15 | K165: =+[1]BASE!HM166 -> 1.18 | L165: =+[1]BASE!HN166 -> 1.25 | M165: =+[1]BASE!HO166 -> 1.35 | N165: =+[1]BASE!HP166 -> 1.25 | O165: =+[1]BASE!HQ166 -> 1.25 | P165: =+[1]BASE!HR166 -> 1.23 | Q165: =+[1]BASE!HS166 -> 1.31 | R165: =+[1]BASE!HT166 -> 1.33 | S165: =+[1]BASE!HU166 -> 1.41 | T165: =+[1]BASE!HV166 -> 1.38 | U165: =+[1]BASE!HW166 -> 1.38
L167: TASA DE FALLA | N167: =U165 -> 1.38 | O167: SALIDAS x AÑO / 100 km

Sheet DATO
A1: Mes | B1: Mes | C1: Dia | D1: Año
A2: enero | B2: 01 | C2: 31 | D2: 2006
A3: febrero | B3: 02 | C3: =IF(MOD(E14,4)=0,29,28) -> 29 | D3: =+D2+1 -> 2007
A4: marzo | B4: 03 | C4: 31 | D4: 2008
A5: abril | B5: 04 | C5: 30 | D5: 2009
A6: mayo | B6: 05 | C6: 31 | D6: 2010
A7: junio | B7: 06 | C7: 30 | D7: 2011
A8: julio | B8: 07 | C8: 31 | D8: 2012
A9: agosto | B9: 08 | C9: 31 | D9: 2013
A10: septiembre | B10: 09 | C10: 30 | D10: 2014
A11: octubre | B11: 10 | C11: 31 | D11: 2015
A12: noviembre | B12: 11 | C12: 30 | D12: 2016
A13: diciembre | B13: 12 | C13: 31 | I13: Total
A14: 11 | B14: 5 | C14: =CELL("CONTENIDO",OFFSET(A1,B14,0)) -> mayo | D14: =CELL("CONTENIDO",OFFSET(C1,B14,0)) -> 31 | E14: =CELL("CONTENIDO",OFFSET(D1,A14,0)) -> 2016 | F14: ="Desde el 01 al " & D14 & " de " & C14 & " de " & E14 -> Desde el 01 al 31 de mayo de 2016 | G14: =CELL("CONTENIDO",OFFSET(B1,B14,0)) -> 05 | H14: =RIGHT(E14,2) -> 16 | I14: B14
B15: ="\\rugor\files\Transporte\Transporte\AA PROCESO AUT ARCHIVOS J\TRANSBA\" &E14 -> \\rugor\files\Transporte\Transporte\AA PROCESO AUT ARCHIVOS J\TRANSBA\2016 | G15: ="J"&G14&H14&"TBA" -> J0516TBA
B16: ="\\rugor\files\Transporte\transporte\AA PROCESO AUT\INTERCAMBIO\" &H14&G14 -> \\rugor\files\Transporte\transporte\AA PROCESO AUT\INTERCAMBIO\1605
A17: Hoja | B17: FilaInicio | C17: FilasPlantilla | D17: Columnas | E17: NombreHoja | F17: OrigenDeDatos | G17: Col00 | H17: Col01 | I17: Col02 | J17: Col03 | K17: Col04 | L17: Col05 | M17: Col06 | N17: Col07 | O17: Col08 | P17: Col09 | Q17: Col10 | R17: Col11 | S17: Col12 | T17: Col13 | U17: Col14 | V17: Col15 | W17: FILHTOTAL | X17: COLHTOTAL | Y17: FILHCALC | Z17: COLHCALC | AA17: FILTRANSP | AB17: COLTRANSP | AC17: COL TSAL
A18: MODELO L | B18: 21 | C18: 20 | D18: 12 | E18: ="LI-" & $G$14 -> LI-05 | F18: TRANSBA_INDISPONIBILIDADES_LINEAS_TRANSBA.XLS | G18: 3 | H18: 5 | I18: 4 | J18: 6 | K18: 7 | L18: 8 | M18: 9 | N18: 11 | O18: 12 | P18: 15 | Q18: 0 | R18: 28 | S18: 16 | T18: 0 | U18: 0 | V18: 0 | W18: 18 | X18: 9 | Y18: 42 | Z18: 29 | AA18: 19 | AB18: 29 | AC18: 15
A19: MODELO T | B19: 22 | C19: 20 | D19: 13 | E19: ="T-" & $G$14 -> T-05 | F19: TRANSBA_INDISPONIBILIDADES_TRAFOS_TRANSBA.XLS | G19: 3 | H19: 5 | I19: 4 | J19: 6 | K19: 7 | L19: 8 | M19: 9 | N19: 11 | O19: 12 | P19: 15 | Q19: 16 | R19: 18 | S19: 28 | T19: 17 | U19: 0 | V19: 0 | W19: 22 | X19: 9 | Y19: 43 | Z19: 29 | AA19: 20 | AB19: 29 | AC19: 15
A20: MODELO S | B20: 22 | C20: 20 | D20: 10 | E20: ="SA-" & $G$14 -> SA-05 | F20: TRANSBA_INDISPONIBILIDADES_SALIDAS_TRANSBA.XLS | G20: 3 | H20: 5 | I20: 4 | J20: 6 | K20: 7 | L20: 8 | M20: 10 | N20: 11 | O20: 14 | P20: 15 | Q20: 21 | R20: 0 | S20: 0 | T20: 0 | U20: 0 | V20: 0 | W20: 24 | X20: 9 | Y20: 43 | Z20: 22 | AA20: 20 | AB20: 22 | AC20: 14
A21: MODELO R | B21: 21 | C21: 20 | D21: 12 | E21: ="RE-" & $G$14 -> RE-05 | F21: TRANSBA_INDISPONIBILIDADES_REACTIVOS_TRANSBA.XLS | G21: 3 | H21: 5 | I21: 4 | J21: 6 | K21: 7 | L21: 8 | M21: 9 | N21: 10 | O21: 12 | P21: 13 | Q21: 16 | R21: 17 | S21: 29 | T21: 18 | U21: 0 | V21: 0 | W21: 26 | X21: 9 | Y21: 43 | Z21: 30 | AA21: 20 | AB21: 30 | AC21: 16
A22: MODELO VST | B22: 19 | C22: 24 | D22: 4 | E22: ="CAUSAS-VST-" & $G$14 -> CAUSAS-VST-05 | F22: TRANSBA_CAUSAS_VST.XLS | G22: 3 | H22: 4 | I22: 5 | J22: 6 | K22: 7 | L22: 0 | M22: 0 | N22: 0 | O22: 0 | P22: 0 | Q22: 0 | R22: 0 | S22: 0 | T22: 0 | U22: 0 | V22: 0 | W22: 999 | X22: 999 | Y22: 0 | Z22: 0 | AA22: 0 | AB22: 0 | AC22: 0
